Workbook

Sheet Introduction
B2: Dernière mise à jour - 23/11/2022 → Si vous désirez obtenir les mises à jour, vous devrez télécharger ce document chaque mois sur le site de Buildwise
B4: A ce jour, les données de RevTool ne remontent que jusqu'au 1er janvier 2018 !
C5: L'outil de suivi de l'évolution des prix dans le secteur de la construction. Attention ! Cet outil n'est pas un instrument juridique, mais bien un outil de calcul.
C7: Découvrez l'outil en 4 étapes !
B17: Profitez des feuilles bonus : Elles sont cachées par défaut, cliquez sur les boutons blancs afin de les faire apparaître
C18: Feuille | D18: Cette feuille résume l'évolution des prix sur plusieurs périodes d'analyses. Les résultats visibles correspondent à l'application de la formule de révision des prix calculée chaque mois selon les paramètres encodés dans la feuille « Formule de révision courante ». (indice matériaux, indice salaire, coefficients)
D19: Vous pouvez également faire une prévision sur cette feuille de ce que le prix pourrait être après un certain laps de temps (si le démarrage du projet n’est prévu que pour dans 10 mois par exemple).
D20: Veuillez noter, cependant, que les résultats de ce procédé sont estimatifs. Nous ne sommes malheureusement pas en mesure de prévoir l’évolution future des prix.
C22: Feuille | D22: Cette feuille de calcul vous offre la fonctionnalité de vérifier rapidement des cumuls de remises ou d'augmentations de prix.
D23: Vérifiez rapidement quels pourcentages de majoration (fi) il ne faut pas dépasser afin de ne pas atteindre les prix publics HTVA de vos fournisseurs.
D24: Vous pouvez calculer l’impact final sur le budget du client en appliquant l’évolution de prix comme première majoration et le taux de TVA applicable comme seconde majoration. De ce fait vous pourrez connaître la différence entre le budget final du client par rapport au budget initial en les comparant.
C26: Feuilles | D26: Ces feuilles de calcul sont disponibles pour votre information et sont les banques de données sur lesquelles sont notamment basées les autres feuilles de calcul.
D27: Vous pouvez les consulter si une analyse plus approfondie vous intéresse.
D28: Ces feuilles sont mises à jour au moins une fois par mois.
C30: Nous attirons votre attention que l'indexation des prix n'est pas automatique. Le prix convenu avec le client doit être respecté et ne peut être adapté unilatéralement
C32: Dans certains cas, les documents contratuels ou du marché prévoient l'utilisation d'une formule de révision qui permet de valoriser une évolution des prix des matériaux et de la main d'oeuvre (à la hausse comme à la baisse)
C34: RevTool a été conçu par Buildwise afin de sensibiliser ses membres à l’impact de l’évolution des prix dans le secteur de la construction. Buildwise ne peut cependant être tenu responsable de l’application pour un marché spécifique des calculs réalisées. Ceux-ci dépendent toujours des documents du marché. Buildwise n’offre aucune garantie explicite ou implicite et la garantie d’adéquation à un usage bien déterminé est d’ailleurs exclue. L’utilisateur vérifiera si les résultats ainsi obtenus peuvent être utilisés dans le cadre de ses objectifs et les testera toujours à l’aide d’autres moyens. Il est seul responsable de leur exactitude. Buildwise ne garantit toutefois pas que RevTool est totalement exempt de bugs ou d’erreurs. Buildwise fera tous les efforts raisonnables pour garantir le bon fonctionnement de l’application.
C40: Pour toute question relative à l'outil et à son utilisation, contactez la division "Gestion & Qualité" de Buildwise
C41: gebe@buildwise.be | D41: https://www.buildwise.be/fr/expertise-soutien/gestion-bim/
C43: Pour toute question juridique sur l'application des formules de révision, contactez Embuild :
C44: https://embuild.be/fr
C52: Vers les conditions juridiques de Buildwise

Sheet Graphique évolution des indices
B2: Cette feuille vous permet de disposer d'une vue graphique de l'évolution de l'ensemble des indices de prix disponibles dans l'outil en utilisant la fontionnalité du filtre du graphique. Utiliser la fonctionnalité du filtre : cliquer sur le graphique, puis sélectionner le 3ème symbole qui apparaît dans le coin supérieur droit, à l'extérieur de celui-ci. (en forme d'entonnoir) Vous pouvez dès lors sélectionner les données et périodes que vous désirez faire apparâitre / disparaître. (N'oubliez pas de cliquer sur "appliquer", tout en bas de la fenêtre)
A6: ← | B6: cliquer sur "+" / "-" → "montrer" / "cacher" l'introduction → Que puis-je faire dans cette feuille ?
L110: Type de matériau | M110: Matériaux pierreux naturels et sables | AR110: Métaux | BS110: Bois | CA110: Terre cuite | CG110: Ciment | CL110: Produits en béton | CU110: Produits combustibles et bitumineux | DL110: Matières plastiques | DQ110: GRYMAFER | DU110: Electricité indice à la consommation Statbel 04.5.1.0 | DV110: Gaz naturel indice à la consommation Statbel 04.5.2.1 | DW110: Eau indice à la consommation Statbel 04.4.1.0 | DX110: IPC Indice des prix à la consommation (Statbel) | DY110: Inflation générale (Statbel) | DZ110: Indice Santé (Statbel) | EA110: Indice Production dans la construction (Statbel)
L111: Nom du matériau | M111: porphyre concassé | R111: grès concassé | W111: pierres calcaires du Tournaisis | AC111: sables belges | AF111: graviers de rivières belges | AL111: graviers importés par bateau | AO111: sables importés par bateau | AR111: tôles minces laminées à froid | AS111: profilés | AW111: aciers marchands | AZ111: tôles fortes | BD111: tôles moyennes | BE111: ronds à béton | BH111: tôles minces laminées à chaud | BL111: palplanches | BM111: fonte de moulage | BN111: aciers inoxydables | BO111: plomb | BP111: cuivre | BQ111: zinc | BR111: aluminium | BS111: bois de sciage epicea | BV111: bois de sciage pin du nord | BY111: panneaux OSB | BZ111: panneaux MDF | CA111: blocs terre cuite perforés | CD111: briques de maçonnerie | CG111: ciment | CL111: produits béton pour la voirie | CR111: produits béton pour le bâtiment | CU111: Diesel B7 à la pompe | CY111: Gazoil chauffage | DB111: Eurosuper 95 à la pompe | DF111: LPG | DG111: Bitume pétrolier | DJ111: goudron route | DL111: polyester (UP) | DM111: PVC | DN111: polyéthylène basse densité | DO111: polyéthylène haute densité | DP111: tubes polyéthylène | DQ111: Ronds à béton | DR111: Fil à froid | DS111: Fil à chaud | DT111: Treillis | EE111: Services | EQ111: Secteurs
L112: Détail du matériau | M112: 40/56 | N112: 20/32 | O112: 6/20 | P112: 2/6 | Q112: moyenne | R112: 32/56 | S112: 20/32 | T112: 6/20 | U112: 2/6 | V112: moyenne | W112: 20/32 | X112: 14/20 | Y112: 6/14 | Z112: 2/6 | AA112: 0/2 - 0/4 | AB112: moyenne | AC112: de pavage | AD112: pour béton | AE112: moyenne | AF112: gravier 4/28 | AG112: sable de Meuse | AH112: concassé 2/6 | AI112: concassé 6/20 | AJ112: concassé 2/32 | AK112: moyenne | AL112: vers Bruxelles | AM112: vers Anvers | AN112: moyenne | AO112: vers Bruxelles | AP112: vers Anvers | AQ112: moyenne | AR112: 1mm | AS112: aciers AE 355 D | AT112: aciers AE 235 C | AU112: aciers courants AE 235 A | AV112: moyenne | AW112: aciers courants AE 235 A | AX112: aciers AE 355 C | AY112: moyenne | AZ112: aciers AE 355 D | BA112: aciers AE 235 A | BB112: aciers courants A 320 | BC112: moyenne | BD112: aciers courants A320 | BE112: BE 500 crênelés | BF112: diam. 10 à 40 mm | BG112: moyenne | BH112: aciers courants A 320 1,5 mm | BI112: aciers courants A 320 2 mm | BJ112: aciers courants A 320 2,75 mm | BK112: moyenne | BL112: profilés AZ 18 PAE 320 | BM112: - | BN112: AISI 304 barres | BO112: brut | BP112: brut | BQ112: laminé | BR112: brut | BS112: epicea indigene V 2½ x 7 charpente | BT112: epicea indigene V 4/4 x 4 voliges | BU112: moyenne | BV112: pin du nord V 2½ x 7 charpente | BW112: pin du nord V 4/4 x 4 voliges | BX112: moyenne | BY112: OSB type 3 rain.-lang. 244/59 cm 18 mm | BZ112: MDF standard 244/122 cm 18 mm | CA112: L : 290 l : 140 h : 90 | CB112: L : 290 l : 140 h : 140 | CC112: moyenne | CD112: ordinaire : L : 190 l : 09 h : 65 | CE112: à la main : L : 190 l : 90 h : 50 | CF112: moyenne | CG112: classe 32,5 | CH112: classe 42,5 | CI112: classe 52,5 | CJ112: sacs | CK112: moyenne | CL112: carreaux en béton 30/30/6 cm | CM112: pavés en béton 22/11/10 cm | CN112: bordures 21-411 type 1A 100/35/15 | CO112: tuyaux non armé L : 2,5 m diam. 80cm | CP112: tuyaux non armé L : 2 m diam. 80cm | CQ112: moyenne | CR112: blocs creux classe p 0,8 39/19/19 type léger | CS112: blocs pleins classe p 2,2 39/19/19 type lourd | CT112: moyenne | CU112: 10 ppm | CV112: 50 ppm | CW112: - | CX112: moyenne | CY112: 1000 ppm | CZ112: 2000 ppm | DA112: moyenne | DB112: 10 ppm | DC112: 50 ppm | DD112: - | DE112: moyenne | DF112: - | DG112: fûts | DH112: vrac | DI112: moyenne | DJ112: type 1 et 2 | DK112: type 4 et 5 | DL112: non saturé liquide | DM112: chlorure de polyvinyl | DN112: PE/LD basse densité | DO112: PE/HD haute densité | DP112: PE/HD haute densité | ED112: Code Statbel du service / secteur | EE112: 49.41 | EF112: 50.2 | EG112: 52.1 | EH112: 52.24 | EI112: 53.2 | EJ112: 61 | EK112: 62 | EL112: 71 | EM112: 73 | EN112: 78 | EO112: 80 | EP112: 81.2 | EQ112: 90 | ER112: 24 - 25 | ES112: 257 | ET112: 261 - 262 - 263 - 264 - 27 | EU112: 800 | EV112: 810 | EW112: 811 | EX112: 812 | EY112: 1083 | EZ112: 1105 | FA112: 1393 | FB112: 1412 | FC112: 1600 | FD112: 1610 | FE112: 1620 | FF112: 1621 | FG112: 1623 | FH112: 1700 | FI112: 1920 | FJ112: 2000 | FK112: 2010 | FL112: 2012 | FM112: 2013 | FN112: 2016 | FO112: 2030 | FP112: 2200 | FQ112: 2210 | FR112: 2220 | FS112: 2221 | FT112: 2222 | FU112: 2223 | FV112: 2300 | FW112: 2310 | FX112: 2312 | FY112: 2330 | FZ112: 2332 | GA112: 2350 | GB112: 2351 | GC112: 2360 | GD112: 2361 | GE112: 2363 | GF112: 2369 | GG112: 2370 | GH112: 2390 | GI112: 2400 | GJ112: 2410 | GK112: 2430 | GL112: 2434 | GM112: 2440 | GN112: 2444 | GO112: 2450 | GP112: 2451 | GQ112: 2500 | GR112: 2510 | GS112: 2511 | GT112: 2512 | GU112: 2520 | GV112: 2521 | GW112: 2600 | GX112: 2630 | GY112: 2700 | GZ112: 2730 | HA112: 2733 | HB112: 2740 | HC112: 2750 | HD112: 2800 | HE112: 2822 | HF112: 2900 | HG112: 3100 | HH112: 3101 | HI112: 3102 | HJ112: 3200 | HK112: 3300 | HL112: 3500 | HM112: 3510 | HN112: 3520 | HO112: 3600
B113: Période | C113: indice "i" | D113: indice "i2021" | E113: indice "K1" | F113: indice "K2" | G113: indice "M" | H113: indice "MM" | I113: Evolution des prix selon formule de révision - indice i 2021 | J113: Evolution des prix selon formule de révision - indice i | K113: Formule de révision - indice i 2021 | L113: Formule de révision - indice i | M113: 101 | N113: 102 | O113: 103 | P113: 104 | Q113: porphyre | R113: 109 | S113: 110 | T113: 111 | U113: 112 | V113: grès | W113: 117 | X113: 118 | Y113: 119 | Z113: 120 | AA113: 121 | AB113: Pierre du Tournaisis | AC113: 130 | AD113: 131 | AE113: Sables belges | AF113: 132 | AG113: 133 | AH113: 134 | AI113: 135 | AJ113: 136 | AK113: Graviers belge | AL113: 137 | AM113: 137² | AN113: Gravier importé par bateau | AO113: 138 | AP113: 138² | AQ113: sable importé par bateau | AR113: tôles minces acier laminées à froid | AS113: 210 | AT113: 213 | AU113: 217 | AV113: profilés acier | AW113: 211 | AX113: 219 | AY113: aciers marchands | AZ113: 212 | BA113: 215 | BB113: 220 | BC113: tôles fortes acier | BD113: tôles moyennes acier | BE113: 218 | BF113: 224 | BG113: ronds à béton acier | BH113: 221 | BI113: 222 | BJ113: 223 | BK113: tôles minces laminées à chaud acier | BL113: palplanches | BM113: Fonde de moulage | BN113: inox | BO113: plomb | BP113: cuivre | BQ113: zinc | BR113: aluminium | BS113: 339 | BT113: 340 | BU113: bois - epicea | BV113: 341 | BW113: 342 | BX113: bois - pin du nord | BY113: OSB | BZ113: MDF | CA113: blocs (442) | CB113: blocs (443) | CC113: blocs terre cuite | CD113: briques (445) | CE113: briques (448) | CF113: briques terre cuite | CG113: ciment (462) | CH113: ciment (464) | CI113: ciment (466) | CJ113: ciment (467) | CK113: ciment | CL113: carreaux (470) | CM113: pavés (475) | CN113: bordures (480) | CO113: tuyaux (486) | CP113: tuyaux (486²) | CQ113: béton voirie | CR113: blocs creux (476) | CS113: blocs pleins (477) | CT113: béton bâtiment | CU113: diesel (549) | CV113: diesel (549²) | CW113: diesel (549³) | CX113: diesel | CY113: gazoil (550) | CZ113: gazoil (550²) | DA113: mazout | DB113: euro 95 (551) | DC113: euro 95 (551²) | DD113: euro 95 (551³) | DE113: eurosuper 95 | DF113: LPG | DG113: bitume futs (563) | DH113: bitume vrac (564) | DI113: bitume | DJ113: goudron 1/2 | DK113: goudron 4/5 | DL113: polyester | DM113: PVC | DN113: PE/LD | DO113: PE/HD | DP113: tubes PE/HD | DQ113: GRYMAFER - RSR - Ronds à béton | DR113: GRYMAFER - FKC - Fil à froid | DS113: GRYMAFER - CWH - Fil à chaud | DT113: GRYMAFER - TNM - Treillis | DU113: Electricité | DV113: Gaz naturel | DW113: Eau | DX113: Indice des prix à la consommation (IPC) Statbel | DY113: Indice de l'inflation Statbel | DZ113: Indice santé Statbel | EA113: Indice de production pour secteur de la Construction - Statbel | ED113: période | EE113: Transports routiers de fret | EF113: Transports maritimes et côtiers de fret | EG113: Entreposage et stockage | EH113: Manutention | EI113: Poste et courrier (autres activités) | EJ113: Télécommunications | EK113: Informatique - programmation, conseil et autres activités informatiques | EL113: Architecture, ingénieurie; activités de contrôle et analyses techniques | EM113: Publicité et études de marché | EN113: Emploi - activités liées à l'emploi | EO113: Enquêtes privées et sécurité | EP113: Nettoyage (activités) | EQ113: Energie | ER113: Métallurgie et travail des métaux | ES113: Fabrications métalliques | ET113: Appareils électriques, machines électroniques, équipements de radio, TV et communication (fabrication) | EU113: Industries extractives (autres) | EV113: Pierres, sables & argiles (extraction) | EW113: Pierres ornementales et de construction, de pierres calcaires, de gypse, de craie et d'ardoise (extraction) | EX113: Exploitation gravières et sablières, extraction d'argiles et de kaolin | EY113: thé et café (transformation) | EZ113: Bière (fabrication) | FA113: Tapis et moquettes (Fabrication) | FB113: Vêtements de travail (fabrication) | FC113: Travail du bois et fabrication d'articles en bois et en liège, à l'exception des meubles; fabrication d'articles en vannerie et sparterie | FD113: Sciage et rabotage du bois | FE113: Articles en bois, liège, vannerie et sparterie (fabrication) | FF113: Placage et panneaux bois (fabrication) | FG113: Charpentes et autres menuiseries (fabrication) | FH113: Papier et carton (industrie) | FI113: Rafinage du pétrole | FJ113: Industrie chimique | FK113: Produits chimiques de base, de produits azotés et d'engrais, de matières plastiques de base et de caoutchouc synthétique (fabrication) | FL113: Colorants et pigments (fabrication) | FM113: Autres produits chimiques inorganiques de base (fabrication) | FN113: Matières plastiques de base (fabrication) | FO113: Peintures, mastics, vernis, encres (fabrication) | FP113: Caoutchouc et plastique (fabrication de produits) | FQ113: Caoutchouc (fabrication de produits) | FR113: Plastique (fabrication de produits) | FS113: Plastique : plaques, feuilles, tubes et profilés (fabrication en matière plastique) | FT113: Emballages plastiques (fabrication) | FU113: Eléments plastiques pour la construction (fabrication) | FV113: Autres produits minéraux non métalliques (fabrication) | FW113: Verre et articles en verre (fabrication) | FX113: Verre plat (façonnage et transformation) | FY113: Terre cuite (Fabrication de matériaux de construction) | FZ113: Briques, tuiles et produits de construction en terre cuite (fabrication) | GA113: Ciment, chaux et plâtre (fabrication) | GB113: Ciment (fabrication) | GC113: Ouvrages en béton, ciment ou plâtre (fabrication) | GD113: Eléments en béton pour la construction (fabrication) | GE113: Béton prêt à l'emploi (fabrication) | GF113: Autres ouvrages béton, ciment ou plâtre (fabrication) | GG113: Pierre : taille, façonnage et finissage | GH113: Produits abrasifs et de produits minéraux non métalliques n.c.a. (fabrication) | GI113: Métallurgie | GJ113: Sidérurgie | GK113: Acier : autres produits de première transformation (fabrication) | GL113: Tréfilage à froid | GM113: Métaux précieux et d'autres métaux non ferreux (Production) | GN113: Cuivre (Métallurgie) | GO113: Fonderie de métaux | GP113: Fonderie de fonte | GQ113: Produits métalliques, à l'exception des machines et des équipements (fabrication) | GR113: Eléments en métal pour la construction (fabrication) | GS113: Structures métalliques et parties de structures (fabrication) | GT113: Portes et fenêtres métalliques (fabrication) | GU113: Réservoirs, citernes et conteneurs métalliques (fabrication) | GV113: Radiateurs et chaudières pour le chauffage central (fabrication) | GW113: Produits informatiques, électroniques et optiques (fabrication) | GX113: Equipements de communication (fabrication) | GY113: Equipements électriques (fabrication) | GZ113: Fils, câbles et matériel d'installation électrique (fabrication) | HA113: Matériel d'installation électrique (fabrication) | HB113: Lampes et appareils d'éclairage électrique (fabrication) | HC113: Appareils ménagers (fabrication) | HD113: Machines et équipements n.c.a. (fabrication) | HE113: Matériel de levage et de manutention (fabrication) | HF113: Véhicules automobiles, de remorques et de semi-remorques (Construction et assemblage) | HG113: Meubles (fabrication) | HH113: Meubles de bureau et de magasin (fabrication) | HI113: Meubles de cuisine (fabrication) | HJ113: Autres industries manufacturières | HK113: Machines (réparation et installation) & installations | HL113: Electricité, gaz, vapeur et air conditionné (Production et distribution) | HM113: Electricité (Production, transport et distribution) | HN113: Gaz (production et distribution de combustibles gazeux) | HO113: Eau (captage, traitement et distribution d'eau) | HQ113: Période | HR113: indice "s" - cat A (< 10 p) | HS113: indice "s" - cat A (de 10 à 19 p) | HT113: indice "s" - cat A (≥ 20 p) | HU113: indice "s" - cat B (< 10 p) | HV113: indice "s" - cat B (de 10 à 19 p) | HW113: indice "s" - cat B (≥ 20 p) | HX113: indice "s" - cat C (< 10 p) | HY113: indice "s" - cat C (de 10 à 19 p) | HZ113: indice "s" - cat C (≥ 20 p) | IA113: indice "s" - cat D (< 10 p) | IB113: indice "s" - cat D (de 10 à 19 p) | IC113: indice "s" - cat D (≥ 20 p) | ID113: indice "s" - électriciens (< 10 p) | IE113: indice "s" - électriciens (≥ 10 p) | IF113: Evolution des prix selon formule de révision - indice i 2021 | IG113: Evolution des prix selon formule de révision - indice i | IH113: Formule de révision - indice i 2021 | II113: Formule de révision - indice i | IJ113: CP124 - manœuvre - cat. 1 | IK113: CP124 - manœuvre - cat. 1 A | IL113: CP124 - ouvrier - cat. 2 | IM113: CP124 - ouvrier - cat. 2 A | IN113: CP124 - ouvrier - cat. 3 | IO113: CP124 - ouvrier - cat. 4 | IP113: CP124 - chef d'équipe - A | IQ113: CP124 - chef d'équipe - B | IR113: CP124 - contremaître | IS113: CP200 - classe A - Fonctions exécutives | IT113: CP200 - classe B - Fonctions de support | IU113: CP200 - Classe C - Fonctions de gestion | IV113: CP200 - Classe D - Fonctions consultatives | IW113: CP149 - classe A - Ouvrier non-qualifié | IX113: CP149 - classe B - Ouvrier spécialisé - 2ème catégorie | IY113: CP149 - Classe C - Ouvrier spécialisé - 1ère catégorie | IZ113: CP149 - Classe D - Ouvrier qualifié - 3ème catégorie | JA113: CP149 - Classe E - Ouvrier qualifié - 2ème catégorie | JB113: CP149 - Classe F - Ouvrier qualifié - 1ère catégorie | JC113: CP116 - manœuvre - 0 mois d'ancienneté | JD113: CP121 - 1.A - Nettoyage habituel | JE113: CP121 - 1.B. - Nettoyage spécial - (+ poussiéreux, encrassement, risque d'infection, …) | JF113: CP121 - 2.A. - Nettoyage mi-lourd | JG113: CP121 - 2.E. - Désinfection | JH113: CP121 - 3.A. - Collecte de déchets, vidange et nettoyage d'égoûts, fosses septiques et réservoirs | JI113: CP121 - 4.A - Laveur de vitres qualifié | JJ113: CP121 - 7.A. - Ramonage | JK113: CP121 - 10.A. - Manœuvre - Centre d'enfouissement technique | JL113: CP111 - ouvriers | JM113: CP209 - employés administratifs - échelon 1 | JN113: CP209 - employés administratifs - échelon 2 | JO113: CP209 - employés administratifs - échelon 3 | JP113: CP209 - employés administratifs - échelon 4 | JQ113: CP209 - employés techniques - échelon 1 | JR113: CP209 - employés techniques - échelon 2 | JS113: CP209 - employés techniques - échelon 3 | JT113: CP209 - employés techniques - échelon 4 | JU113: CP209 - employés techniques - échelon 5 | JV113: CP209 - employés technique - échelon 6 | JW113: CP209 - employés techniques - échelon 7 | JX113: CP209 - dessinateurs - échelon 1 | JY113: CP209 - dessinateurs - échelon 2 | JZ113: CP209 - dessinateurs - échelon 3 | KA113: CP209 - dessinateurs - échelon 4 | KB113: CP209 - dessinateurs - échelon 5 | KC113: CP209 - contremaîtres - échelon 1 | KD113: CP209 - contremaîtres - échelon 2 | KE113: CP209 - contremaîtres - échelon 3 | KF113: CP126 - ouvriers- à partir de 21 ans - catégorie 1 | KG113: CP126 - ouvriers - à partir de 21 ans - catégorie 2 | KH113: CP126 - ouvriers - à partir de 21 ans - catégorie 3 | KI113: CP126 - ouvriers - à partir de 21 ans - catégorie 4 | KJ113: CP126 - ouvriers - à partir de 21 ans - catégorie 5 | KK113: CP126 - classe A - Fonctions exécutives | KL113: CP126 - classe B - Fonctions de support | KM113: CP126 - Classe C - Fonctions de gestion | KN113: CP126 - Classe D - Fonctions consultatives | KO113: CP115 - personnel de fabrication - classe 1 | KP113: CP115 - personnel de fabrication - classe 2 | KQ113: CP115 - personnel de fabrication - classe 3 | KR113: CP115 - personnel de fabrication - classe 4 | KS113: CP115 - personnel de fabrication - classe 5 | KT113: CP115 - personnel de fabrication - classe 6 | KU113: CP115 - personnel d'entretien et services auxiliaires - Manoeuvres spécialisés : Groupe 5 | KV113: CP115 - personnel d'entretien et services auxiliaires - Manoeuvres spécialisés : Groupe 6 | KW113: CP115 - personnel d'entretien et services auxiliaires - catégorie - A | KX113: CP115 - personnel d'entretien et services auxiliaires - catégorie - B | KY113: CP115 - personnel d'entretien et services auxiliaires - catégorie - C | KZ113: CP115 - personnel d'entretien et services auxiliaires - catégorie - D | LA113: CP115 - personnel d'entretien et services auxiliaires - brigadiers
B114: 2018-01-01 | C114: =IFERROR(IF('Indices courants'!E27/'Indices courants'!$E$27=0,NA(),'Indices courants'!E27/'Indices courants'!$E$27),NA()) -> 1 | D114: =IFERROR(IF('Indices courants'!F27/'Indices courants'!$F$27=0,NA(),'Indices courants'!F27/'Indices courants'!$F$27),NA()) -> 1 | E114: =IFERROR(IF('Indices courants'!G27/'Indices courants'!$G$27=0,NA(),'Indices courants'!G27/'Indices courants'!$G$27),NA()) -> 1 | F114: =IFERROR(IF('Indices courants'!H27/'Indices courants'!$H$27=0,NA(),'Indices courants'!H27/'Indices courants'!$H$27),NA()) -> 1 | G114: =IFERROR(IF('Indices courants'!I27/'Indices courants'!I$27=0,NA(),'Indices courants'!I27/'Indices courants'!I$27),NA()) -> 1 | H114: =IFERROR(IF('Indices courants'!J27/'Indices courants'!J$27=0,NA(),'Indices courants'!J27/'Indices courants'!J$27),NA()) -> 1 | I114: 1 | J114: 1 | K114: 1 | L114: 1 | M114: =IFERROR(IF('Indices T.P. matériaux'!C35/'Indices T.P. matériaux'!C$35=0,NA(),'Indices T.P. matériaux'!C35/'Indices T.P. matériaux'!C$35),NA()) -> 1 | N114: =IFERROR(IF('Indices T.P. matériaux'!D35/'Indices T.P. matériaux'!D$35=0,NA(),'Indices T.P. matériaux'!D35/'Indices T.P. matériaux'!D$35),NA()) -> 1 | O114: =IFERROR(IF('Indices T.P. matériaux'!E35/'Indices T.P. matériaux'!E$35=0,NA(),'Indices T.P. matériaux'!E35/'Indices T.P. matériaux'!E$35),NA()) -> 1 | P114: =IFERROR(IF('Indices T.P. matériaux'!F35/'Indices T.P. matériaux'!F$35=0,NA(),'Indices T.P. matériaux'!F35/'Indices T.P. matériaux'!F$35),NA()) -> 1 | Q114: =IFERROR(IF('Indices T.P. matériaux'!G35/'Indices T.P. matériaux'!G$35=0,NA(),'Indices T.P. matériaux'!G35/'Indices T.P. matériaux'!G$35),NA()) -> 1 | R114: =IFERROR(IF('Indices T.P. matériaux'!H35/'Indices T.P. matériaux'!H$35=0,NA(),'Indices T.P. matériaux'!H35/'Indices T.P. matériaux'!H$35),NA()) -> 1 | S114: =IFERROR(IF('Indices T.P. matériaux'!I35/'Indices T.P. matériaux'!I$35=0,NA(),'Indices T.P. matériaux'!I35/'Indices T.P. matériaux'!I$35),NA()) -> 1 | T114: =IFERROR(IF('Indices T.P. matériaux'!J35/'Indices T.P. matériaux'!J$35=0,NA(),'Indices T.P. matériaux'!J35/'Indices T.P. matériaux'!J$35),NA()) -> 1 | U114: =IFERROR(IF('Indices T.P. matériaux'!K35/'Indices T.P. matériaux'!K$35=0,NA(),'Indices T.P. matériaux'!K35/'Indices T.P. matériaux'!K$35),NA()) -> 1 | V114: =IFERROR(IF('Indices T.P. matériaux'!L35/'Indices T.P. matériaux'!L$35=0,NA(),'Indices T.P. matériaux'!L35/'Indices T.P. matériaux'!L$35),NA()) -> 1 | W114: =IFERROR(IF('Indices T.P. matériaux'!M35/'Indices T.P. matériaux'!M$35=0,NA(),'Indices T.P. matériaux'!M35/'Indices T.P. matériaux'!M$35),NA()) -> 1 | X114: =IFERROR(IF('Indices T.P. matériaux'!N35/'Indices T.P. matériaux'!N$35=0,NA(),'Indices T.P. matériaux'!N35/'Indices T.P. matériaux'!N$35),NA()) -> 1 | Y114: =IFERROR(IF('Indices T.P. matériaux'!O35/'Indices T.P. matériaux'!O$35=0,NA(),'Indices T.P. matériaux'!O35/'Indices T.P. matériaux'!O$35),NA()) -> 1 | Z114: =IFERROR(IF('Indices T.P. matériaux'!P35/'Indices T.P. matériaux'!P$35=0,NA(),'Indices T.P. matériaux'!P35/'Indices T.P. matériaux'!P$35),NA()) -> 1 | AA114: =IFERROR(IF('Indices T.P. matériaux'!Q35/'Indices T.P. matériaux'!Q$35=0,NA(),'Indices T.P. matériaux'!Q35/'Indices T.P. matériaux'!Q$35),NA()) -> 1 | AB114: =IFERROR(IF('Indices T.P. matériaux'!R35/'Indices T.P. matériaux'!R$35=0,NA(),'Indices T.P. matériaux'!R35/'Indices T.P. matériaux'!R$35),NA()) -> 1 | AC114: =IFERROR(IF('Indices T.P. matériaux'!S35/'Indices T.P. matériaux'!S$35=0,NA(),'Indices T.P. matériaux'!S35/'Indices T.P. matériaux'!S$35),NA()) -> 1 | AD114: =IFERROR(IF('Indices T.P. matériaux'!T35/'Indices T.P. matériaux'!T$35=0,NA(),'Indices T.P. matériaux'!T35/'Indices T.P. matériaux'!T$35),NA()) -> 1 | AE114: =IFERROR(IF('Indices T.P. matériaux'!U35/'Indices T.P. matériaux'!U$35=0,NA(),'Indices T.P. matériaux'!U35/'Indices T.P. matériaux'!U$35),NA()) -> 1 | AF114: =IFERROR(IF('Indices T.P. matériaux'!V35/'Indices T.P. matériaux'!V$35=0,NA(),'Indices T.P. matériaux'!V35/'Indices T.P. matériaux'!V$35),NA()) -> 1 | AG114: =IFERROR(IF('Indices T.P. matériaux'!W35/'Indices T.P. matériaux'!W$35=0,NA(),'Indices T.P. matériaux'!W35/'Indices T.P. matériaux'!W$35),NA()) -> 1 | AH114: =IFERROR(IF('Indices T.P. matériaux'!X35/'Indices T.P. matériaux'!X$35=0,NA(),'Indices T.P. matériaux'!X35/'Indices T.P. matériaux'!X$35),NA()) -> 1 | AI114: =IFERROR(IF('Indices T.P. matériaux'!Y35/'Indices T.P. matériaux'!Y$35=0,NA(),'Indices T.P. matériaux'!Y35/'Indices T.P. matériaux'!Y$35),NA()) -> 1 | AJ114: =IFERROR(IF('Indices T.P. matériaux'!Z35/'Indices T.P. matériaux'!Z$35=0,NA(),'Indices T.P. matériaux'!Z35/'Indices T.P. matériaux'!Z$35),NA()) -> 1 | AK114: =IFERROR(IF('Indices T.P. matériaux'!AA35/'Indices T.P. matériaux'!AA$35=0,NA(),'Indices T.P. matériaux'!AA35/'Indices T.P. matériaux'!AA$35),NA()) -> 1 | AL114: =IFERROR(IF('Indices T.P. matériaux'!AB35/'Indices T.P. matériaux'!AB$35=0,NA(),'Indices T.P. matériaux'!AB35/'Indices T.P. matériaux'!AB$35),NA()) -> 1 | AM114: =IFERROR(IF('Indices T.P. matériaux'!AC35/'Indices T.P. matériaux'!AC$35=0,NA(),'Indices T.P. matériaux'!AC35/'Indices T.P. matériaux'!AC$35),NA()) -> 1 | AN114: =IFERROR(IF('Indices T.P. matériaux'!AD35/'Indices T.P. matériaux'!AD$35=0,NA(),'Indices T.P. matériaux'!AD35/'Indices T.P. matériaux'!AD$35),NA()) -> 1 | AO114: =IFERROR(IF('Indices T.P. matériaux'!AE35/'Indices T.P. matériaux'!AE$35=0,NA(),'Indices T.P. matériaux'!AE35/'Indices T.P. matériaux'!AE$35),NA()) -> 1 | AP114: =IFERROR(IF('Indices T.P. matériaux'!AF35/'Indices T.P. matériaux'!AF$35=0,NA(),'Indices T.P. matériaux'!AF35/'Indices T.P. matériaux'!AF$35),NA()) -> 1 | AQ114: =IFERROR(IF('Indices T.P. matériaux'!AG35/'Indices T.P. matériaux'!AG$35=0,NA(),'Indices T.P. matériaux'!AG35/'Indices T.P. matériaux'!AG$35),NA()) -> 1 | AR114: =IFERROR(IF('Indices T.P. matériaux'!AH35/'Indices T.P. matériaux'!AH$35=0,NA(),'Indices T.P. matériaux'!AH35/'Indices T.P. matériaux'!AH$35),NA()) -> 1 | AS114: =IFERROR(IF('Indices T.P. matériaux'!AI35/'Indices T.P. matériaux'!AI$35=0,NA(),'Indices T.P. matériaux'!AI35/'Indices T.P. matériaux'!AI$35),NA()) -> 1 | AT114: =IFERROR(IF('Indices T.P. matériaux'!AJ35/'Indices T.P. matériaux'!AJ$35=0,NA(),'Indices T.P. matériaux'!AJ35/'Indices T.P. matériaux'!AJ$35),NA()) -> 1 | AU114: =IFERROR(IF('Indices T.P. matériaux'!AK35/'Indices T.P. matériaux'!AK$35=0,NA(),'Indices T.P. matériaux'!AK35/'Indices T.P. matériaux'!AK$35),NA()) -> 1 | AV114: =IFERROR(IF('Indices T.P. matériaux'!AL35/'Indices T.P. matériaux'!AL$35=0,NA(),'Indices T.P. matériaux'!AL35/'Indices T.P. matériaux'!AL$35),NA()) -> 1 | AW114: =IFERROR(IF('Indices T.P. matériaux'!AM35/'Indices T.P. matériaux'!AM$35=0,NA(),'Indices T.P. matériaux'!AM35/'Indices T.P. matériaux'!AM$35),NA()) -> 1 | AX114: =IFERROR(IF('Indices T.P. matériaux'!AN35/'Indices T.P. matériaux'!AN$35=0,NA(),'Indices T.P. matériaux'!AN35/'Indices T.P. matériaux'!AN$35),NA()) -> 1 | AY114: =IFERROR(IF('Indices T.P. matériaux'!AO35/'Indices T.P. matériaux'!AO$35=0,NA(),'Indices T.P. matériaux'!AO35/'Indices T.P. matériaux'!AO$35),NA()) -> 1 | AZ114: =IFERROR(IF('Indices T.P. matériaux'!AP35/'Indices T.P. matériaux'!AP$35=0,NA(),'Indices T.P. matériaux'!AP35/'Indices T.P. matériaux'!AP$35),NA()) -> 1 | BA114: =IFERROR(IF('Indices T.P. matériaux'!AQ35/'Indices T.P. matériaux'!AQ$35=0,NA(),'Indices T.P. matériaux'!AQ35/'Indices T.P. matériaux'!AQ$35),NA()) -> 1 | BB114: =IFERROR(IF('Indices T.P. matériaux'!AR35/'Indices T.P. matériaux'!AR$35=0,NA(),'Indices T.P. matériaux'!AR35/'Indices T.P. matériaux'!AR$35),NA()) -> 1 | BC114: =IFERROR(IF('Indices T.P. matériaux'!AS35/'Indices T.P. matériaux'!AS$35=0,NA(),'Indices T.P. matériaux'!AS35/'Indices T.P. matériaux'!AS$35),NA()) -> 1 | BD114: =IFERROR(IF('Indices T.P. matériaux'!AT35/'Indices T.P. matériaux'!AT$35=0,NA(),'Indices T.P. matériaux'!AT35/'Indices T.P. matériaux'!AT$35),NA()) -> 1 | BE114: =IFERROR(IF('Indices T.P. matériaux'!AU35/'Indices T.P. matériaux'!AU$35=0,NA(),'Indices T.P. matériaux'!AU35/'Indices T.P. matériaux'!AU$35),NA()) -> 1 | BF114: =IFERROR(IF('Indices T.P. matériaux'!AV35/'Indices T.P. matériaux'!AV$35=0,NA(),'Indices T.P. matériaux'!AV35/'Indices T.P. matériaux'!AV$35),NA()) -> 1 | BG114: =IFERROR(IF('Indices T.P. matériaux'!AW35/'Indices T.P. matériaux'!AW$35=0,NA(),'Indices T.P. matériaux'!AW35/'Indices T.P. matériaux'!AW$35),NA()) -> 1 | BH114: =IFERROR(IF('Indices T.P. matériaux'!AX35/'Indices T.P. matériaux'!AX$35=0,NA(),'Indices T.P. matériaux'!AX35/'Indices T.P. matériaux'!AX$35),NA()) -> 1 | BI114: =IFERROR(IF('Indices T.P. matériaux'!AY35/'Indices T.P. matériaux'!AY$35=0,NA(),'Indices T.P. matériaux'!AY35/'Indices T.P. matériaux'!AY$35),NA()) -> 1 | BJ114: =IFERROR(IF('Indices T.P. matériaux'!AZ35/'Indices T.P. matériaux'!AZ$35=0,NA(),'Indices T.P. matériaux'!AZ35/'Indices T.P. matériaux'!AZ$35),NA()) -> 1 | BK114: =IFERROR(IF('Indices T.P. matériaux'!BA35/'Indices T.P. matériaux'!BA$35=0,NA(),'Indices T.P. matériaux'!BA35/'Indices T.P. matériaux'!BA$35),NA()) -> 1 | BL114: =IFERROR(IF('Indices T.P. matériaux'!BB35/'Indices T.P. matériaux'!BB$35=0,NA(),'Indices T.P. matériaux'!BB35/'Indices T.P. matériaux'!BB$35),NA()) -> 1 | BM114: =IFERROR(IF('Indices T.P. matériaux'!BC35/'Indices T.P. matériaux'!BC$35=0,NA(),'Indices T.P. matériaux'!BC35/'Indices T.P. matériaux'!BC$35),NA()) -> 1 | BN114: =IFERROR(IF('Indices T.P. matériaux'!BD35/'Indices T.P. matériaux'!BD$35=0,NA(),'Indices T.P. matériaux'!BD35/'Indices T.P. matériaux'!BD$35),NA()) -> 1 | BO114: =IFERROR(IF('Indices T.P. matériaux'!BE35/'Indices T.P. matériaux'!BE$35=0,NA(),'Indices T.P. matériaux'!BE35/'Indices T.P. matériaux'!BE$35),NA()) -> 1 | BP114: =IFERROR(IF('Indices T.P. matériaux'!BF35/'Indices T.P. matériaux'!BF$35=0,NA(),'Indices T.P. matériaux'!BF35/'Indices T.P. matériaux'!BF$35),NA()) -> 1 | BQ114: =IFERROR(IF('Indices T.P. matériaux'!BG35/'Indices T.P. matériaux'!BG$35=0,NA(),'Indices T.P. matériaux'!BG35/'Indices T.P. matériaux'!BG$35),NA()) -> 1 | BR114: =IFERROR(IF('Indices T.P. matériaux'!BH35/'Indices T.P. matériaux'!BH$35=0,NA(),'Indices T.P. matériaux'!BH35/'Indices T.P. matériaux'!BH$35),NA()) -> 1 | BS114: =IFERROR(IF('Indices T.P. matériaux'!BI35/'Indices T.P. matériaux'!BI$35=0,NA(),'Indices T.P. matériaux'!BI35/'Indices T.P. matériaux'!BI$35),NA()) -> 1 | BT114: =IFERROR(IF('Indices T.P. matériaux'!BJ35/'Indices T.P. matériaux'!BJ$35=0,NA(),'Indices T.P. matériaux'!BJ35/'Indices T.P. matériaux'!BJ$35),NA()) -> 1 | BU114: =IFERROR(IF('Indices T.P. matériaux'!BK35/'Indices T.P. matériaux'!BK$35=0,NA(),'Indices T.P. matériaux'!BK35/'Indices T.P. matériaux'!BK$35),NA()) -> 1 | BV114: =IFERROR(IF('Indices T.P. matériaux'!BL35/'Indices T.P. matériaux'!BL$35=0,NA(),'Indices T.P. matériaux'!BL35/'Indices T.P. matériaux'!BL$35),NA()) -> 1 | BW114: =IFERROR(IF('Indices T.P. matériaux'!BM35/'Indices T.P. matériaux'!BM$35=0,NA(),'Indices T.P. matériaux'!BM35/'Indices T.P. matériaux'!BM$35),NA()) -> 1 | BX114: =IFERROR(IF('Indices T.P. matériaux'!BN35/'Indices T.P. matériaux'!BN$35=0,NA(),'Indices T.P. matériaux'!BN35/'Indices T.P. matériaux'!BN$35),NA()) -> 1 | BY114: =IFERROR(IF('Indices T.P. matériaux'!BO35/'Indices T.P. matériaux'!BO$35=0,NA(),'Indices T.P. matériaux'!BO35/'Indices T.P. matériaux'!BO$35),NA()) -> 1 | BZ114: =IFERROR(IF('Indices T.P. matériaux'!BP35/'Indices T.P. matériaux'!BP$35=0,NA(),'Indices T.P. matériaux'!BP35/'Indices T.P. matériaux'!BP$35),NA()) -> 1 | CA114: =IFERROR(IF('Indices T.P. matériaux'!BQ35/'Indices T.P. matériaux'!BQ$35=0,NA(),'Indices T.P. matériaux'!BQ35/'Indices T.P. matériaux'!BQ$35),NA()) -> 1 | CB114: =IFERROR(IF('Indices T.P. matériaux'!BR35/'Indices T.P. matériaux'!BR$35=0,NA(),'Indices T.P. matériaux'!BR35/'Indices T.P. matériaux'!BR$35),NA()) -> 1 | CC114: =IFERROR(IF('Indices T.P. matériaux'!BS35/'Indices T.P. matériaux'!BS$35=0,NA(),'Indices T.P. matériaux'!BS35/'Indices T.P. matériaux'!BS$35),NA()) -> 1 | CD114: =IFERROR(IF('Indices T.P. matériaux'!BT35/'Indices T.P. matériaux'!BT$35=0,NA(),'Indices T.P. matériaux'!BT35/'Indices T.P. matériaux'!BT$35),NA()) -> 1 | CE114: =IFERROR(IF('Indices T.P. matériaux'!BU35/'Indices T.P. matériaux'!BU$35=0,NA(),'Indices T.P. matériaux'!BU35/'Indices T.P. matériaux'!BU$35),NA()) -> 1 | CF114: =IFERROR(IF('Indices T.P. matériaux'!BV35/'Indices T.P. matériaux'!BV$35=0,NA(),'Indices T.P. matériaux'!BV35/'Indices T.P. matériaux'!BV$35),NA()) -> 1 | CG114: =IFERROR(IF('Indices T.P. matériaux'!BW35/'Indices T.P. matériaux'!BW$35=0,NA(),'Indices T.P. matériaux'!BW35/'Indices T.P. matériaux'!BW$35),NA()) -> 1 | CH114: =IFERROR(IF('Indices T.P. matériaux'!BX35/'Indices T.P. matériaux'!BX$35=0,NA(),'Indices T.P. matériaux'!BX35/'Indices T.P. matériaux'!BX$35),NA()) -> 1 | CI114: =IFERROR(IF('Indices T.P. matériaux'!BY35/'Indices T.P. matériaux'!BY$35=0,NA(),'Indices T.P. matériaux'!BY35/'Indices T.P. matériaux'!BY$35),NA()) -> 1 | CJ114: =IFERROR(IF('Indices T.P. matériaux'!BZ35/'Indices T.P. matériaux'!BZ$35=0,NA(),'Indices T.P. matériaux'!BZ35/'Indices T.P. matériaux'!BZ$35),NA()) -> 1 | CK114: =IFERROR(IF('Indices T.P. matériaux'!CA35/'Indices T.P. matériaux'!CA$35=0,NA(),'Indices T.P. matériaux'!CA35/'Indices T.P. matériaux'!CA$35),NA()) -> 1 | CL114: =IFERROR(IF('Indices T.P. matériaux'!CB35/'Indices T.P. matériaux'!CB$35=0,NA(),'Indices T.P. matériaux'!CB35/'Indices T.P. matériaux'!CB$35),NA()) -> 1 | CM114: =IFERROR(IF('Indices T.P. matériaux'!CC35/'Indices T.P. matériaux'!CC$35=0,NA(),'Indices T.P. matériaux'!CC35/'Indices T.P. matériaux'!CC$35),NA()) -> 1 | CN114: =IFERROR(IF('Indices T.P. matériaux'!CD35/'Indices T.P. matériaux'!CD$35=0,NA(),'Indices T.P. matériaux'!CD35/'Indices T.P. matériaux'!CD$35),NA()) -> 1 | CO114: =IFERROR(IF('Indices T.P. matériaux'!CE35/'Indices T.P. matériaux'!CE$35=0,NA(),'Indices T.P. matériaux'!CE35/'Indices T.P. matériaux'!CE$35),NA()) -> 1 | CP114: =IFERROR(IF('Indices T.P. matériaux'!CF35/'Indices T.P. matériaux'!CF$35=0,NA(),'Indices T.P. matériaux'!CF35/'Indices T.P. matériaux'!CF$35),NA()) -> 1 | CQ114: =IFERROR(IF('Indices T.P. matériaux'!CG35/'Indices T.P. matériaux'!CG$35=0,NA(),'Indices T.P. matériaux'!CG35/'Indices T.P. matériaux'!CG$35),NA()) -> 1 | CR114: =IFERROR(IF('Indices T.P. matériaux'!CH35/'Indices T.P. matériaux'!CH$35=0,NA(),'Indices T.P. matériaux'!CH35/'Indices T.P. matériaux'!CH$35),NA()) -> 1 | CS114: =IFERROR(IF('Indices T.P. matériaux'!CI35/'Indices T.P. matériaux'!CI$35=0,NA(),'Indices T.P. matériaux'!CI35/'Indices T.P. matériaux'!CI$35),NA()) -> 1 | CT114: =IFERROR(IF('Indices T.P. matériaux'!CJ35/'Indices T.P. matériaux'!CJ$35=0,NA(),'Indices T.P. matériaux'!CJ35/'Indices T.P. matériaux'!CJ$35),NA()) -> 1 | CU114: =IFERROR(IF('Indices T.P. matériaux'!CK35/'Indices T.P. matériaux'!CK$35=0,NA(),'Indices T.P. matériaux'!CK35/'Indices T.P. matériaux'!CK$35),NA()) -> 1 | CV114: =IFERROR(IF('Indices T.P. matériaux'!CL35/'Indices T.P. matériaux'!CL$35=0,NA(),'Indices T.P. matériaux'!CL35/'Indices T.P. matériaux'!CL$35),NA()) -> 1 | CW114: =IFERROR(IF('Indices T.P. matériaux'!CM35/'Indices T.P. matériaux'!CM$35=0,NA(),'Indices T.P. matériaux'!CM35/'Indices T.P. matériaux'!CM$35),NA()) -> 1 | CX114: =IFERROR(IF('Indices T.P. matériaux'!CN35/'Indices T.P. matériaux'!CN$35=0,NA(),'Indices T.P. matériaux'!CN35/'Indices T.P. matériaux'!CN$35),NA()) -> 1 | CY114: =IFERROR(IF('Indices T.P. matériaux'!CO35/'Indices T.P. matériaux'!CO$35=0,NA(),'Indices T.P. matériaux'!CO35/'Indices T.P. matériaux'!CO$35),NA()) -> 1 | CZ114: =IFERROR(IF('Indices T.P. matériaux'!CP35/'Indices T.P. matériaux'!CP$35=0,NA(),'Indices T.P. matériaux'!CP35/'Indices T.P. matériaux'!CP$35),NA()) -> 1 | DA114: =IFERROR(IF('Indices T.P. matériaux'!CQ35/'Indices T.P. matériaux'!CQ$35=0,NA(),'Indices T.P. matériaux'!CQ35/'Indices T.P. matériaux'!CQ$35),NA()) -> 1 | DB114: =IFERROR(IF('Indices T.P. matériaux'!CR35/'Indices T.P. matériaux'!CR$35=0,NA(),'Indices T.P. matériaux'!CR35/'Indices T.P. matériaux'!CR$35),NA()) -> 1 | DC114: =IFERROR(IF('Indices T.P. matériaux'!CS35/'Indices T.P. matériaux'!CS$35=0,NA(),'Indices T.P. matériaux'!CS35/'Indices T.P. matériaux'!CS$35),NA()) -> 1 | DD114: =IFERROR(IF('Indices T.P. matériaux'!CT35/'Indices T.P. matériaux'!CT$35=0,NA(),'Indices T.P. matériaux'!CT35/'Indices T.P. matériaux'!CT$35),NA()) -> 1 | DE114: =IFERROR(IF('Indices T.P. matériaux'!CU35/'Indices T.P. matériaux'!CU$35=0,NA(),'Indices T.P. matériaux'!CU35/'Indices T.P. matériaux'!CU$35),NA()) -> 1 | DF114: =IFERROR(IF('Indices T.P. matériaux'!CV35/'Indices T.P. matériaux'!CV$35=0,NA(),'Indices T.P. matériaux'!CV35/'Indices T.P. matériaux'!CV$35),NA()) -> 1 | DG114: =IFERROR(IF('Indices T.P. matériaux'!CW35/'Indices T.P. matériaux'!CW$35=0,NA(),'Indices T.P. matériaux'!CW35/'Indices T.P. matériaux'!CW$35),NA()) -> 1 | DH114: =IFERROR(IF('Indices T.P. matériaux'!CX35/'Indices T.P. matériaux'!CX$35=0,NA(),'Indices T.P. matériaux'!CX35/'Indices T.P. matériaux'!CX$35),NA()) -> 1 | DI114: =IFERROR(IF('Indices T.P. matériaux'!CY35/'Indices T.P. matériaux'!CY$35=0,NA(),'Indices T.P. matériaux'!CY35/'Indices T.P. matériaux'!CY$35),NA()) -> 1 | DJ114: =IFERROR(IF('Indices T.P. matériaux'!CZ35/'Indices T.P. matériaux'!CZ$35=0,NA(),'Indices T.P. matériaux'!CZ35/'Indices T.P. matériaux'!CZ$35),NA()) -> 1 | DK114: =IFERROR(IF('Indices T.P. matériaux'!DA35/'Indices T.P. matériaux'!DA$35=0,NA(),'Indices T.P. matériaux'!DA35/'Indices T.P. matériaux'!DA$35),NA()) -> 1 | DL114: =IFERROR(IF('Indices T.P. matériaux'!DB35/'Indices T.P. matériaux'!DB$35=0,NA(),'Indices T.P. matériaux'!DB35/'Indices T.P. matériaux'!DB$35),NA()) -> 1 | DM114: =IFERROR(IF('Indices T.P. matériaux'!DC35/'Indices T.P. matériaux'!DC$35=0,NA(),'Indices T.P. matériaux'!DC35/'Indices T.P. matériaux'!DC$35),NA()) -> 1 | DN114: =IFERROR(IF('Indices T.P. matériaux'!DD35/'Indices T.P. matériaux'!DD$35=0,NA(),'Indices T.P. matériaux'!DD35/'Indices T.P. matériaux'!DD$35),NA()) -> 1 | DO114: =IFERROR(IF('Indices T.P. matériaux'!DE35/'Indices T.P. matériaux'!DE$35=0,NA(),'Indices T.P. matériaux'!DE35/'Indices T.P. matériaux'!DE$35),NA()) -> 1 | DP114: =IFERROR(IF('Indices T.P. matériaux'!DF35/'Indices T.P. matériaux'!DF$35=0,NA(),'Indices T.P. matériaux'!DF35/'Indices T.P. matériaux'!DF$35),NA()) -> 1 | DQ114: =IFERROR(IF('Indices Grymafer'!D30/'Indices Grymafer'!D$30=0,NA(),'Indices Grymafer'!D30/'Indices Grymafer'!D$30),NA()) -> 1 | DR114: =IFERROR(IF('Indices Grymafer'!E30/'Indices Grymafer'!E$30=0,NA(),'Indices Grymafer'!E30/'Indices Grymafer'!E$30),NA()) -> 1 | DS114: =IFERROR(IF('Indices Grymafer'!F30/'Indices Grymafer'!F$30=0,NA(),'Indices Grymafer'!F30/'Indices Grymafer'!F$30),NA()) -> 1 | DT114: =IFERROR(IF('Indices Grymafer'!G30/'Indices Grymafer'!G$30=0,NA(),'Indices Grymafer'!G30/'Indices Grymafer'!G$30),NA()) -> 1 | DU114: =IFERROR(IF('Indices T.P. matériaux'!DG35/'Indices T.P. matériaux'!DG$35=0,NA(),'Indices T.P. matériaux'!DG35/'Indices T.P. matériaux'!DG$35),NA()) -> 1 | DV114: =IFERROR(IF('Indices T.P. matériaux'!DH35/'Indices T.P. matériaux'!DH$35=0,NA(),'Indices T.P. matériaux'!DH35/'Indices T.P. matériaux'!DH$35),NA()) -> 1 | DW114: =IFERROR(IF('Indices T.P. matériaux'!DI35/'Indices T.P. matériaux'!DI$35=0,NA(),'Indices T.P. matériaux'!DI35/'Indices T.P. matériaux'!DI$35),NA()) -> 1 | DX114: =IFERROR(IF('Indices T.P. matériaux'!DJ$35/'Indices T.P. matériaux'!DJ$35=0,NA(),'Indices T.P. matériaux'!DJ35/'Indices T.P. matériaux'!DJ$35),NA()) -> 1 | DY114: =IFERROR(IF('Indices T.P. matériaux'!DK$35/'Indices T.P. matériaux'!DK$35=0,NA(),'Indices T.P. matériaux'!DK35/'Indices T.P. matériaux'!DK$35),NA()) -> 1 | DZ114: =IFERROR(IF('Indices T.P. matériaux'!DL$35/'Indices T.P. matériaux'!DL$35=0,NA(),'Indices T.P. matériaux'!DL35/'Indices T.P. matériaux'!DL$35),NA()) -> 1 | EA114: =IFERROR(IF('Indices T.P. matériaux'!DM35/'Indices T.P. matériaux'!DM$35=0,NA(),'Indices T.P. matériaux'!DM35/'Indices T.P. matériaux'!DM$35),NA()) -> 1 | ED114: 2018-01-01 | EE114: =IFERROR(IF('Indices des produits & services'!C28/'Indices des produits & services'!C$28=0,NA(),'Indices des produits & services'!C28/'Indices des produits & services'!C$28),NA()) -> 1 | EF114: =IFERROR(IF('Indices des produits & services'!D28/'Indices des produits & services'!D$28=0,NA(),'Indices des produits & services'!D28/'Indices des produits & services'!D$28),NA()) -> 1 | EG114: =IFERROR(IF('Indices des produits & services'!E28/'Indices des produits & services'!E$28=0,NA(),'Indices des produits & services'!E28/'Indices des produits & services'!E$28),NA()) -> 1 | EH114: =IFERROR(IF('Indices des produits & services'!F28/'Indices des produits & services'!F$28=0,NA(),'Indices des produits & services'!F28/'Indices des produits & services'!F$28),NA()) -> 1 | EI114: =IFERROR(IF('Indices des produits & services'!G28/'Indices des produits & services'!G$28=0,NA(),'Indices des produits & services'!G28/'Indices des produits & services'!G$28),NA()) -> 1 | EJ114: =IFERROR(IF('Indices des produits & services'!H28/'Indices des produits & services'!H$28=0,NA(),'Indices des produits & services'!H28/'Indices des produits & services'!H$28),NA()) -> 1 | EK114: =IFERROR(IF('Indices des produits & services'!I28/'Indices des produits & services'!I$28=0,NA(),'Indices des produits & services'!I28/'Indices des produits & services'!I$28),NA()) -> 1 | EL114: =IFERROR(IF('Indices des produits & services'!J28/'Indices des produits & services'!J$28=0,NA(),'Indices des produits & services'!J28/'Indices des produits & services'!J$28),NA()) -> 1 | EM114: =IFERROR(IF('Indices des produits & services'!K28/'Indices des produits & services'!K$28=0,NA(),'Indices des produits & services'!K28/'Indices des produits & services'!K$28),NA()) -> 1 | EN114: =IFERROR(IF('Indices des produits & services'!L28/'Indices des produits & services'!L$28=0,NA(),'Indices des produits & services'!L28/'Indices des produits & services'!L$28),NA()) -> 1 | EO114: =IFERROR(IF('Indices des produits & services'!M28/'Indices des produits & services'!M$28=0,NA(),'Indices des produits & services'!M28/'Indices des produits & services'!M$28),NA()) -> 1 | EP114: =IFERROR(IF('Indices des produits & services'!N28/'Indices des produits & services'!N$28=0,NA(),'Indices des produits & services'!N28/'Indices des produits & services'!N$28),NA()) -> 1 | EQ114: =IFERROR(IF('Indices des produits & services'!O28/'Indices des produits & services'!O$28=0,NA(),'Indices des produits & services'!O28/'Indices des produits & services'!O$28),NA()) -> 1 | ER114: =IFERROR(IF('Indices des produits & services'!P28/'Indices des produits & services'!P$28=0,NA(),'Indices des produits & services'!P28/'Indices des produits & services'!P$28),NA()) -> 1 | ES114: =IFERROR(IF('Indices des produits & services'!Q28/'Indices des produits & services'!Q$28=0,NA(),'Indices des produits & services'!Q28/'Indices des produits & services'!Q$28),NA()) -> 1 | ET114: =IFERROR(IF('Indices des produits & services'!R28/'Indices des produits & services'!R$28=0,NA(),'Indices des produits & services'!R28/'Indices des produits & services'!R$28),NA()) -> 1 | EU114: =IFERROR(IF('Indices des produits & services'!S28/'Indices des produits & services'!S$28=0,NA(),'Indices des produits & services'!S28/'Indices des produits & services'!S$28),NA()) -> 1 | EV114: =IFERROR(IF('Indices des produits & services'!T28/'Indices des produits & services'!T$28=0,NA(),'Indices des produits & services'!T28/'Indices des produits & services'!T$28),NA()) -> 1 | EW114: =IFERROR(IF('Indices des produits & services'!U28/'Indices des produits & services'!U$28=0,NA(),'Indices des produits & services'!U28/'Indices des produits & services'!U$28),NA()) -> 1 | EX114: =IFERROR(IF('Indices des produits & services'!V28/'Indices des produits & services'!V$28=0,NA(),'Indices des produits & services'!V28/'Indices des produits & services'!V$28),NA()) -> 1 | EY114: =IFERROR(IF('Indices des produits & services'!W28/'Indices des produits & services'!W$28=0,NA(),'Indices des produits & services'!W28/'Indices des produits & services'!W$28),NA()) -> 1 | EZ114: =IFERROR(IF('Indices des produits & services'!X28/'Indices des produits & services'!X$28=0,NA(),'Indices des produits & services'!X28/'Indices des produits & services'!X$28),NA()) -> 1 | FA114: =IFERROR(IF('Indices des produits & services'!Y28/'Indices des produits & services'!Y$28=0,NA(),'Indices des produits & services'!Y28/'Indices des produits & services'!Y$28),NA()) -> 1 | FB114: =IFERROR(IF('Indices des produits & services'!Z28/'Indices des produits & services'!Z$28=0,NA(),'Indices des produits & services'!Z28/'Indices des produits & services'!Z$28),NA()) -> 1 | FC114: =IFERROR(IF('Indices des produits & services'!AA28/'Indices des produits & services'!AA$28=0,NA(),'Indices des produits & services'!AA28/'Indices des produits & services'!AA$28),NA()) -> 1 | FD114: =IFERROR(IF('Indices des produits & services'!AB28/'Indices des produits & services'!AB$28=0,NA(),'Indices des produits & services'!AB28/'Indices des produits & services'!AB$28),NA()) -> 1 | FE114: =IFERROR(IF('Indices des produits & services'!AC28/'Indices des produits & services'!AC$28=0,NA(),'Indices des produits & services'!AC28/'Indices des produits & services'!AC$28),NA()) -> 1 | FF114: =IFERROR(IF('Indices des produits & services'!AD28/'Indices des produits & services'!AD$28=0,NA(),'Indices des produits & services'!AD28/'Indices des produits & services'!AD$28),NA()) -> 1 | FG114: =IFERROR(IF('Indices des produits & services'!AE28/'Indices des produits & services'!AE$28=0,NA(),'Indices des produits & services'!AE28/'Indices des produits & services'!AE$28),NA()) -> 1 | FH114: =IFERROR(IF('Indices des produits & services'!AF28/'Indices des produits & services'!AF$28=0,NA(),'Indices des produits & services'!AF28/'Indices des produits & services'!AF$28),NA()) -> 1 | FI114: =IFERROR(IF('Indices des produits & services'!AG28/'Indices des produits & services'!AG$28=0,NA(),'Indices des produits & services'!AG28/'Indices des produits & services'!AG$28),NA()) -> 1 | FJ114: =IFERROR(IF('Indices des produits & services'!AH28/'Indices des produits & services'!AH$28=0,NA(),'Indices des produits & services'!AH28/'Indices des produits & services'!AH$28),NA()) -> 1 | FK114: =IFERROR(IF('Indices des produits & services'!AI28/'Indices des produits & services'!AI$28=0,NA(),'Indices des produits & services'!AI28/'Indices des produits & services'!AI$28),NA()) -> 1 | FL114: =IFERROR(IF('Indices des produits & services'!AJ28/'Indices des produits & services'!AJ$28=0,NA(),'Indices des produits & services'!AJ28/'Indices des produits & services'!AJ$28),NA()) -> 1 | FM114: =IFERROR(IF('Indices des produits & services'!AK28/'Indices des produits & services'!AK$28=0,NA(),'Indices des produits & services'!AK28/'Indices des produits & services'!AK$28),NA()) -> 1 | FN114: =IFERROR(IF('Indices des produits & services'!AL28/'Indices des produits & services'!AL$28=0,NA(),'Indices des produits & services'!AL28/'Indices des produits & services'!AL$28),NA()) -> 1 | FO114: =IFERROR(IF('Indices des produits & services'!AM28/'Indices des produits & services'!AM$28=0,NA(),'Indices des produits & services'!AM28/'Indices des produits & services'!AM$28),NA()) -> 1 | FP114: =IFERROR(IF('Indices des produits & services'!AN28/'Indices des produits & services'!AN$28=0,NA(),'Indices des produits & services'!AN28/'Indices des produits & services'!AN$28),NA()) -> 1 | FQ114: =IFERROR(IF('Indices des produits & services'!AO28/'Indices des produits & services'!AO$28=0,NA(),'Indices des produits & services'!AO28/'Indices des produits & services'!AO$28),NA()) -> 1 | FR114: =IFERROR(IF('Indices des produits & services'!AP28/'Indices des produits & services'!AP$28=0,NA(),'Indices des produits & services'!AP28/'Indices des produits & services'!AP$28),NA()) -> 1 | FS114: =IFERROR(IF('Indices des produits & services'!AQ28/'Indices des produits & services'!AQ$28=0,NA(),'Indices des produits & services'!AQ28/'Indices des produits & services'!AQ$28),NA()) -> 1 | FT114: =IFERROR(IF('Indices des produits & services'!AR28/'Indices des produits & services'!AR$28=0,NA(),'Indices des produits & services'!AR28/'Indices des produits & services'!AR$28),NA()) -> 1 | FU114: =IFERROR(IF('Indices des produits & services'!AS28/'Indices des produits & services'!AS$28=0,NA(),'Indices des produits & services'!AS28/'Indices des produits & services'!AS$28),NA()) -> 1 | FV114: =IFERROR(IF('Indices des produits & services'!AT28/'Indices des produits & services'!AT$28=0,NA(),'Indices des produits & services'!AT28/'Indices des produits & services'!AT$28),NA()) -> 1 | FW114: =IFERROR(IF('Indices des produits & services'!AU28/'Indices des produits & services'!AU$28=0,NA(),'Indices des produits & services'!AU28/'Indices des produits & services'!AU$28),NA()) -> 1 | FX114: =IFERROR(IF('Indices des produits & services'!AV28/'Indices des produits & services'!AV$28=0,NA(),'Indices des produits & services'!AV28/'Indices des produits & services'!AV$28),NA()) -> 1 | FY114: =IFERROR(IF('Indices des produits & services'!AW28/'Indices des produits & services'!AW$28=0,NA(),'Indices des produits & services'!AW28/'Indices des produits & services'!AW$28),NA()) -> 1 | FZ114: =IFERROR(IF('Indices des produits & services'!AX28/'Indices des produits & services'!AX$28=0,NA(),'Indices des produits & services'!AX28/'Indices des produits & services'!AX$28),NA()) -> 1 | GA114: =IFERROR(IF('Indices des produits & services'!AY28/'Indices des produits & services'!AY$28=0,NA(),'Indices des produits & services'!AY28/'Indices des produits & services'!AY$28),NA()) -> 1 | GB114: =IFERROR(IF('Indices des produits & services'!AZ28/'Indices des produits & services'!AZ$28=0,NA(),'Indices des produits & services'!AZ28/'Indices des produits & services'!AZ$28),NA()) -> 1 | GC114: =IFERROR(IF('Indices des produits & services'!BA28/'Indices des produits & services'!BA$28=0,NA(),'Indices des produits & services'!BA28/'Indices des produits & services'!BA$28),NA()) -> 1 | GD114: =IFERROR(IF('Indices des produits & services'!BB28/'Indices des produits & services'!BB$28=0,NA(),'Indices des produits & services'!BB28/'Indices des produits & services'!BB$28),NA()) -> 1 | GE114: =IFERROR(IF('Indices des produits & services'!BC28/'Indices des produits & services'!BC$28=0,NA(),'Indices des produits & services'!BC28/'Indices des produits & services'!BC$28),NA()) -> 1 | GF114: =IFERROR(IF('Indices des produits & services'!BD28/'Indices des produits & services'!BD$28=0,NA(),'Indices des produits & services'!BD28/'Indices des produits & services'!BD$28),NA()) -> 1 | GG114: =IFERROR(IF('Indices des produits & services'!BE28/'Indices des produits & services'!BE$28=0,NA(),'Indices des produits & services'!BE28/'Indices des produits & services'!BE$28),NA()) -> 1 | GH114: =IFERROR(IF('Indices des produits & services'!BF28/'Indices des produits & services'!BF$28=0,NA(),'Indices des produits & services'!BF28/'Indices des produits & services'!BF$28),NA()) -> 1 | GI114: =IFERROR(IF('Indices des produits & services'!BG28/'Indices des produits & services'!BG$28=0,NA(),'Indices des produits & services'!BG28/'Indices des produits & services'!BG$28),NA()) -> 1 | GJ114: =IFERROR(IF('Indices des produits & services'!BH28/'Indices des produits & services'!BH$28=0,NA(),'Indices des produits & services'!BH28/'Indices des produits & services'!BH$28),NA()) -> 1 | GK114: =IFERROR(IF('Indices des produits & services'!BI28/'Indices des produits & services'!BI$28=0,NA(),'Indices des produits & services'!BI28/'Indices des produits & services'!BI$28),NA()) -> 1 | GL114: =IFERROR(IF('Indices des produits & services'!BJ28/'Indices des produits & services'!BJ$28=0,NA(),'Indices des produits & services'!BJ28/'Indices des produits & services'!BJ$28),NA()) -> 1 | GM114: =IFERROR(IF('Indices des produits & services'!BK28/'Indices des produits & services'!BK$28=0,NA(),'Indices des produits & services'!BK28/'Indices des produits & services'!BK$28),NA()) -> 1 | GN114: =IFERROR(IF('Indices des produits & services'!BL28/'Indices des produits & services'!BL$28=0,NA(),'Indices des produits & services'!BL28/'Indices des produits & services'!BL$28),NA()) -> 1 | GO114: =IFERROR(IF('Indices des produits & services'!BM28/'Indices des produits & services'!BM$28=0,NA(),'Indices des produits & services'!BM28/'Indices des produits & services'!BM$28),NA()) -> 1 | GP114: =IFERROR(IF('Indices des produits & services'!BN28/'Indices des produits & services'!BN$28=0,NA(),'Indices des produits & services'!BN28/'Indices des produits & services'!BN$28),NA()) -> 1 | GQ114: =IFERROR(IF('Indices des produits & services'!BO28/'Indices des produits & services'!BO$28=0,NA(),'Indices des produits & services'!BO28/'Indices des produits & services'!BO$28),NA()) -> 1 | GR114: =IFERROR(IF('Indices des produits & services'!BP28/'Indices des produits & services'!BP$28=0,NA(),'Indices des produits & services'!BP28/'Indices des produits & services'!BP$28),NA()) -> 1 | GS114: =IFERROR(IF('Indices des produits & services'!BQ28/'Indices des produits & services'!BQ$28=0,NA(),'Indices des produits & services'!BQ28/'Indices des produits & services'!BQ$28),NA()) -> 1 | GT114: =IFERROR(IF('Indices des produits & services'!BR28/'Indices des produits & services'!BR$28=0,NA(),'Indices des produits & services'!BR28/'Indices des produits & services'!BR$28),NA()) -> 1 | GU114: =IFERROR(IF('Indices des produits & services'!BS28/'Indices des produits & services'!BS$28=0,NA(),'Indices des produits & services'!BS28/'Indices des produits & services'!BS$28),NA()) -> 1 | GV114: =IFERROR(IF('Indices des produits & services'!BT28/'Indices des produits & services'!BT$28=0,NA(),'Indices des produits & services'!BT28/'Indices des produits & services'!BT$28),NA()) -> 1 | GW114: =IFERROR(IF('Indices des produits & services'!BU28/'Indices des produits & services'!BU$28=0,NA(),'Indices des produits & services'!BU28/'Indices des produits & services'!BU$28),NA()) -> 1 | GX114: =IFERROR(IF('Indices des produits & services'!BV28/'Indices des produits & services'!BV$28=0,NA(),'Indices des produits & services'!BV28/'Indices des produits & services'!BV$28),NA()) -> 1 | GY114: =IFERROR(IF('Indices des produits & services'!BW28/'Indices des produits & services'!BW$28=0,NA(),'Indices des produits & services'!BW28/'Indices des produits & services'!BW$28),NA()) -> 1 | GZ114: =IFERROR(IF('Indices des produits & services'!BX28/'Indices des produits & services'!BX$28=0,NA(),'Indices des produits & services'!BX28/'Indices des produits & services'!BX$28),NA()) -> 1 | HA114: =IFERROR(IF('Indices des produits & services'!BY28/'Indices des produits & services'!BY$28=0,NA(),'Indices des produits & services'!BY28/'Indices des produits & services'!BY$28),NA()) -> 1 | HB114: =IFERROR(IF('Indices des produits & services'!BZ28/'Indices des produits & services'!BZ$28=0,NA(),'Indices des produits & services'!BZ28/'Indices des produits & services'!BZ$28),NA()) -> 1 | HC114: =IFERROR(IF('Indices des produits & services'!CA28/'Indices des produits & services'!CA$28=0,NA(),'Indices des produits & services'!CA28/'Indices des produits & services'!CA$28),NA()) -> 1 | HD114: =IFERROR(IF('Indices des produits & services'!CB28/'Indices des produits & services'!CB$28=0,NA(),'Indices des produits & services'!CB28/'Indices des produits & services'!CB$28),NA()) -> 1 | HE114: =IFERROR(IF('Indices des produits & services'!CC28/'Indices des produits & services'!CC$28=0,NA(),'Indices des produits & services'!CC28/'Indices des produits & services'!CC$28),NA()) -> 1 | HF114: =IFERROR(IF('Indices des produits & services'!CD28/'Indices des produits & services'!CD$28=0,NA(),'Indices des produits & services'!CD28/'Indices des produits & services'!CD$28),NA()) -> 1 | HG114: =IFERROR(IF('Indices des produits & services'!CE28/'Indices des produits & services'!CE$28=0,NA(),'Indices des produits & services'!CE28/'Indices des produits & services'!CE$28),NA()) -> 1 | HH114: =IFERROR(IF('Indices des produits & services'!CF28/'Indices des produits & services'!CF$28=0,NA(),'Indices des produits & services'!CF28/'Indices des produits & services'!CF$28),NA()) -> 1 | HI114: =IFERROR(IF('Indices des produits & services'!CG28/'Indices des produits & services'!CG$28=0,NA(),'Indices des produits & services'!CG28/'Indices des produits & services'!CG$28),NA()) -> 1 | HJ114: =IFERROR(IF('Indices des produits & services'!CH28/'Indices des produits & services'!CH$28=0,NA(),'Indices des produits & services'!CH28/'Indices des produits & services'!CH$28),NA()) -> 1 | HK114: =IFERROR(IF('Indices des produits & services'!CI28/'Indices des produits & services'!CI$28=0,NA(),'Indices des produits & services'!CI28/'Indices des produits & services'!CI$28),NA()) -> 1 | HL114: =IFERROR(IF('Indices des produits & services'!CJ28/'Indices des produits & services'!CJ$28=0,NA(),'Indices des produits & services'!CJ28/'Indices des produits & services'!CJ$28),NA()) -> 1 | HM114: =IFERROR(IF('Indices des produits & services'!CK28/'Indices des produits & services'!CK$28=0,NA(),'Indices des produits & services'!CK28/'Indices des produits & services'!CK$28),NA()) -> 1 | HN114: =IFERROR(IF('Indices des produits & services'!CL28/'Indices des produits & services'!CL$28=0,NA(),'Indices des produits & services'!CL28/'Indices des produits & services'!CL$28),NA()) -> 1 | HO114: =IFERROR(IF('Indices des produits & services'!CM28/'Indices des produits & services'!CM$28=0,NA(),'Indices des produits & services'!CM28/'Indices des produits & services'!CM$28),NA()) -> 1 | HQ114: 2018-01-01 | HR114: =IFERROR(IF('Indices courants'!K27/'Indices courants'!K$27=0,NA(),'Indices courants'!K27/'Indices courants'!K$27),NA()) -> 1 | HS114: =IFERROR(IF('Indices courants'!L27/'Indices courants'!L$27=0,NA(),'Indices courants'!L27/'Indices courants'!L$27),NA()) -> 1 | HT114: =IFERROR(IF('Indices courants'!M27/'Indices courants'!M$27=0,NA(),'Indices courants'!M27/'Indices courants'!M$27),NA()) -> 1 | HU114: =IFERROR(IF('Indices courants'!N27/'Indices courants'!N$27=0,NA(),'Indices courants'!N27/'Indices courants'!N$27),NA()) -> 1 | HV114: =IFERROR(IF('Indices courants'!O27/'Indices courants'!O$27=0,NA(),'Indices courants'!O27/'Indices courants'!O$27),NA()) -> 1 | HW114: =IFERROR(IF('Indices courants'!P27/'Indices courants'!P$27=0,NA(),'Indices courants'!P27/'Indices courants'!P$27),NA()) -> 1 | HX114: =IFERROR(IF('Indices courants'!Q27/'Indices courants'!Q$27=0,NA(),'Indices courants'!Q27/'Indices courants'!Q$27),NA()) -> 1 | HY114: =IFERROR(IF('Indices courants'!R27/'Indices courants'!R$27=0,NA(),'Indices courants'!R27/'Indices courants'!R$27),NA()) -> 1 | HZ114: =IFERROR(IF('Indices courants'!S27/'Indices courants'!S$27=0,NA(),'Indices courants'!S27/'Indices courants'!S$27),NA()) -> 1 | IA114: =IFERROR(IF('Indices courants'!T27/'Indices courants'!T$27=0,NA(),'Indices courants'!T27/'Indices courants'!T$27),NA()) -> 1 | IB114: =IFERROR(IF('Indices courants'!U27/'Indices courants'!U$27=0,NA(),'Indices courants'!U27/'Indices courants'!U$27),NA()) -> 1 | IC114: =IFERROR(IF('Indices courants'!V27/'Indices courants'!V$27=0,NA(),'Indices courants'!V27/'Indices courants'!V$27),NA()) -> 1 | ID114: =IFERROR(IF('Indices courants'!W27/'Indices courants'!W$27=0,NA(),'Indices courants'!W27/'Indices courants'!W$27),NA()) -> 1 | IE114: =IFERROR(IF('Indices courants'!X27/'Indices courants'!X$27=0,NA(),'Indices courants'!X27/'Indices courants'!X$27),NA()) -> 1 | IF114: =Tableau21[[#This Row],[Evolution des prix selon formule de révision - indice i 2021]] -> 1 | IG114: =Tableau21[[#This Row],[Evolution des prix selon formule de révision - indice i]] -> 1 | IH114: =Tableau21[[#This Row],[Formule de révision - indice i 2021]] -> 1 | II114: =Tableau21[[#This Row],[Formule de révision - indice i]] -> 1 | IJ114: =IFERROR(IF('Indexations des salaires par CP'!E52/'Indexations des salaires par CP'!E$52=0,NA(),'Indexations des salaires par CP'!E52/'Indexations des salaires par CP'!E$52),NA()) -> 1 | IK114: =IFERROR(IF('Indexations des salaires par CP'!F52/'Indexations des salaires par CP'!F$52=0,NA(),'Indexations des salaires par CP'!F52/'Indexations des salaires par CP'!F$52),NA()) -> 1 | IL114: =IFERROR(IF('Indexations des salaires par CP'!G52/'Indexations des salaires par CP'!G$52=0,NA(),'Indexations des salaires par CP'!G52/'Indexations des salaires par CP'!G$52),NA()) -> 1 | IM114: =IFERROR(IF('Indexations des salaires par CP'!H52/'Indexations des salaires par CP'!H$52=0,NA(),'Indexations des salaires par CP'!H52/'Indexations des salaires par CP'!H$52),NA()) -> 1 | IN114: =IFERROR(IF('Indexations des salaires par CP'!I52/'Indexations des salaires par CP'!I$52=0,NA(),'Indexations des salaires par CP'!I52/'Indexations des salaires par CP'!I$52),NA()) -> 1 | IO114: =IFERROR(IF('Indexations des salaires par CP'!J52/'Indexations des salaires par CP'!J$52=0,NA(),'Indexations des salaires par CP'!J52/'Indexations des salaires par CP'!J$52),NA()) -> 1 | IP114: =IFERROR(IF('Indexations des salaires par CP'!K52/'Indexations des salaires par CP'!K$52=0,NA(),'Indexations des salaires par CP'!K52/'Indexations des salaires par CP'!K$52),NA()) -> 1 | IQ114: =IFERROR(IF('Indexations des salaires par CP'!L52/'Indexations des salaires par CP'!L$52=0,NA(),'Indexations des salaires par CP'!L52/'Indexations des salaires par CP'!L$52),NA()) -> 1 | IR114: =IFERROR(IF('Indexations des salaires par CP'!M52/'Indexations des salaires par CP'!M$52=0,NA(),'Indexations des salaires par CP'!M52/'Indexations des salaires par CP'!M$52),NA()) -> 1 | IS114: =IFERROR(IF('Indexations des salaires par CP'!T52/'Indexations des salaires par CP'!T$52=0,NA(),'Indexations des salaires par CP'!T52/'Indexations des salaires par CP'!T$52),NA()) -> 1 | IT114: =IFERROR(IF('Indexations des salaires par CP'!U52/'Indexations des salaires par CP'!U$52=0,NA(),'Indexations des salaires par CP'!U52/'Indexations des salaires par CP'!U$52),NA()) -> 1 | IU114: =IFERROR(IF('Indexations des salaires par CP'!V52/'Indexations des salaires par CP'!V$52=0,NA(),'Indexations des salaires par CP'!V52/'Indexations des salaires par CP'!V$52),NA()) -> 1 | IV114: =IFERROR(IF('Indexations des salaires par CP'!W52/'Indexations des salaires par CP'!W$52=0,NA(),'Indexations des salaires par CP'!W52/'Indexations des salaires par CP'!W$52),NA()) -> 1 | IW114: =IFERROR(IF('Indexations des salaires par CP'!AD52/'Indexations des salaires par CP'!AD$52=0,NA(),'Indexations des salaires par CP'!AD52/'Indexations des salaires par CP'!AD$52),NA()) -> 1 | IX114: =IFERROR(IF('Indexations des salaires par CP'!AE52/'Indexations des salaires par CP'!AE$52=0,NA(),'Indexations des salaires par CP'!AE52/'Indexations des salaires par CP'!AE$52),NA()) -> 1 | IY114: =IFERROR(IF('Indexations des salaires par CP'!AF52/'Indexations des salaires par CP'!AF$52=0,NA(),'Indexations des salaires par CP'!AF52/'Indexations des salaires par CP'!AF$52),NA()) -> 1 | IZ114: =IFERROR(IF('Indexations des salaires par CP'!AG52/'Indexations des salaires par CP'!AG$52=0,NA(),'Indexations des salaires par CP'!AG52/'Indexations des salaires par CP'!AG$52),NA()) -> 1 | JA114: =IFERROR(IF('Indexations des salaires par CP'!AH52/'Indexations des salaires par CP'!AH$52=0,NA(),'Indexations des salaires par CP'!AH52/'Indexations des salaires par CP'!AH$52),NA()) -> 1 | JB114: =IFERROR(IF('Indexations des salaires par CP'!AI52/'Indexations des salaires par CP'!AI$52=0,NA(),'Indexations des salaires par CP'!AI52/'Indexations des salaires par CP'!AI$52),NA()) -> 1 | JC114: =IFERROR(IF('Indexations des salaires par CP'!AP52/'Indexations des salaires par CP'!AP$52=0,NA(),'Indexations des salaires par CP'!AP52/'Indexations des salaires par CP'!AP$52),NA()) -> 1 | JD114: =IFERROR(IF('Indexations des salaires par CP'!AW52/'Indexations des salaires par CP'!AW$52=0,NA(),'Indexations des salaires par CP'!AW52/'Indexations des salaires par CP'!AW$52),NA()) -> 1 | JE114: =IFERROR(IF('Indexations des salaires par CP'!AX52/'Indexations des salaires par CP'!AX$52=0,NA(),'Indexations des salaires par CP'!AX52/'Indexations des salaires par CP'!AX$52),NA()) -> 1 | JF114: =IFERROR(IF('Indexations des salaires par CP'!AY52/'Indexations des salaires par CP'!AY$52=0,NA(),'Indexations des salaires par CP'!AY52/'Indexations des salaires par CP'!AY$52),NA()) -> 1 | JG114: =IFERROR(IF('Indexations des salaires par CP'!AZ52/'Indexations des salaires par CP'!AZ$52=0,NA(),'Indexations des salaires par CP'!AZ52/'Indexations des salaires par CP'!AZ$52),NA()) -> 1 | JH114: =IFERROR(IF('Indexations des salaires par CP'!BA52/'Indexations des salaires par CP'!BA$52=0,NA(),'Indexations des salaires par CP'!BA52/'Indexations des salaires par CP'!BA$52),NA()) -> 1 | JI114: =IFERROR(IF('Indexations des salaires par CP'!BB52/'Indexations des salaires par CP'!BB$52=0,NA(),'Indexations des salaires par CP'!BB52/'Indexations des salaires par CP'!BB$52),NA()) -> 1 | JJ114: =IFERROR(IF('Indexations des salaires par CP'!BC52/'Indexations des salaires par CP'!BC$52=0,NA(),'Indexations des salaires par CP'!BC52/'Indexations des salaires par CP'!BC$52),NA()) -> 1 | JK114: =IFERROR(IF('Indexations des salaires par CP'!BD52/'Indexations des salaires par CP'!BD$52=0,NA(),'Indexations des salaires par CP'!BD52/'Indexations des salaires par CP'!BD$52),NA()) -> 1 | JL114: =IFERROR(IF('Indexations des salaires par CP'!BK52/'Indexations des salaires par CP'!BK$52=0,NA(),'Indexations des salaires par CP'!BK52/'Indexations des salaires par CP'!BK$52),NA()) -> 1 | JM114: =IFERROR(IF('Indexations des salaires par CP'!BR52/'Indexations des salaires par CP'!BR$52=0,NA(),'Indexations des salaires par CP'!BR52/'Indexations des salaires par CP'!BR$52),NA()) -> 1 | JN114: =IFERROR(IF('Indexations des salaires par CP'!BS52/'Indexations des salaires par CP'!BS$52=0,NA(),'Indexations des salaires par CP'!BS52/'Indexations des salaires par CP'!BS$52),NA()) -> 1 | JO114: =IFERROR(IF('Indexations des salaires par CP'!BT52/'Indexations des salaires par CP'!BT$52=0,NA(),'Indexations des salaires par CP'!BT52/'Indexations des salaires par CP'!BT$52),NA()) -> 1 | JP114: =IFERROR(IF('Indexations des salaires par CP'!BU52/'Indexations des salaires par CP'!BU$52=0,NA(),'Indexations des salaires par CP'!BU52/'Indexations des salaires par CP'!BU$52),NA()) -> 1 | JQ114: =IFERROR(IF('Indexations des salaires par CP'!BV52/'Indexations des salaires par CP'!BV$52=0,NA(),'Indexations des salaires par CP'!BV52/'Indexations des salaires par CP'!BV$52),NA()) -> 1 | JR114: =IFERROR(IF('Indexations des salaires par CP'!BW52/'Indexations des salaires par CP'!BW$52=0,NA(),'Indexations des salaires par CP'!BW52/'Indexations des salaires par CP'!BW$52),NA()) -> 1 | JS114: =IFERROR(IF('Indexations des salaires par CP'!BX52/'Indexations des salaires par CP'!BX$52=0,NA(),'Indexations des salaires par CP'!BX52/'Indexations des salaires par CP'!BX$52),NA()) -> 1 | JT114: =IFERROR(IF('Indexations des salaires par CP'!BY52/'Indexations des salaires par CP'!BY$52=0,NA(),'Indexations des salaires par CP'!BY52/'Indexations des salaires par CP'!BY$52),NA()) -> 1 | JU114: =IFERROR(IF('Indexations des salaires par CP'!BZ52/'Indexations des salaires par CP'!BZ$52=0,NA(),'Indexations des salaires par CP'!BZ52/'Indexations des salaires par CP'!BZ$52),NA()) -> 1 | JV114: =IFERROR(IF('Indexations des salaires par CP'!CA52/'Indexations des salaires par CP'!CA$52=0,NA(),'Indexations des salaires par CP'!CA52/'Indexations des salaires par CP'!CA$52),NA()) -> 1 | JW114: =IFERROR(IF('Indexations des salaires par CP'!CB52/'Indexations des salaires par CP'!CB$52=0,NA(),'Indexations des salaires par CP'!CB52/'Indexations des salaires par CP'!CB$52),NA()) -> 1 | JX114: =IFERROR(IF('Indexations des salaires par CP'!CC52/'Indexations des salaires par CP'!CC$52=0,NA(),'Indexations des salaires par CP'!CC52/'Indexations des salaires par CP'!CC$52),NA()) -> 1 | JY114: =IFERROR(IF('Indexations des salaires par CP'!CD52/'Indexations des salaires par CP'!CD$52=0,NA(),'Indexations des salaires par CP'!CD52/'Indexations des salaires par CP'!CD$52),NA()) -> 1 | JZ114: =IFERROR(IF('Indexations des salaires par CP'!CE52/'Indexations des salaires par CP'!CE$52=0,NA(),'Indexations des salaires par CP'!CE52/'Indexations des salaires par CP'!CE$52),NA()) -> 1 | KA114: =IFERROR(IF('Indexations des salaires par CP'!CF52/'Indexations des salaires par CP'!CF$52=0,NA(),'Indexations des salaires par CP'!CF52/'Indexations des salaires par CP'!CF$52),NA()) -> 1 | KB114: =IFERROR(IF('Indexations des salaires par CP'!CG52/'Indexations des salaires par CP'!CG$52=0,NA(),'Indexations des salaires par CP'!CG52/'Indexations des salaires par CP'!CG$52),NA()) -> 1 | KC114: =IFERROR(IF('Indexations des salaires par CP'!CH52/'Indexations des salaires par CP'!CH$52=0,NA(),'Indexations des salaires par CP'!CH52/'Indexations des salaires par CP'!CH$52),NA()) -> 1 | KD114: =IFERROR(IF('Indexations des salaires par CP'!CI52/'Indexations des salaires par CP'!CI$52=0,NA(),'Indexations des salaires par CP'!CI52/'Indexations des salaires par CP'!CI$52),NA()) -> 1 | KE114: =IFERROR(IF('Indexations des salaires par CP'!CJ52/'Indexations des salaires par CP'!CJ$52=0,NA(),'Indexations des salaires par CP'!CJ52/'Indexations des salaires par CP'!CJ$52),NA()) -> 1 | KF114: =IFERROR(IF('Indexations des salaires par CP'!CQ52/'Indexations des salaires par CP'!CQ$52=0,NA(),'Indexations des salaires par CP'!CQ52/'Indexations des salaires par CP'!CQ$52),NA()) -> 1 | KG114: =IFERROR(IF('Indexations des salaires par CP'!CR52/'Indexations des salaires par CP'!CR$52=0,NA(),'Indexations des salaires par CP'!CR52/'Indexations des salaires par CP'!CR$52),NA()) -> 1 | KH114: =IFERROR(IF('Indexations des salaires par CP'!CS52/'Indexations des salaires par CP'!CS$52=0,NA(),'Indexations des salaires par CP'!CS52/'Indexations des salaires par CP'!CS$52),NA()) -> 1 | KI114: =IFERROR(IF('Indexations des salaires par CP'!CT52/'Indexations des salaires par CP'!CT$52=0,NA(),'Indexations des salaires par CP'!CT52/'Indexations des salaires par CP'!CT$52),NA()) -> 1 | KJ114: =IFERROR(IF('Indexations des salaires par CP'!CU52/'Indexations des salaires par CP'!CU$52=0,NA(),'Indexations des salaires par CP'!CU52/'Indexations des salaires par CP'!CU$52),NA()) -> 1 | KK114: =IFERROR(IF('Indexations des salaires par CP'!DB52/'Indexations des salaires par CP'!DB$52=0,NA(),'Indexations des salaires par CP'!DB52/'Indexations des salaires par CP'!DB$52),NA()) -> 1 | KL114: =IFERROR(IF('Indexations des salaires par CP'!DC52/'Indexations des salaires par CP'!DC$52=0,NA(),'Indexations des salaires par CP'!DC52/'Indexations des salaires par CP'!DC$52),NA()) -> 1 | KM114: =IFERROR(IF('Indexations des salaires par CP'!DD52/'Indexations des salaires par CP'!DD$52=0,NA(),'Indexations des salaires par CP'!DD52/'Indexations des salaires par CP'!DD$52),NA()) -> 1 | KN114: =IFERROR(IF('Indexations des salaires par CP'!DE52/'Indexations des salaires par CP'!DE$52=0,NA(),'Indexations des salaires par CP'!DE52/'Indexations des salaires par CP'!DE$52),NA()) -> 1 | KO114: =IFERROR(IF('Indexations des salaires par CP'!DL52/'Indexations des salaires par CP'!DL$52=0,NA(),'Indexations des salaires par CP'!DL52/'Indexations des salaires par CP'!DL$52),NA()) -> 1 | KP114: =IFERROR(IF('Indexations des salaires par CP'!DM52/'Indexations des salaires par CP'!DM$52=0,NA(),'Indexations des salaires par CP'!DM52/'Indexations des salaires par CP'!DM$52),NA()) -> 1 | KQ114: =IFERROR(IF('Indexations des salaires par CP'!DN52/'Indexations des salaires par CP'!DN$52=0,NA(),'Indexations des salaires par CP'!DN52/'Indexations des salaires par CP'!DN$52),NA()) -> 1 | KR114: =IFERROR(IF('Indexations des salaires par CP'!DO52/'Indexations des salaires par CP'!DO$52=0,NA(),'Indexations des salaires par CP'!DO52/'Indexations des salaires par CP'!DO$52),NA()) -> 1 | KS114: =IFERROR(IF('Indexations des salaires par CP'!DP52/'Indexations des salaires par CP'!DP$52=0,NA(),'Indexations des salaires par CP'!DP52/'Indexations des salaires par CP'!DP$52),NA()) -> 1 | KT114: =IFERROR(IF('Indexations des salaires par CP'!DQ52/'Indexations des salaires par CP'!DQ$52=0,NA(),'Indexations des salaires par CP'!DQ52/'Indexations des salaires par CP'!DQ$52),NA()) -> 1 | KU114: =IFERROR(IF('Indexations des salaires par CP'!DR52/'Indexations des salaires par CP'!DR$52=0,NA(),'Indexations des salaires par CP'!DR52/'Indexations des salaires par CP'!DR$52),NA()) -> 1 | KV114: =IFERROR(IF('Indexations des salaires par CP'!DS52/'Indexations des salaires par CP'!DS$52=0,NA(),'Indexations des salaires par CP'!DS52/'Indexations des salaires par CP'!DS$52),NA()) -> 1 | KW114: =IFERROR(IF('Indexations des salaires par CP'!DT52/'Indexations des salaires par CP'!DT$52=0,NA(),'Indexations des salaires par CP'!DT52/'Indexations des salaires par CP'!DT$52),NA()) -> 1 | KX114: =IFERROR(IF('Indexations des salaires par CP'!DU52/'Indexations des salaires par CP'!DU$52=0,NA(),'Indexations des salaires par CP'!DU52/'Indexations des salaires par CP'!DU$52),NA()) -> 1 | KY114: =IFERROR(IF('Indexations des salaires par CP'!DV52/'Indexations des salaires par CP'!DV$52=0,NA(),'Indexations des salaires par CP'!DV52/'Indexations des salaires par CP'!DV$52),NA()) -> 1 | KZ114: =IFERROR(IF('Indexations des salaires par CP'!DW52/'Indexations des salaires par CP'!DW$52=0,NA(),'Indexations des salaires par CP'!DW52/'Indexations des salaires par CP'!DW$52),NA()) -> 1 | LA114: =IFERROR(IF('Indexations des salaires par CP'!DX52/'Indexations des salaires par CP'!DX$52=0,NA(),'Indexations des salaires par CP'!DX52/'Indexations des salaires par CP'!DX$52),NA()) -> 1
B115: 2018-02-01 | C115: =IFERROR(IF('Indices courants'!E28/'Indices courants'!$E$27=0,NA(),'Indices courants'!E28/'Indices courants'!$E$27),NA()) -> 1.001776875 | D115: =IFERROR(IF('Indices courants'!F28/'Indices courants'!$F$27=0,NA(),'Indices courants'!F28/'Indices courants'!$F$27),NA()) -> 1.009613397 | E115: =IFERROR(IF('Indices courants'!G28/'Indices courants'!$G$27=0,NA(),'Indices courants'!G28/'Indices courants'!$G$27),NA()) -> 0.9962311558 | F115: =IFERROR(IF('Indices courants'!H28/'Indices courants'!$H$27=0,NA(),'Indices courants'!H28/'Indices courants'!$H$27),NA()) -> 1 | G115: =IFERROR(IF('Indices courants'!I28/'Indices courants'!I$27=0,NA(),'Indices courants'!I28/'Indices courants'!I$27),NA()) -> 0.9940675767 | H115: =IFERROR(IF('Indices courants'!J28/'Indices courants'!J$27=0,NA(),'Indices courants'!J28/'Indices courants'!J$27),NA()) -> 1.006684661 | I115: 1 | J115: 1 | K115: 1 | L115: 1 | M115: =IFERROR(IF('Indices T.P. matériaux'!C36/'Indices T.P. matériaux'!C$35=0,NA(),'Indices T.P. matériaux'!C36/'Indices T.P. matériaux'!C$35),NA()) -> 1 | N115: =IFERROR(IF('Indices T.P. matériaux'!D36/'Indices T.P. matériaux'!D$35=0,NA(),'Indices T.P. matériaux'!D36/'Indices T.P. matériaux'!D$35),NA()) -> 1 | O115: =IFERROR(IF('Indices T.P. matériaux'!E36/'Indices T.P. matériaux'!E$35=0,NA(),'Indices T.P. matériaux'!E36/'Indices T.P. matériaux'!E$35),NA()) -> 1 | P115: =IFERROR(IF('Indices T.P. matériaux'!F36/'Indices T.P. matériaux'!F$35=0,NA(),'Indices T.P. matériaux'!F36/'Indices T.P. matériaux'!F$35),NA()) -> 1 | Q115: =IFERROR(IF('Indices T.P. matériaux'!G36/'Indices T.P. matériaux'!G$35=0,NA(),'Indices T.P. matériaux'!G36/'Indices T.P. matériaux'!G$35),NA()) -> 1 | R115: =IFERROR(IF('Indices T.P. matériaux'!H36/'Indices T.P. matériaux'!H$35=0,NA(),'Indices T.P. matériaux'!H36/'Indices T.P. matériaux'!H$35),NA()) -> 1 | S115: =IFERROR(IF('Indices T.P. matériaux'!I36/'Indices T.P. matériaux'!I$35=0,NA(),'Indices T.P. matériaux'!I36/'Indices T.P. matériaux'!I$35),NA()) -> 1 | T115: =IFERROR(IF('Indices T.P. matériaux'!J36/'Indices T.P. matériaux'!J$35=0,NA(),'Indices T.P. matériaux'!J36/'Indices T.P. matériaux'!J$35),NA()) -> 1 | U115: =IFERROR(IF('Indices T.P. matériaux'!K36/'Indices T.P. matériaux'!K$35=0,NA(),'Indices T.P. matériaux'!K36/'Indices T.P. matériaux'!K$35),NA()) -> 1 | V115: =IFERROR(IF('Indices T.P. matériaux'!L36/'Indices T.P. matériaux'!L$35=0,NA(),'Indices T.P. matériaux'!L36/'Indices T.P. matériaux'!L$35),NA()) -> 1 | W115: =IFERROR(IF('Indices T.P. matériaux'!M36/'Indices T.P. matériaux'!M$35=0,NA(),'Indices T.P. matériaux'!M36/'Indices T.P. matériaux'!M$35),NA()) -> 1 | X115: =IFERROR(IF('Indices T.P. matériaux'!N36/'Indices T.P. matériaux'!N$35=0,NA(),'Indices T.P. matériaux'!N36/'Indices T.P. matériaux'!N$35),NA()) -> 1 | Y115: =IFERROR(IF('Indices T.P. matériaux'!O36/'Indices T.P. matériaux'!O$35=0,NA(),'Indices T.P. matériaux'!O36/'Indices T.P. matériaux'!O$35),NA()) -> 1 | Z115: =IFERROR(IF('Indices T.P. matériaux'!P36/'Indices T.P. matériaux'!P$35=0,NA(),'Indices T.P. matériaux'!P36/'Indices T.P. matériaux'!P$35),NA()) -> 1 | AA115: =IFERROR(IF('Indices T.P. matériaux'!Q36/'Indices T.P. matériaux'!Q$35=0,NA(),'Indices T.P. matériaux'!Q36/'Indices T.P. matériaux'!Q$35),NA()) -> 1 | AB115: =IFERROR(IF('Indices T.P. matériaux'!R36/'Indices T.P. matériaux'!R$35=0,NA(),'Indices T.P. matériaux'!R36/'Indices T.P. matériaux'!R$35),NA()) -> 1 | AC115: =IFERROR(IF('Indices T.P. matériaux'!S36/'Indices T.P. matériaux'!S$35=0,NA(),'Indices T.P. matériaux'!S36/'Indices T.P. matériaux'!S$35),NA()) -> 1 | AD115: =IFERROR(IF('Indices T.P. matériaux'!T36/'Indices T.P. matériaux'!T$35=0,NA(),'Indices T.P. matériaux'!T36/'Indices T.P. matériaux'!T$35),NA()) -> 1 | AE115: =IFERROR(IF('Indices T.P. matériaux'!U36/'Indices T.P. matériaux'!U$35=0,NA(),'Indices T.P. matériaux'!U36/'Indices T.P. matériaux'!U$35),NA()) -> 1 | AF115: =IFERROR(IF('Indices T.P. matériaux'!V36/'Indices T.P. matériaux'!V$35=0,NA(),'Indices T.P. matériaux'!V36/'Indices T.P. matériaux'!V$35),NA()) -> 1 | AG115: =IFERROR(IF('Indices T.P. matériaux'!W36/'Indices T.P. matériaux'!W$35=0,NA(),'Indices T.P. matériaux'!W36/'Indices T.P. matériaux'!W$35),NA()) -> 1 | AH115: =IFERROR(IF('Indices T.P. matériaux'!X36/'Indices T.P. matériaux'!X$35=0,NA(),'Indices T.P. matériaux'!X36/'Indices T.P. matériaux'!X$35),NA()) -> 1 | AI115: =IFERROR(IF('Indices T.P. matériaux'!Y36/'Indices T.P. matériaux'!Y$35=0,NA(),'Indices T.P. matériaux'!Y36/'Indices T.P. matériaux'!Y$35),NA()) -> 1 | AJ115: =IFERROR(IF('Indices T.P. matériaux'!Z36/'Indices T.P. matériaux'!Z$35=0,NA(),'Indices T.P. matériaux'!Z36/'Indices T.P. matériaux'!Z$35),NA()) -> 1 | AK115: =IFERROR(IF('Indices T.P. matériaux'!AA36/'Indices T.P. matériaux'!AA$35=0,NA(),'Indices T.P. matériaux'!AA36/'Indices T.P. matériaux'!AA$35),NA()) -> 1 | AL115: =IFERROR(IF('Indices T.P. matériaux'!AB36/'Indices T.P. matériaux'!AB$35=0,NA(),'Indices T.P. matériaux'!AB36/'Indices T.P. matériaux'!AB$35),NA()) -> 1 | AM115: =IFERROR(IF('Indices T.P. matériaux'!AC36/'Indices T.P. matériaux'!AC$35=0,NA(),'Indices T.P. matériaux'!AC36/'Indices T.P. matériaux'!AC$35),NA()) -> 1 | AN115: =IFERROR(IF('Indices T.P. matériaux'!AD36/'Indices T.P. matériaux'!AD$35=0,NA(),'Indices T.P. matériaux'!AD36/'Indices T.P. matériaux'!AD$35),NA()) -> 1 | AO115: =IFERROR(IF('Indices T.P. matériaux'!AE36/'Indices T.P. matériaux'!AE$35=0,NA(),'Indices T.P. matériaux'!AE36/'Indices T.P. matériaux'!AE$35),NA()) -> 1 | AP115: =IFERROR(IF('Indices T.P. matériaux'!AF36/'Indices T.P. matériaux'!AF$35=0,NA(),'Indices T.P. matériaux'!AF36/'Indices T.P. matériaux'!AF$35),NA()) -> 1 | AQ115: =IFERROR(IF('Indices T.P. matériaux'!AG36/'Indices T.P. matériaux'!AG$35=0,NA(),'Indices T.P. matériaux'!AG36/'Indices T.P. matériaux'!AG$35),NA()) -> 1 | AR115: =IFERROR(IF('Indices T.P. matériaux'!AH36/'Indices T.P. matériaux'!AH$35=0,NA(),'Indices T.P. matériaux'!AH36/'Indices T.P. matériaux'!AH$35),NA()) -> 1 | AS115: =IFERROR(IF('Indices T.P. matériaux'!AI36/'Indices T.P. matériaux'!AI$35=0,NA(),'Indices T.P. matériaux'!AI36/'Indices T.P. matériaux'!AI$35),NA()) -> 1.004952724 | AT115: =IFERROR(IF('Indices T.P. matériaux'!AJ36/'Indices T.P. matériaux'!AJ$35=0,NA(),'Indices T.P. matériaux'!AJ36/'Indices T.P. matériaux'!AJ$35),NA()) -> 1.004844961 | AU115: =IFERROR(IF('Indices T.P. matériaux'!AK36/'Indices T.P. matériaux'!AK$35=0,NA(),'Indices T.P. matériaux'!AK36/'Indices T.P. matériaux'!AK$35),NA()) -> 1.004844961 | AV115: =IFERROR(IF('Indices T.P. matériaux'!AL36/'Indices T.P. matériaux'!AL$35=0,NA(),'Indices T.P. matériaux'!AL36/'Indices T.P. matériaux'!AL$35),NA()) -> 1.004882659 | AW115: =IFERROR(IF('Indices T.P. matériaux'!AM36/'Indices T.P. matériaux'!AM$35=0,NA(),'Indices T.P. matériaux'!AM36/'Indices T.P. matériaux'!AM$35),NA()) -> 1.007835455 | AX115: =IFERROR(IF('Indices T.P. matériaux'!AN36/'Indices T.P. matériaux'!AN$35=0,NA(),'Indices T.P. matériaux'!AN36/'Indices T.P. matériaux'!AN$35),NA()) -> 1.007961783 | AY115: =IFERROR(IF('Indices T.P. matériaux'!AO36/'Indices T.P. matériaux'!AO$35=0,NA(),'Indices T.P. matériaux'!AO36/'Indices T.P. matériaux'!AO$35),NA()) -> 1.007896077 | AZ115: =IFERROR(IF('Indices T.P. matériaux'!AP36/'Indices T.P. matériaux'!AP$35=0,NA(),'Indices T.P. matériaux'!AP36/'Indices T.P. matériaux'!AP$35),NA()) -> 1.002056555 | BA115: =IFERROR(IF('Indices T.P. matériaux'!AQ36/'Indices T.P. matériaux'!AQ$35=0,NA(),'Indices T.P. matériaux'!AQ36/'Indices T.P. matériaux'!AQ$35),NA()) -> 1.002120891 | BB115: =IFERROR(IF('Indices T.P. matériaux'!AR36/'Indices T.P. matériaux'!AR$35=0,NA(),'Indices T.P. matériaux'!AR36/'Indices T.P. matériaux'!AR$35),NA()) -> 1.002128792 | BC115: =IFERROR(IF('Indices T.P. matériaux'!AS36/'Indices T.P. matériaux'!AS$35=0,NA(),'Indices T.P. matériaux'!AS36/'Indices T.P. matériaux'!AS$35),NA()) -> 1.002101576 | BD115: =IFERROR(IF('Indices T.P. matériaux'!AT36/'Indices T.P. matériaux'!AT$35=0,NA(),'Indices T.P. matériaux'!AT36/'Indices T.P. matériaux'!AT$35),NA()) -> 1 | BE115: =IFERROR(IF('Indices T.P. matériaux'!AU36/'Indices T.P. matériaux'!AU$35=0,NA(),'Indices T.P. matériaux'!AU36/'Indices T.P. matériaux'!AU$35),NA()) -> 0.995770612 | BF115: =IFERROR(IF('Indices T.P. matériaux'!AV36/'Indices T.P. matériaux'!AV$35=0,NA(),'Indices T.P. matériaux'!AV36/'Indices T.P. matériaux'!AV$35),NA()) -> 0.9968679053 | BG115: =IFERROR(IF('Indices T.P. matériaux'!AW36/'Indices T.P. matériaux'!AW$35=0,NA(),'Indices T.P. matériaux'!AW36/'Indices T.P. matériaux'!AW$35),NA()) -> 0.9964010392 | BH115: =IFERROR(IF('Indices T.P. matériaux'!AX36/'Indices T.P. matériaux'!AX$35=0,NA(),'Indices T.P. matériaux'!AX36/'Indices T.P. matériaux'!AX$35),NA()) -> 1.018902439 | BI115: =IFERROR(IF('Indices T.P. matériaux'!AY36/'Indices T.P. matériaux'!AY$35=0,NA(),'Indices T.P. matériaux'!AY36/'Indices T.P. matériaux'!AY$35),NA()) -> 1.019266625 | BJ115: =IFERROR(IF('Indices T.P. matériaux'!AZ36/'Indices T.P. matériaux'!AZ$35=0,NA(),'Indices T.P. matériaux'!AZ36/'Indices T.P. matériaux'!AZ$35),NA()) -> 1.019302615 | BK115: =IFERROR(IF('Indices T.P. matériaux'!BA36/'Indices T.P. matériaux'!BA$35=0,NA(),'Indices T.P. matériaux'!BA36/'Indices T.P. matériaux'!BA$35),NA()) -> 1.01915551 | BL115: =IFERROR(IF('Indices T.P. matériaux'!BB36/'Indices T.P. matériaux'!BB$35=0,NA(),'Indices T.P. matériaux'!BB36/'Indices T.P. matériaux'!BB$35),NA()) -> 1.014773306 | BM115: =IFERROR(IF('Indices T.P. matériaux'!BC36/'Indices T.P. matériaux'!BC$35=0,NA(),'Indices T.P. matériaux'!BC36/'Indices T.P. matériaux'!BC$35),NA()) -> 0.9730769231 | BN115: =IFERROR(IF('Indices T.P. matériaux'!BD36/'Indices T.P. matériaux'!BD$35=0,NA(),'Indices T.P. matériaux'!BD36/'Indices T.P. matériaux'!BD$35),NA()) -> 1.008532423 | BO115: =IFERROR(IF('Indices T.P. matériaux'!BE36/'Indices T.P. matériaux'!BE$35=0,NA(),'Indices T.P. matériaux'!BE36/'Indices T.P. matériaux'!BE$35),NA()) -> 0.9844140062 | BP115: =IFERROR(IF('Indices T.P. matériaux'!BF36/'Indices T.P. matériaux'!BF$35=0,NA(),'Indices T.P. matériaux'!BF36/'Indices T.P. matériaux'!BF$35),NA()) -> 0.9767998828 | BQ115: =IFERROR(IF('Indices T.P. matériaux'!BG36/'Indices T.P. matériaux'!BG$35=0,NA(),'Indices T.P. matériaux'!BG36/'Indices T.P. matériaux'!BG$35),NA()) -> 1.016467066 | BR115: =IFERROR(IF('Indices T.P. matériaux'!BH36/'Indices T.P. matériaux'!BH$35=0,NA(),'Indices T.P. matériaux'!BH36/'Indices T.P. matériaux'!BH$35),NA()) -> 1 | BS115: =IFERROR(IF('Indices T.P. matériaux'!BI36/'Indices T.P. matériaux'!BI$35=0,NA(),'Indices T.P. matériaux'!BI36/'Indices T.P. matériaux'!BI$35),NA()) -> 0.9756097561 | BT115: =IFERROR(IF('Indices T.P. matériaux'!BJ36/'Indices T.P. matériaux'!BJ$35=0,NA(),'Indices T.P. matériaux'!BJ36/'Indices T.P. matériaux'!BJ$35),NA()) -> 1.016731017 | BU115: =IFERROR(IF('Indices T.P. matériaux'!BK36/'Indices T.P. matériaux'!BK$35=0,NA(),'Indices T.P. matériaux'!BK36/'Indices T.P. matériaux'!BK$35),NA()) -> 1.003490401 | BV115: =IFERROR(IF('Indices T.P. matériaux'!BL36/'Indices T.P. matériaux'!BL$35=0,NA(),'Indices T.P. matériaux'!BL36/'Indices T.P. matériaux'!BL$35),NA()) -> 1.004518072 | BW115: =IFERROR(IF('Indices T.P. matériaux'!BM36/'Indices T.P. matériaux'!BM$35=0,NA(),'Indices T.P. matériaux'!BM36/'Indices T.P. matériaux'!BM$35),NA()) -> 1.013597033 | BX115: =IFERROR(IF('Indices T.P. matériaux'!BN36/'Indices T.P. matériaux'!BN$35=0,NA(),'Indices T.P. matériaux'!BN36/'Indices T.P. matériaux'!BN$35),NA()) -> 1.009504413 | BY115: =IFERROR(IF('Indices T.P. matériaux'!BO36/'Indices T.P. matériaux'!BO$35=0,NA(),'Indices T.P. matériaux'!BO36/'Indices T.P. matériaux'!BO$35),NA()) -> 0.9921259843 | BZ115: =IFERROR(IF('Indices T.P. matériaux'!BP36/'Indices T.P. matériaux'!BP$35=0,NA(),'Indices T.P. matériaux'!BP36/'Indices T.P. matériaux'!BP$35),NA()) -> 0.9967320261 | CA115: =IFERROR(IF('Indices T.P. matériaux'!BQ36/'Indices T.P. matériaux'!BQ$35=0,NA(),'Indices T.P. matériaux'!BQ36/'Indices T.P. matériaux'!BQ$35),NA()) -> 1 | CB115: =IFERROR(IF('Indices T.P. matériaux'!BR36/'Indices T.P. matériaux'!BR$35=0,NA(),'Indices T.P. matériaux'!BR36/'Indices T.P. matériaux'!BR$35),NA()) -> 1 | CC115: =IFERROR(IF('Indices T.P. matériaux'!BS36/'Indices T.P. matériaux'!BS$35=0,NA(),'Indices T.P. matériaux'!BS36/'Indices T.P. matériaux'!BS$35),NA()) -> 1 | CD115: =IFERROR(IF('Indices T.P. matériaux'!BT36/'Indices T.P. matériaux'!BT$35=0,NA(),'Indices T.P. matériaux'!BT36/'Indices T.P. matériaux'!BT$35),NA()) -> 1 | CE115: =IFERROR(IF('Indices T.P. matériaux'!BU36/'Indices T.P. matériaux'!BU$35=0,NA(),'Indices T.P. matériaux'!BU36/'Indices T.P. matériaux'!BU$35),NA()) -> 1 | CF115: =IFERROR(IF('Indices T.P. matériaux'!BV36/'Indices T.P. matériaux'!BV$35=0,NA(),'Indices T.P. matériaux'!BV36/'Indices T.P. matériaux'!BV$35),NA()) -> 1 | CG115: =IFERROR(IF('Indices T.P. matériaux'!BW36/'Indices T.P. matériaux'!BW$35=0,NA(),'Indices T.P. matériaux'!BW36/'Indices T.P. matériaux'!BW$35),NA()) -> 1.007214733 | CH115: =IFERROR(IF('Indices T.P. matériaux'!BX36/'Indices T.P. matériaux'!BX$35=0,NA(),'Indices T.P. matériaux'!BX36/'Indices T.P. matériaux'!BX$35),NA()) -> 1.007280476 | CI115: =IFERROR(IF('Indices T.P. matériaux'!BY36/'Indices T.P. matériaux'!BY$35=0,NA(),'Indices T.P. matériaux'!BY36/'Indices T.P. matériaux'!BY$35),NA()) -> 1.007214071 | CJ115: =IFERROR(IF('Indices T.P. matériaux'!BZ36/'Indices T.P. matériaux'!BZ$35=0,NA(),'Indices T.P. matériaux'!BZ36/'Indices T.P. matériaux'!BZ$35),NA()) -> 1.007219624 | CK115: =IFERROR(IF('Indices T.P. matériaux'!CA36/'Indices T.P. matériaux'!CA$35=0,NA(),'Indices T.P. matériaux'!CA36/'Indices T.P. matériaux'!CA$35),NA()) -> 1.007231829 | CL115: =IFERROR(IF('Indices T.P. matériaux'!CB36/'Indices T.P. matériaux'!CB$35=0,NA(),'Indices T.P. matériaux'!CB36/'Indices T.P. matériaux'!CB$35),NA()) -> 1 | CM115: =IFERROR(IF('Indices T.P. matériaux'!CC36/'Indices T.P. matériaux'!CC$35=0,NA(),'Indices T.P. matériaux'!CC36/'Indices T.P. matériaux'!CC$35),NA()) -> 1 | CN115: =IFERROR(IF('Indices T.P. matériaux'!CD36/'Indices T.P. matériaux'!CD$35=0,NA(),'Indices T.P. matériaux'!CD36/'Indices T.P. matériaux'!CD$35),NA()) -> 1 | CO115: =IFERROR(IF('Indices T.P. matériaux'!CE36/'Indices T.P. matériaux'!CE$35=0,NA(),'Indices T.P. matériaux'!CE36/'Indices T.P. matériaux'!CE$35),NA()) -> 1 | CP115: =IFERROR(IF('Indices T.P. matériaux'!CF36/'Indices T.P. matériaux'!CF$35=0,NA(),'Indices T.P. matériaux'!CF36/'Indices T.P. matériaux'!CF$35),NA()) -> 1 | CQ115: =IFERROR(IF('Indices T.P. matériaux'!CG36/'Indices T.P. matériaux'!CG$35=0,NA(),'Indices T.P. matériaux'!CG36/'Indices T.P. matériaux'!CG$35),NA()) -> 1 | CR115: =IFERROR(IF('Indices T.P. matériaux'!CH36/'Indices T.P. matériaux'!CH$35=0,NA(),'Indices T.P. matériaux'!CH36/'Indices T.P. matériaux'!CH$35),NA()) -> 1 | CS115: =IFERROR(IF('Indices T.P. matériaux'!CI36/'Indices T.P. matériaux'!CI$35=0,NA(),'Indices T.P. matériaux'!CI36/'Indices T.P. matériaux'!CI$35),NA()) -> 1 | CT115: =IFERROR(IF('Indices T.P. matériaux'!CJ36/'Indices T.P. matériaux'!CJ$35=0,NA(),'Indices T.P. matériaux'!CJ36/'Indices T.P. matériaux'!CJ$35),NA()) -> 1 | CU115: =IFERROR(IF('Indices T.P. matériaux'!CK36/'Indices T.P. matériaux'!CK$35=0,NA(),'Indices T.P. matériaux'!CK36/'Indices T.P. matériaux'!CK$35),NA()) -> 0.9908159319 | CV115: =IFERROR(IF('Indices T.P. matériaux'!CL36/'Indices T.P. matériaux'!CL$35=0,NA(),'Indices T.P. matériaux'!CL36/'Indices T.P. matériaux'!CL$35),NA()) -> 0.9908163265 | CW115: =IFERROR(IF('Indices T.P. matériaux'!CM36/'Indices T.P. matériaux'!CM$35=0,NA(),'Indices T.P. matériaux'!CM36/'Indices T.P. matériaux'!CM$35),NA()) -> 0.9908415414 | CX115: =IFERROR(IF('Indices T.P. matériaux'!CN36/'Indices T.P. matériaux'!CN$35=0,NA(),'Indices T.P. matériaux'!CN36/'Indices T.P. matériaux'!CN$35),NA()) -> 0.9908248708 | CY115: =IFERROR(IF('Indices T.P. matériaux'!CO36/'Indices T.P. matériaux'!CO$35=0,NA(),'Indices T.P. matériaux'!CO36/'Indices T.P. matériaux'!CO$35),NA()) -> 0.95731478 | CZ115: =IFERROR(IF('Indices T.P. matériaux'!CP36/'Indices T.P. matériaux'!CP$35=0,NA(),'Indices T.P. matériaux'!CP36/'Indices T.P. matériaux'!CP$35),NA()) -> 0.957345065 | DA115: =IFERROR(IF('Indices T.P. matériaux'!CQ36/'Indices T.P. matériaux'!CQ$35=0,NA(),'Indices T.P. matériaux'!CQ36/'Indices T.P. matériaux'!CQ$35),NA()) -> 0.9573297933 | DB115: =IFERROR(IF('Indices T.P. matériaux'!CR36/'Indices T.P. matériaux'!CR$35=0,NA(),'Indices T.P. matériaux'!CR36/'Indices T.P. matériaux'!CR$35),NA()) -> 0.9877228389 | DC115: =IFERROR(IF('Indices T.P. matériaux'!CS36/'Indices T.P. matériaux'!CS$35=0,NA(),'Indices T.P. matériaux'!CS36/'Indices T.P. matériaux'!CS$35),NA()) -> 0.9877290301 | DD115: =IFERROR(IF('Indices T.P. matériaux'!CT36/'Indices T.P. matériaux'!CT$35=0,NA(),'Indices T.P. matériaux'!CT36/'Indices T.P. matériaux'!CT$35),NA()) -> 0.9868124531 | DE115: =IFERROR(IF('Indices T.P. matériaux'!CU36/'Indices T.P. matériaux'!CU$35=0,NA(),'Indices T.P. matériaux'!CU36/'Indices T.P. matériaux'!CU$35),NA()) -> 0.9874199771 | DF115: =IFERROR(IF('Indices T.P. matériaux'!CV36/'Indices T.P. matériaux'!CV$35=0,NA(),'Indices T.P. matériaux'!CV36/'Indices T.P. matériaux'!CV$35),NA()) -> 0.9175946548 | DG115: =IFERROR(IF('Indices T.P. matériaux'!CW36/'Indices T.P. matériaux'!CW$35=0,NA(),'Indices T.P. matériaux'!CW36/'Indices T.P. matériaux'!CW$35),NA()) -> 1.000618356 | DH115: =IFERROR(IF('Indices T.P. matériaux'!CX36/'Indices T.P. matériaux'!CX$35=0,NA(),'Indices T.P. matériaux'!CX36/'Indices T.P. matériaux'!CX$35),NA()) -> 1.000809187 | DI115: =IFERROR(IF('Indices T.P. matériaux'!CY36/'Indices T.P. matériaux'!CY$35=0,NA(),'Indices T.P. matériaux'!CY36/'Indices T.P. matériaux'!CY$35),NA()) -> 1.000701016 | DJ115: =IFERROR(IF('Indices T.P. matériaux'!CZ36/'Indices T.P. matériaux'!CZ$35=0,NA(),'Indices T.P. matériaux'!CZ36/'Indices T.P. matériaux'!CZ$35),NA()) -> 1 | DK115: =IFERROR(IF('Indices T.P. matériaux'!DA36/'Indices T.P. matériaux'!DA$35=0,NA(),'Indices T.P. matériaux'!DA36/'Indices T.P. matériaux'!DA$35),NA()) -> 1 | DL115: =IFERROR(IF('Indices T.P. matériaux'!DB36/'Indices T.P. matériaux'!DB$35=0,NA(),'Indices T.P. matériaux'!DB36/'Indices T.P. matériaux'!DB$35),NA()) -> 1.012006861 | DM115: =IFERROR(IF('Indices T.P. matériaux'!DC36/'Indices T.P. matériaux'!DC$35=0,NA(),'Indices T.P. matériaux'!DC36/'Indices T.P. matériaux'!DC$35),NA()) -> 1.011283498 | DN115: =IFERROR(IF('Indices T.P. matériaux'!DD36/'Indices T.P. matériaux'!DD$35=0,NA(),'Indices T.P. matériaux'!DD36/'Indices T.P. matériaux'!DD$35),NA()) -> 1.002033554 | DO115: =IFERROR(IF('Indices T.P. matériaux'!DE36/'Indices T.P. matériaux'!DE$35=0,NA(),'Indices T.P. matériaux'!DE36/'Indices T.P. matériaux'!DE$35),NA()) -> 1.010028653 | DP115: =IFERROR(IF('Indices T.P. matériaux'!DF36/'Indices T.P. matériaux'!DF$35=0,NA(),'Indices T.P. matériaux'!DF36/'Indices T.P. matériaux'!DF$35),NA()) -> 1.009083045 | DQ115: =IFERROR(IF('Indices Grymafer'!D31/'Indices Grymafer'!D$30=0,NA(),'Indices Grymafer'!D31/'Indices Grymafer'!D$30),NA()) -> 0.9938366718 | DR115: =IFERROR(IF('Indices Grymafer'!E31/'Indices Grymafer'!E$30=0,NA(),'Indices Grymafer'!E31/'Indices Grymafer'!E$30),NA()) -> 0.9961038961 | DS115: =IFERROR(IF('Indices Grymafer'!F31/'Indices Grymafer'!F$30=0,NA(),'Indices Grymafer'!F31/'Indices Grymafer'!F$30),NA()) -> 1.001112347 | DT115: =IFERROR(IF('Indices Grymafer'!G31/'Indices Grymafer'!G$30=0,NA(),'Indices Grymafer'!G31/'Indices Grymafer'!G$30),NA()) -> 0.9961290323 | DU115: =IFERROR(IF('Indices T.P. matériaux'!DG36/'Indices T.P. matériaux'!DG$35=0,NA(),'Indices T.P. matériaux'!DG36/'Indices T.P. matériaux'!DG$35),NA()) -> 1.007769552 | DV115: =IFERROR(IF('Indices T.P. matériaux'!DH36/'Indices T.P. matériaux'!DH$35=0,NA(),'Indices T.P. matériaux'!DH36/'Indices T.P. matériaux'!DH$35),NA()) -> 1.005122832 | DW115: =IFERROR(IF('Indices T.P. matériaux'!DI36/'Indices T.P. matériaux'!DI$35=0,NA(),'Indices T.P. matériaux'!DI36/'Indices T.P. matériaux'!DI$35),NA()) -> 1.000439367 | DX115: =IFERROR(IF('Indices T.P. matériaux'!DJ36/'Indices T.P. matériaux'!DJ$35=0,NA(),'Indices T.P. matériaux'!DJ36/'Indices T.P. matériaux'!DJ$35),NA()) -> 1.00150858 | DY115: =IFERROR(IF('Indices T.P. matériaux'!DK36/'Indices T.P. matériaux'!DK$35=0,NA(),'Indices T.P. matériaux'!DK36/'Indices T.P. matériaux'!DK$35),NA()) -> 0.865497076 | DZ115: =IFERROR(IF('Indices T.P. matériaux'!DL36/'Indices T.P. matériaux'!DL$35=0,NA(),'Indices T.P. matériaux'!DL36/'Indices T.P. matériaux'!DL$35),NA()) -> 1.001598195 | EA115: =IFERROR(IF('Indices T.P. matériaux'!DM36/'Indices T.P. matériaux'!DM$35=0,NA(),'Indices T.P. matériaux'!DM36/'Indices T.P. matériaux'!DM$35),NA()) -> 1 | ED115: 2018-02-01 | EE115: =IFERROR(IF('Indices des produits & services'!C29/'Indices des produits & services'!C$28=0,NA(),'Indices des produits & services'!C29/'Indices des produits & services'!C$28),NA()) -> 1 | EF115: =IFERROR(IF('Indices des produits & services'!D29/'Indices des produits & services'!D$28=0,NA(),'Indices des produits & services'!D29/'Indices des produits & services'!D$28),NA()) -> 1 | EG115: =IFERROR(IF('Indices des produits & services'!E29/'Indices des produits & services'!E$28=0,NA(),'Indices des produits & services'!E29/'Indices des produits & services'!E$28),NA()) -> 1 | EH115: =IFERROR(IF('Indices des produits & services'!F29/'Indices des produits & services'!F$28=0,NA(),'Indices des produits & services'!F29/'Indices des produits & services'!F$28),NA()) -> 1 | EI115: =IFERROR(IF('Indices des produits & services'!G29/'Indices des produits & services'!G$28=0,NA(),'Indices des produits & services'!G29/'Indices des produits & services'!G$28),NA()) -> 1 | EJ115: =IFERROR(IF('Indices des produits & services'!H29/'Indices des produits & services'!H$28=0,NA(),'Indices des produits & services'!H29/'Indices des produits & services'!H$28),NA()) -> 1 | EK115: =IFERROR(IF('Indices des produits & services'!I29/'Indices des produits & services'!I$28=0,NA(),'Indices des produits & services'!I29/'Indices des produits & services'!I$28),NA()) -> 1 | EL115: =IFERROR(IF('Indices des produits & services'!J29/'Indices des produits & services'!J$28=0,NA(),'Indices des produits & services'!J29/'Indices des produits & services'!J$28),NA()) -> 1 | EM115: =IFERROR(IF('Indices des produits & services'!K29/'Indices des produits & services'!K$28=0,NA(),'Indices des produits & services'!K29/'Indices des produits & services'!K$28),NA()) -> 1 | EN115: =IFERROR(IF('Indices des produits & services'!L29/'Indices des produits & services'!L$28=0,NA(),'Indices des produits & services'!L29/'Indices des produits & services'!L$28),NA()) -> 1 | EO115: =IFERROR(IF('Indices des produits & services'!M29/'Indices des produits & services'!M$28=0,NA(),'Indices des produits & services'!M29/'Indices des produits & services'!M$28),NA()) -> 1 | EP115: =IFERROR(IF('Indices des produits & services'!N29/'Indices des produits & services'!N$28=0,NA(),'Indices des produits & services'!N29/'Indices des produits & services'!N$28),NA()) -> 1 | EQ115: =IFERROR(IF('Indices des produits & services'!O29/'Indices des produits & services'!O$28=0,NA(),'Indices des produits & services'!O29/'Indices des produits & services'!O$28),NA()) -> 0.9850498339 | ER115: =IFERROR(IF('Indices des produits & services'!P29/'Indices des produits & services'!P$28=0,NA(),'Indices des produits & services'!P29/'Indices des produits & services'!P$28),NA()) -> 1.008952551 | ES115: =IFERROR(IF('Indices des produits & services'!Q29/'Indices des produits & services'!Q$28=0,NA(),'Indices des produits & services'!Q29/'Indices des produits & services'!Q$28),NA()) -> 1.013220019 | ET115: =IFERROR(IF('Indices des produits & services'!R29/'Indices des produits & services'!R$28=0,NA(),'Indices des produits & services'!R29/'Indices des produits & services'!R$28),NA()) -> 1.026785714 | EU115: =IFERROR(IF('Indices des produits & services'!S29/'Indices des produits & services'!S$28=0,NA(),'Indices des produits & services'!S29/'Indices des produits & services'!S$28),NA()) -> 1.001749781 | EV115: =IFERROR(IF('Indices des produits & services'!T29/'Indices des produits & services'!T$28=0,NA(),'Indices des produits & services'!T29/'Indices des produits & services'!T$28),NA()) -> 1.00262697 | EW115: =IFERROR(IF('Indices des produits & services'!U29/'Indices des produits & services'!U$28=0,NA(),'Indices des produits & services'!U29/'Indices des produits & services'!U$28),NA()) -> 1 | EX115: =IFERROR(IF('Indices des produits & services'!V29/'Indices des produits & services'!V$28=0,NA(),'Indices des produits & services'!V29/'Indices des produits & services'!V$28),NA()) -> 1.008006405 | EY115: =IFERROR(IF('Indices des produits & services'!W29/'Indices des produits & services'!W$28=0,NA(),'Indices des produits & services'!W29/'Indices des produits & services'!W$28),NA()) -> 1 | EZ115: =IFERROR(IF('Indices des produits & services'!X29/'Indices des produits & services'!X$28=0,NA(),'Indices des produits & services'!X29/'Indices des produits & services'!X$28),NA()) -> 1.004321521 | FA115: =IFERROR(IF('Indices des produits & services'!Y29/'Indices des produits & services'!Y$28=0,NA(),'Indices des produits & services'!Y29/'Indices des produits & services'!Y$28),NA()) -> 0.9836909871 | FB115: =IFERROR(IF('Indices des produits & services'!Z29/'Indices des produits & services'!Z$28=0,NA(),'Indices des produits & services'!Z29/'Indices des produits & services'!Z$28),NA()) -> 0.8878416588 | FC115: =IFERROR(IF('Indices des produits & services'!AA29/'Indices des produits & services'!AA$28=0,NA(),'Indices des produits & services'!AA29/'Indices des produits & services'!AA$28),NA()) -> 1.015177066 | FD115: =IFERROR(IF('Indices des produits & services'!AB29/'Indices des produits & services'!AB$28=0,NA(),'Indices des produits & services'!AB29/'Indices des produits & services'!AB$28),NA()) -> 1.018581081 | FE115: =IFERROR(IF('Indices des produits & services'!AC29/'Indices des produits & services'!AC$28=0,NA(),'Indices des produits & services'!AC29/'Indices des produits & services'!AC$28),NA()) -> 1.014370245 | FF115: =IFERROR(IF('Indices des produits & services'!AD29/'Indices des produits & services'!AD$28=0,NA(),'Indices des produits & services'!AD29/'Indices des produits & services'!AD$28),NA()) -> 1.01177394 | FG115: =IFERROR(IF('Indices des produits & services'!AE29/'Indices des produits & services'!AE$28=0,NA(),'Indices des produits & services'!AE29/'Indices des produits & services'!AE$28),NA()) -> 1.000868056 | FH115: =IFERROR(IF('Indices des produits & services'!AF29/'Indices des produits & services'!AF$28=0,NA(),'Indices des produits & services'!AF29/'Indices des produits & services'!AF$28),NA()) -> 1.003581021 | FI115: =IFERROR(IF('Indices des produits & services'!AG29/'Indices des produits & services'!AG$28=0,NA(),'Indices des produits & services'!AG29/'Indices des produits & services'!AG$28),NA()) -> 0.9704301075 | FJ115: =IFERROR(IF('Indices des produits & services'!AH29/'Indices des produits & services'!AH$28=0,NA(),'Indices des produits & services'!AH29/'Indices des produits & services'!AH$28),NA()) -> 0.9982486865 | FK115: =IFERROR(IF('Indices des produits & services'!AI29/'Indices des produits & services'!AI$28=0,NA(),'Indices des produits & services'!AI29/'Indices des produits & services'!AI$28),NA()) -> 1 | FL115: =IFERROR(IF('Indices des produits & services'!AJ29/'Indices des produits & services'!AJ$28=0,NA(),'Indices des produits & services'!AJ29/'Indices des produits & services'!AJ$28),NA()) -> 0.9548989114 | FM115: =IFERROR(IF('Indices des produits & services'!AK29/'Indices des produits & services'!AK$28=0,NA(),'Indices des produits & services'!AK29/'Indices des produits & services'!AK$28),NA()) -> 1.00483611 | FN115: =IFERROR(IF('Indices des produits & services'!AL29/'Indices des produits & services'!AL$28=0,NA(),'Indices des produits & services'!AL29/'Indices des produits & services'!AL$28),NA()) -> 1.018404908 | FO115: =IFERROR(IF('Indices des produits & services'!AM29/'Indices des produits & services'!AM$28=0,NA(),'Indices des produits & services'!AM29/'Indices des produits & services'!AM$28),NA()) -> 0.986770428 | FP115: =IFERROR(IF('Indices des produits & services'!AN29/'Indices des produits & services'!AN$28=0,NA(),'Indices des produits & services'!AN29/'Indices des produits & services'!AN$28),NA()) -> 1.001771479 | FQ115: =IFERROR(IF('Indices des produits & services'!AO29/'Indices des produits & services'!AO$28=0,NA(),'Indices des produits & services'!AO29/'Indices des produits & services'!AO$28),NA()) -> 0.9982222222 | FR115: =IFERROR(IF('Indices des produits & services'!AP29/'Indices des produits & services'!AP$28=0,NA(),'Indices des produits & services'!AP29/'Indices des produits & services'!AP$28),NA()) -> 1.00177305 | FS115: =IFERROR(IF('Indices des produits & services'!AQ29/'Indices des produits & services'!AQ$28=0,NA(),'Indices des produits & services'!AQ29/'Indices des produits & services'!AQ$28),NA()) -> 1.01182266 | FT115: =IFERROR(IF('Indices des produits & services'!AR29/'Indices des produits & services'!AR$28=0,NA(),'Indices des produits & services'!AR29/'Indices des produits & services'!AR$28),NA()) -> 0.9984152139 | FU115: =IFERROR(IF('Indices des produits & services'!AS29/'Indices des produits & services'!AS$28=0,NA(),'Indices des produits & services'!AS29/'Indices des produits & services'!AS$28),NA()) -> 1.008704062 | FV115: =IFERROR(IF('Indices des produits & services'!AT29/'Indices des produits & services'!AT$28=0,NA(),'Indices des produits & services'!AT29/'Indices des produits & services'!AT$28),NA()) -> 1.011385199 | FW115: =IFERROR(IF('Indices des produits & services'!AU29/'Indices des produits & services'!AU$28=0,NA(),'Indices des produits & services'!AU29/'Indices des produits & services'!AU$28),NA()) -> 1.023162135 | FX115: =IFERROR(IF('Indices des produits & services'!AV29/'Indices des produits & services'!AV$28=0,NA(),'Indices des produits & services'!AV29/'Indices des produits & services'!AV$28),NA()) -> 1.084269663 | FY115: =IFERROR(IF('Indices des produits & services'!AW29/'Indices des produits & services'!AW$28=0,NA(),'Indices des produits & services'!AW29/'Indices des produits & services'!AW$28),NA()) -> 1.01453958 | FZ115: =IFERROR(IF('Indices des produits & services'!AX29/'Indices des produits & services'!AX$28=0,NA(),'Indices des produits & services'!AX29/'Indices des produits & services'!AX$28),NA()) -> 1.01453958 | GA115: =IFERROR(IF('Indices des produits & services'!AY29/'Indices des produits & services'!AY$28=0,NA(),'Indices des produits & services'!AY29/'Indices des produits & services'!AY$28),NA()) -> 0.9911242604 | GB115: =IFERROR(IF('Indices des produits & services'!AZ29/'Indices des produits & services'!AZ$28=0,NA(),'Indices des produits & services'!AZ29/'Indices des produits & services'!AZ$28),NA()) -> 0.976386037 | GC115: =IFERROR(IF('Indices des produits & services'!BA29/'Indices des produits & services'!BA$28=0,NA(),'Indices des produits & services'!BA29/'Indices des produits & services'!BA$28),NA()) -> 1.01605288 | GD115: =IFERROR(IF('Indices des produits & services'!BB29/'Indices des produits & services'!BB$28=0,NA(),'Indices des produits & services'!BB29/'Indices des produits & services'!BB$28),NA()) -> 1.018248175 | GE115: =IFERROR(IF('Indices des produits & services'!BC29/'Indices des produits & services'!BC$28=0,NA(),'Indices des produits & services'!BC29/'Indices des produits & services'!BC$28),NA()) -> 1.018518519 | GF115: =IFERROR(IF('Indices des produits & services'!BD29/'Indices des produits & services'!BD$28=0,NA(),'Indices des produits & services'!BD29/'Indices des produits & services'!BD$28),NA()) -> 0.9930693069 | GG115: =IFERROR(IF('Indices des produits & services'!BE29/'Indices des produits & services'!BE$28=0,NA(),'Indices des produits & services'!BE29/'Indices des produits & services'!BE$28),NA()) -> 1 | GH115: =IFERROR(IF('Indices des produits & services'!BF29/'Indices des produits & services'!BF$28=0,NA(),'Indices des produits & services'!BF29/'Indices des produits & services'!BF$28),NA()) -> 1.012 | GI115: =IFERROR(IF('Indices des produits & services'!BG29/'Indices des produits & services'!BG$28=0,NA(),'Indices des produits & services'!BG29/'Indices des produits & services'!BG$28),NA()) -> 0.9918433931 | GJ115: =IFERROR(IF('Indices des produits & services'!BH29/'Indices des produits & services'!BH$28=0,NA(),'Indices des produits & services'!BH29/'Indices des produits & services'!BH$28),NA()) -> 1.00859375 | GK115: =IFERROR(IF('Indices des produits & services'!BI29/'Indices des produits & services'!BI$28=0,NA(),'Indices des produits & services'!BI29/'Indices des produits & services'!BI$28),NA()) -> 0.9933649289 | GL115: =IFERROR(IF('Indices des produits & services'!BJ29/'Indices des produits & services'!BJ$28=0,NA(),'Indices des produits & services'!BJ29/'Indices des produits & services'!BJ$28),NA()) -> 0.9924242424 | GM115: =IFERROR(IF('Indices des produits & services'!BK29/'Indices des produits & services'!BK$28=0,NA(),'Indices des produits & services'!BK29/'Indices des produits & services'!BK$28),NA()) -> 0.9828767123 | GN115: =IFERROR(IF('Indices des produits & services'!BL29/'Indices des produits & services'!BL$28=0,NA(),'Indices des produits & services'!BL29/'Indices des produits & services'!BL$28),NA()) -> 0.999122807 | GO115: =IFERROR(IF('Indices des produits & services'!BM29/'Indices des produits & services'!BM$28=0,NA(),'Indices des produits & services'!BM29/'Indices des produits & services'!BM$28),NA()) -> 1 | GP115: =IFERROR(IF('Indices des produits & services'!BN29/'Indices des produits & services'!BN$28=0,NA(),'Indices des produits & services'!BN29/'Indices des produits & services'!BN$28),NA()) -> 1 | GQ115: =IFERROR(IF('Indices des produits & services'!BO29/'Indices des produits & services'!BO$28=0,NA(),'Indices des produits & services'!BO29/'Indices des produits & services'!BO$28),NA()) -> 1.021052632 | GR115: =IFERROR(IF('Indices des produits & services'!BP29/'Indices des produits & services'!BP$28=0,NA(),'Indices des produits & services'!BP29/'Indices des produits & services'!BP$28),NA()) -> 1.008093525 | GS115: =IFERROR(IF('Indices des produits & services'!BQ29/'Indices des produits & services'!BQ$28=0,NA(),'Indices des produits & services'!BQ29/'Indices des produits & services'!BQ$28),NA()) -> 1.011009174 | GT115: =IFERROR(IF('Indices des produits & services'!BR29/'Indices des produits & services'!BR$28=0,NA(),'Indices des produits & services'!BR29/'Indices des produits & services'!BR$28),NA()) -> 1.00174216 | GU115: =IFERROR(IF('Indices des produits & services'!BS29/'Indices des produits & services'!BS$28=0,NA(),'Indices des produits & services'!BS29/'Indices des produits & services'!BS$28),NA()) -> 1.008183306 | GV115: =IFERROR(IF('Indices des produits & services'!BT29/'Indices des produits & services'!BT$28=0,NA(),'Indices des produits & services'!BT29/'Indices des produits & services'!BT$28),NA()) -> 1.010507881 | GW115: =IFERROR(IF('Indices des produits & services'!BU29/'Indices des produits & services'!BU$28=0,NA(),'Indices des produits & services'!BU29/'Indices des produits & services'!BU$28),NA()) -> 1.025568182 | GX115: =IFERROR(IF('Indices des produits & services'!BV29/'Indices des produits & services'!BV$28=0,NA(),'Indices des produits & services'!BV29/'Indices des produits & services'!BV$28),NA()) -> 1 | GY115: =IFERROR(IF('Indices des produits & services'!BW29/'Indices des produits & services'!BW$28=0,NA(),'Indices des produits & services'!BW29/'Indices des produits & services'!BW$28),NA()) -> 1.025217391 | GZ115: =IFERROR(IF('Indices des produits & services'!BX29/'Indices des produits & services'!BX$28=0,NA(),'Indices des produits & services'!BX29/'Indices des produits & services'!BX$28),NA()) -> 1.043413174 | HA115: =IFERROR(IF('Indices des produits & services'!BY29/'Indices des produits & services'!BY$28=0,NA(),'Indices des produits & services'!BY29/'Indices des produits & services'!BY$28),NA()) -> 1.020462633 | HB115: =IFERROR(IF('Indices des produits & services'!BZ29/'Indices des produits & services'!BZ$28=0,NA(),'Indices des produits & services'!BZ29/'Indices des produits & services'!BZ$28),NA()) -> 1.048212801 | HC115: =IFERROR(IF('Indices des produits & services'!CA29/'Indices des produits & services'!CA$28=0,NA(),'Indices des produits & services'!CA29/'Indices des produits & services'!CA$28),NA()) -> 1 | HD115: =IFERROR(IF('Indices des produits & services'!CB29/'Indices des produits & services'!CB$28=0,NA(),'Indices des produits & services'!CB29/'Indices des produits & services'!CB$28),NA()) -> 1.001771479 | HE115: =IFERROR(IF('Indices des produits & services'!CC29/'Indices des produits & services'!CC$28=0,NA(),'Indices des produits & services'!CC29/'Indices des produits & services'!CC$28),NA()) -> 1.010110294 | HF115: =IFERROR(IF('Indices des produits & services'!CD29/'Indices des produits & services'!CD$28=0,NA(),'Indices des produits & services'!CD29/'Indices des produits & services'!CD$28),NA()) -> 1.00199005 | HG115: =IFERROR(IF('Indices des produits & services'!CE29/'Indices des produits & services'!CE$28=0,NA(),'Indices des produits & services'!CE29/'Indices des produits & services'!CE$28),NA()) -> 1.001755926 | HH115: =IFERROR(IF('Indices des produits & services'!CF29/'Indices des produits & services'!CF$28=0,NA(),'Indices des produits & services'!CF29/'Indices des produits & services'!CF$28),NA()) -> 1 | HI115: =IFERROR(IF('Indices des produits & services'!CG29/'Indices des produits & services'!CG$28=0,NA(),'Indices des produits & services'!CG29/'Indices des produits & services'!CG$28),NA()) -> 1.000888889 | HJ115: =IFERROR(IF('Indices des produits & services'!CH29/'Indices des produits & services'!CH$28=0,NA(),'Indices des produits & services'!CH29/'Indices des produits & services'!CH$28),NA()) -> 1.00292113 | HK115: =IFERROR(IF('Indices des produits & services'!CI29/'Indices des produits & services'!CI$28=0,NA(),'Indices des produits & services'!CI29/'Indices des produits & services'!CI$28),NA()) -> 1.003157895 | HL115: =IFERROR(IF('Indices des produits & services'!CJ29/'Indices des produits & services'!CJ$28=0,NA(),'Indices des produits & services'!CJ29/'Indices des produits & services'!CJ$28),NA()) -> 0.9918276374 | HM115: =IFERROR(IF('Indices des produits & services'!CK29/'Indices des produits & services'!CK$28=0,NA(),'Indices des produits & services'!CK29/'Indices des produits & services'!CK$28),NA()) -> 0.9887955182 | HN115: =IFERROR(IF('Indices des produits & services'!CL29/'Indices des produits & services'!CL$28=0,NA(),'Indices des produits & services'!CL29/'Indices des produits & services'!CL$28),NA()) -> 1.002923977 | HO115: =IFERROR(IF('Indices des produits & services'!CM29/'Indices des produits & services'!CM$28=0,NA(),'Indices des produits & services'!CM29/'Indices des produits & services'!CM$28),NA()) -> 1.00090009 | HQ115: 2018-02-01 | HR115: =IFERROR(IF('Indices courants'!K28/'Indices courants'!K$27=0,NA(),'Indices courants'!K28/'Indices courants'!K$27),NA()) -> 1.000353994 | HS115: =IFERROR(IF('Indices courants'!L28/'Indices courants'!L$27=0,NA(),'Indices courants'!L28/'Indices courants'!L$27),NA()) -> 1.00031295 | HT115: =IFERROR(IF('Indices courants'!M28/'Indices courants'!M$27=0,NA(),'Indices courants'!M28/'Indices courants'!M$27),NA()) -> 1.000344299 | HU115: =IFERROR(IF('Indices courants'!N28/'Indices courants'!N$27=0,NA(),'Indices courants'!N28/'Indices courants'!N$27),NA()) -> 1.000354359 | HV115: =IFERROR(IF('Indices courants'!O28/'Indices courants'!O$27=0,NA(),'Indices courants'!O28/'Indices courants'!O$27),NA()) -> 1.000313264 | HW115: =IFERROR(IF('Indices courants'!P28/'Indices courants'!P$27=0,NA(),'Indices courants'!P28/'Indices courants'!P$27),NA()) -> 1.000344644 | HX115: =IFERROR(IF('Indices courants'!Q28/'Indices courants'!Q$27=0,NA(),'Indices courants'!Q28/'Indices courants'!Q$27),NA()) -> 1.000361973 | HY115: =IFERROR(IF('Indices courants'!R28/'Indices courants'!R$27=0,NA(),'Indices courants'!R28/'Indices courants'!R$27),NA()) -> 1.000319806 | HZ115: =IFERROR(IF('Indices courants'!S28/'Indices courants'!S$27=0,NA(),'Indices courants'!S28/'Indices courants'!S$27),NA()) -> 1.000351842 | IA115: =IFERROR(IF('Indices courants'!T28/'Indices courants'!T$27=0,NA(),'Indices courants'!T28/'Indices courants'!T$27),NA()) -> 1.000367955 | IB115: =IFERROR(IF('Indices courants'!U28/'Indices courants'!U$27=0,NA(),'Indices courants'!U28/'Indices courants'!U$27),NA()) -> 1.000357433 | IC115: =IFERROR(IF('Indices courants'!V28/'Indices courants'!V$27=0,NA(),'Indices courants'!V28/'Indices courants'!V$27),NA()) -> 1.000357491 | ID115: =IFERROR(IF('Indices courants'!W28/'Indices courants'!W$27=0,NA(),'Indices courants'!W28/'Indices courants'!W$27),NA()) -> 1.000795355 | IE115: =IFERROR(IF('Indices courants'!X28/'Indices courants'!X$27=0,NA(),'Indices courants'!X28/'Indices courants'!X$27),NA()) -> 1.000747737 | IF115: =Tableau21[[#This Row],[Evolution des prix selon formule de révision - indice i 2021]] -> 1 | IG115: =Tableau21[[#This Row],[Evolution des prix selon formule de révision - indice i]] -> 1 | IH115: =Tableau21[[#This Row],[Formule de révision - indice i 2021]] -> 1 | II115: =Tableau21[[#This Row],[Formule de révision - indice i]] -> 1 | IJ115: =IFERROR(IF('Indexations des salaires par CP'!E53/'Indexations des salaires par CP'!E$52=0,NA(),'Indexations des salaires par CP'!E53/'Indexations des salaires par CP'!E$52),NA()) -> 1 | IK115: =IFERROR(IF('Indexations des salaires par CP'!F53/'Indexations des salaires par CP'!F$52=0,NA(),'Indexations des salaires par CP'!F53/'Indexations des salaires par CP'!F$52),NA()) -> 1 | IL115: =IFERROR(IF('Indexations des salaires par CP'!G53/'Indexations des salaires par CP'!G$52=0,NA(),'Indexations des salaires par CP'!G53/'Indexations des salaires par CP'!G$52),NA()) -> 1 | IM115: =IFERROR(IF('Indexations des salaires par CP'!H53/'Indexations des salaires par CP'!H$52=0,NA(),'Indexations des salaires par CP'!H53/'Indexations des salaires par CP'!H$52),NA()) -> 1 | IN115: =IFERROR(IF('Indexations des salaires par CP'!I53/'Indexations des salaires par CP'!I$52=0,NA(),'Indexations des salaires par CP'!I53/'Indexations des salaires par CP'!I$52),NA()) -> 1 | IO115: =IFERROR(IF('Indexations des salaires par CP'!J53/'Indexations des salaires par CP'!J$52=0,NA(),'Indexations des salaires par CP'!J53/'Indexations des salaires par CP'!J$52),NA()) -> 1 | IP115: =IFERROR(IF('Indexations des salaires par CP'!K53/'Indexations des salaires par CP'!K$52=0,NA(),'Indexations des salaires par CP'!K53/'Indexations des salaires par CP'!K$52),NA()) -> 1 | IQ115: =IFERROR(IF('Indexations des salaires par CP'!L53/'Indexations des salaires par CP'!L$52=0,NA(),'Indexations des salaires par CP'!L53/'Indexations des salaires par CP'!L$52),NA()) -> 1 | IR115: =IFERROR(IF('Indexations des salaires par CP'!M53/'Indexations des salaires par CP'!M$52=0,NA(),'Indexations des salaires par CP'!M53/'Indexations des salaires par CP'!M$52),NA()) -> 1 | IS115: =IFERROR(IF('Indexations des salaires par CP'!T53/'Indexations des salaires par CP'!T$52=0,NA(),'Indexations des salaires par CP'!T53/'Indexations des salaires par CP'!T$52),NA()) -> 1 | IT115: =IFERROR(IF('Indexations des salaires par CP'!U53/'Indexations des salaires par CP'!U$52=0,NA(),'Indexations des salaires par CP'!U53/'Indexations des salaires par CP'!U$52),NA()) -> 1 | IU115: =IFERROR(IF('Indexations des salaires par CP'!V53/'Indexations des salaires par CP'!V$52=0,NA(),'Indexations des salaires par CP'!V53/'Indexations des salaires par CP'!V$52),NA()) -> 1 | IV115: =IFERROR(IF('Indexations des salaires par CP'!W53/'Indexations des salaires par CP'!W$52=0,NA(),'Indexations des salaires par CP'!W53/'Indexations des salaires par CP'!W$52),NA()) -> 1 | IW115: =IFERROR(IF('Indexations des salaires par CP'!AD53/'Indexations des salaires par CP'!AD$52=0,NA(),'Indexations des salaires par CP'!AD53/'Indexations des salaires par CP'!AD$52),NA()) -> 1 | IX115: =IFERROR(IF('Indexations des salaires par CP'!AE53/'Indexations des salaires par CP'!AE$52=0,NA(),'Indexations des salaires par CP'!AE53/'Indexations des salaires par CP'!AE$52),NA()) -> 1 | IY115: =IFERROR(IF('Indexations des salaires par CP'!AF53/'Indexations des salaires par CP'!AF$52=0,NA(),'Indexations des salaires par CP'!AF53/'Indexations des salaires par CP'!AF$52),NA()) -> 1 | IZ115: =IFERROR(IF('Indexations des salaires par CP'!AG53/'Indexations des salaires par CP'!AG$52=0,NA(),'Indexations des salaires par CP'!AG53/'Indexations des salaires par CP'!AG$52),NA()) -> 1 | JA115: =IFERROR(IF('Indexations des salaires par CP'!AH53/'Indexations des salaires par CP'!AH$52=0,NA(),'Indexations des salaires par CP'!AH53/'Indexations des salaires par CP'!AH$52),NA()) -> 1 | JB115: =IFERROR(IF('Indexations des salaires par CP'!AI53/'Indexations des salaires par CP'!AI$52=0,NA(),'Indexations des salaires par CP'!AI53/'Indexations des salaires par CP'!AI$52),NA()) -> 1 | JC115: =IFERROR(IF('Indexations des salaires par CP'!AP53/'Indexations des salaires par CP'!AP$52=0,NA(),'Indexations des salaires par CP'!AP53/'Indexations des salaires par CP'!AP$52),NA()) -> 1 | JD115: =IFERROR(IF('Indexations des salaires par CP'!AW53/'Indexations des salaires par CP'!AW$52=0,NA(),'Indexations des salaires par CP'!AW53/'Indexations des salaires par CP'!AW$52),NA()) -> 1 | JE115: =IFERROR(IF('Indexations des salaires par CP'!AX53/'Indexations des salaires par CP'!AX$52=0,NA(),'Indexations des salaires par CP'!AX53/'Indexations des salaires par CP'!AX$52),NA()) -> 1 | JF115: =IFERROR(IF('Indexations des salaires par CP'!AY53/'Indexations des salaires par CP'!AY$52=0,NA(),'Indexations des salaires par CP'!AY53/'Indexations des salaires par CP'!AY$52),NA()) -> 1 | JG115: =IFERROR(IF('Indexations des salaires par CP'!AZ53/'Indexations des salaires par CP'!AZ$52=0,NA(),'Indexations des salaires par CP'!AZ53/'Indexations des salaires par CP'!AZ$52),NA()) -> 1 | JH115: =IFERROR(IF('Indexations des salaires par CP'!BA53/'Indexations des salaires par CP'!BA$52=0,NA(),'Indexations des salaires par CP'!BA53/'Indexations des salaires par CP'!BA$52),NA()) -> 1 | JI115: =IFERROR(IF('Indexations des salaires par CP'!BB53/'Indexations des salaires par CP'!BB$52=0,NA(),'Indexations des salaires par CP'!BB53/'Indexations des salaires par CP'!BB$52),NA()) -> 1 | JJ115: =IFERROR(IF('Indexations des salaires par CP'!BC53/'Indexations des salaires par CP'!BC$52=0,NA(),'Indexations des salaires par CP'!BC53/'Indexations des salaires par CP'!BC$52),NA()) -> 1 | JK115: =IFERROR(IF('Indexations des salaires par CP'!BD53/'Indexations des salaires par CP'!BD$52=0,NA(),'Indexations des salaires par CP'!BD53/'Indexations des salaires par CP'!BD$52),NA()) -> 1 | JL115: =IFERROR(IF('Indexations des salaires par CP'!BK53/'Indexations des salaires par CP'!BK$52=0,NA(),'Indexations des salaires par CP'!BK53/'Indexations des salaires par CP'!BK$52),NA()) -> 1 | JM115: =IFERROR(IF('Indexations des salaires par CP'!BR53/'Indexations des salaires par CP'!BR$52=0,NA(),'Indexations des salaires par CP'!BR53/'Indexations des salaires par CP'!BR$52),NA()) -> 1 | JN115: =IFERROR(IF('Indexations des salaires par CP'!BS53/'Indexations des salaires par CP'!BS$52=0,NA(),'Indexations des salaires par CP'!BS53/'Indexations des salaires par CP'!BS$52),NA()) -> 1 | JO115: =IFERROR(IF('Indexations des salaires par CP'!BT53/'Indexations des salaires par CP'!BT$52=0,NA(),'Indexations des salaires par CP'!BT53/'Indexations des salaires par CP'!BT$52),NA()) -> 1 | JP115: =IFERROR(IF('Indexations des salaires par CP'!BU53/'Indexations des salaires par CP'!BU$52=0,NA(),'Indexations des salaires par CP'!BU53/'Indexations des salaires par CP'!BU$52),NA()) -> 1 | JQ115: =IFERROR(IF('Indexations des salaires par CP'!BV53/'Indexations des salaires par CP'!BV$52=0,NA(),'Indexations des salaires par CP'!BV53/'Indexations des salaires par CP'!BV$52),NA()) -> 1 | JR115: =IFERROR(IF('Indexations des salaires par CP'!BW53/'Indexations des salaires par CP'!BW$52=0,NA(),'Indexations des salaires par CP'!BW53/'Indexations des salaires par CP'!BW$52),NA()) -> 1 | JS115: =IFERROR(IF('Indexations des salaires par CP'!BX53/'Indexations des salaires par CP'!BX$52=0,NA(),'Indexations des salaires par CP'!BX53/'Indexations des salaires par CP'!BX$52),NA()) -> 1 | JT115: =IFERROR(IF('Indexations des salaires par CP'!BY53/'Indexations des salaires par CP'!BY$52=0,NA(),'Indexations des salaires par CP'!BY53/'Indexations des salaires par CP'!BY$52),NA()) -> 1 | JU115: =IFERROR(IF('Indexations des salaires par CP'!BZ53/'Indexations des salaires par CP'!BZ$52=0,NA(),'Indexations des salaires par CP'!BZ53/'Indexations des salaires par CP'!BZ$52),NA()) -> 1 | JV115: =IFERROR(IF('Indexations des salaires par CP'!CA53/'Indexations des salaires par CP'!CA$52=0,NA(),'Indexations des salaires par CP'!CA53/'Indexations des salaires par CP'!CA$52),NA()) -> 1 | JW115: =IFERROR(IF('Indexations des salaires par CP'!CB53/'Indexations des salaires par CP'!CB$52=0,NA(),'Indexations des salaires par CP'!CB53/'Indexations des salaires par CP'!CB$52),NA()) -> 1 | JX115: =IFERROR(IF('Indexations des salaires par CP'!CC53/'Indexations des salaires par CP'!CC$52=0,NA(),'Indexations des salaires par CP'!CC53/'Indexations des salaires par CP'!CC$52),NA()) -> 1 | JY115: =IFERROR(IF('Indexations des salaires par CP'!CD53/'Indexations des salaires par CP'!CD$52=0,NA(),'Indexations des salaires par CP'!CD53/'Indexations des salaires par CP'!CD$52),NA()) -> 1 | JZ115: =IFERROR(IF('Indexations des salaires par CP'!CE53/'Indexations des salaires par CP'!CE$52=0,NA(),'Indexations des salaires par CP'!CE53/'Indexations des salaires par CP'!CE$52),NA()) -> 1 | KA115: =IFERROR(IF('Indexations des salaires par CP'!CF53/'Indexations des salaires par CP'!CF$52=0,NA(),'Indexations des salaires par CP'!CF53/'Indexations des salaires par CP'!CF$52),NA()) -> 1 | KB115: =IFERROR(IF('Indexations des salaires par CP'!CG53/'Indexations des salaires par CP'!CG$52=0,NA(),'Indexations des salaires par CP'!CG53/'Indexations des salaires par CP'!CG$52),NA()) -> 1 | KC115: =IFERROR(IF('Indexations des salaires par CP'!CH53/'Indexations des salaires par CP'!CH$52=0,NA(),'Indexations des salaires par CP'!CH53/'Indexations des salaires par CP'!CH$52),NA()) -> 1 | KD115: =IFERROR(IF('Indexations des salaires par CP'!CI53/'Indexations des salaires par CP'!CI$52=0,NA(),'Indexations des salaires par CP'!CI53/'Indexations des salaires par CP'!CI$52),NA()) -> 1 | KE115: =IFERROR(IF('Indexations des salaires par CP'!CJ53/'Indexations des salaires par CP'!CJ$52=0,NA(),'Indexations des salaires par CP'!CJ53/'Indexations des salaires par CP'!CJ$52),NA()) -> 1 | KF115: =IFERROR(IF('Indexations des salaires par CP'!CQ53/'Indexations des salaires par CP'!CQ$52=0,NA(),'Indexations des salaires par CP'!CQ53/'Indexations des salaires par CP'!CQ$52),NA()) -> 1 | KG115: =IFERROR(IF('Indexations des salaires par CP'!CR53/'Indexations des salaires par CP'!CR$52=0,NA(),'Indexations des salaires par CP'!CR53/'Indexations des salaires par CP'!CR$52),NA()) -> 1 | KH115: =IFERROR(IF('Indexations des salaires par CP'!CS53/'Indexations des salaires par CP'!CS$52=0,NA(),'Indexations des salaires par CP'!CS53/'Indexations des salaires par CP'!CS$52),NA()) -> 1 | KI115: =IFERROR(IF('Indexations des salaires par CP'!CT53/'Indexations des salaires par CP'!CT$52=0,NA(),'Indexations des salaires par CP'!CT53/'Indexations des salaires par CP'!CT$52),NA()) -> 1 | KJ115: =IFERROR(IF('Indexations des salaires par CP'!CU53/'Indexations des salaires par CP'!CU$52=0,NA(),'Indexations des salaires par CP'!CU53/'Indexations des salaires par CP'!CU$52),NA()) -> 1 | KK115: =IFERROR(IF('Indexations des salaires par CP'!DB53/'Indexations des salaires par CP'!DB$52=0,NA(),'Indexations des salaires par CP'!DB53/'Indexations des salaires par CP'!DB$52),NA()) -> 1 | KL115: =IFERROR(IF('Indexations des salaires par CP'!DC53/'Indexations des salaires par CP'!DC$52=0,NA(),'Indexations des salaires par CP'!DC53/'Indexations des salaires par CP'!DC$52),NA()) -> 1 | KM115: =IFERROR(IF('Indexations des salaires par CP'!DD53/'Indexations des salaires par CP'!DD$52=0,NA(),'Indexations des salaires par CP'!DD53/'Indexations des salaires par CP'!DD$52),NA()) -> 1 | KN115: =IFERROR(IF('Indexations des salaires par CP'!DE53/'Indexations des salaires par CP'!DE$52=0,NA(),'Indexations des salaires par CP'!DE53/'Indexations des salaires par CP'!DE$52),NA()) -> 1 | KO115: =IFERROR(IF('Indexations des salaires par CP'!DL53/'Indexations des salaires par CP'!DL$52=0,NA(),'Indexations des salaires par CP'!DL53/'Indexations des salaires par CP'!DL$52),NA()) -> 1 | KP115: =IFERROR(IF('Indexations des salaires par CP'!DM53/'Indexations des salaires par CP'!DM$52=0,NA(),'Indexations des salaires par CP'!DM53/'Indexations des salaires par CP'!DM$52),NA()) -> 1 | KQ115: =IFERROR(IF('Indexations des salaires par CP'!DN53/'Indexations des salaires par CP'!DN$52=0,NA(),'Indexations des salaires par CP'!DN53/'Indexations des salaires par CP'!DN$52),NA()) -> 1 | KR115: =IFERROR(IF('Indexations des salaires par CP'!DO53/'Indexations des salaires par CP'!DO$52=0,NA(),'Indexations des salaires par CP'!DO53/'Indexations des salaires par CP'!DO$52),NA()) -> 1 | KS115: =IFERROR(IF('Indexations des salaires par CP'!DP53/'Indexations des salaires par CP'!DP$52=0,NA(),'Indexations des salaires par CP'!DP53/'Indexations des salaires par CP'!DP$52),NA()) -> 1 | KT115: =IFERROR(IF('Indexations des salaires par CP'!DQ53/'Indexations des salaires par CP'!DQ$52=0,NA(),'Indexations des salaires par CP'!DQ53/'Indexations des salaires par CP'!DQ$52),NA()) -> 1 | KU115: =IFERROR(IF('Indexations des salaires par CP'!DR53/'Indexations des salaires par CP'!DR$52=0,NA(),'Indexations des salaires par CP'!DR53/'Indexations des salaires par CP'!DR$52),NA()) -> 1 | KV115: =IFERROR(IF('Indexations des salaires par CP'!DS53/'Indexations des salaires par CP'!DS$52=0,NA(),'Indexations des salaires par CP'!DS53/'Indexations des salaires par CP'!DS$52),NA()) -> 1 | KW115: =IFERROR(IF('Indexations des salaires par CP'!DT53/'Indexations des salaires par CP'!DT$52=0,NA(),'Indexations des salaires par CP'!DT53/'Indexations des salaires par CP'!DT$52),NA()) -> 1 | KX115: =IFERROR(IF('Indexations des salaires par CP'!DU53/'Indexations des salaires par CP'!DU$52=0,NA(),'Indexations des salaires par CP'!DU53/'Indexations des salaires par CP'!DU$52),NA()) -> 1 | KY115: =IFERROR(IF('Indexations des salaires par CP'!DV53/'Indexations des salaires par CP'!DV$52=0,NA(),'Indexations des salaires par CP'!DV53/'Indexations des salaires par CP'!DV$52),NA()) -> 1 | KZ115: =IFERROR(IF('Indexations des salaires par CP'!DW53/'Indexations des salaires par CP'!DW$52=0,NA(),'Indexations des salaires par CP'!DW53/'Indexations des salaires par CP'!DW$52),NA()) -> 1 | LA115: =IFERROR(IF('Indexations des salaires par CP'!DX53/'Indexations des salaires par CP'!DX$52=0,NA(),'Indexations des salaires par CP'!DX53/'Indexations des salaires par CP'!DX$52),NA()) -> 1
B116: 2018-03-01 | C116: =IFERROR(IF('Indices courants'!E29/'Indices courants'!$E$27=0,NA(),'Indices courants'!E29/'Indices courants'!$E$27),NA()) -> 0.9902271862 | D116: =IFERROR(IF('Indices courants'!F29/'Indices courants'!$F$27=0,NA(),'Indices courants'!F29/'Indices courants'!$F$27),NA()) -> 1.010853835 | E116: =IFERROR(IF('Indices courants'!G29/'Indices courants'!$G$27=0,NA(),'Indices courants'!G29/'Indices courants'!$G$27),NA()) -> 0.9915201005 | F116: =IFERROR(IF('Indices courants'!H29/'Indices courants'!$H$27=0,NA(),'Indices courants'!H29/'Indices courants'!$H$27),NA()) -> 0.992338339 | G116: =IFERROR(IF('Indices courants'!I29/'Indices courants'!I$27=0,NA(),'Indices courants'!I29/'Indices courants'!I$27),NA()) -> 0.9829163855 | H116: =IFERROR(IF('Indices courants'!J29/'Indices courants'!J$27=0,NA(),'Indices courants'!J29/'Indices courants'!J$27),NA()) -> 1.014556608 | I116: =IF('Indices courants'!F28=0,NA(),IF('Indices courants'!K29=0,NA(),IFERROR(ROUND(((('Formule de révision courante'!$E$34*('Indices courants'!F28/'Indices courants'!F27)+'Formule de révision courante'!$E$26*('Indices courants'!K29/'Indices courants'!K28)+'Formule de révision courante'!$E$40))*'Graphique évolution des indices'!I115),5),NA()))) -> 1.00385 | J116: =IF('Indices courants'!G28=0,NA(),IF('Indices courants'!L29=0,NA(),IFERROR(ROUND(((('Formule de révision courante'!$E$34*('Indices courants'!E28/'Indices courants'!E27)+'Formule de révision courante'!$E$26*('Indices courants'!K29/'Indices courants'!K28)+'Formule de révision courante'!$E$40))*'Graphique évolution des indices'!J115),5),NA()))) -> 1.00071 | K116: =IF('Indices courants'!F28=0,NA(),IF('Indices courants'!K29=0,NA(),IFERROR(ROUND(((('Formule de révision courante'!$E$34*('Indices courants'!F28/'Indices courants'!F27)+'Formule de révision courante'!$E$26*('Indices courants'!K29/'Indices courants'!K28)+'Formule de révision courante'!$E$40))),5),NA()))) -> 1.00385 | L116: =IF('Indices courants'!E28=0,NA(),IF('Indices courants'!K29=0,NA(),IFERROR(ROUND(((('Formule de révision courante'!$E$34*('Indices courants'!E28/'Indices courants'!E27)+'Formule de révision courante'!$E$26*('Indices courants'!K29/'Indices courants'!K28)+'Formule de révision courante'!$E$40))),5),NA()))) -> 1.00071 | M116: =IFERROR(IF('Indices T.P. matériaux'!C37/'Indices T.P. matériaux'!C$35=0,NA(),'Indices T.P. matériaux'!C37/'Indices T.P. matériaux'!C$35),NA()) -> 1 | N116: =IFERROR(IF('Indices T.P. matériaux'!D37/'Indices T.P. matériaux'!D$35=0,NA(),'Indices T.P. matériaux'!D37/'Indices T.P. matériaux'!D$35),NA()) -> 1 | O116: =IFERROR(IF('Indices T.P. matériaux'!E37/'Indices T.P. matériaux'!E$35=0,NA(),'Indices T.P. matériaux'!E37/'Indices T.P. matériaux'!E$35),NA()) -> 1 | P116: =IFERROR(IF('Indices T.P. matériaux'!F37/'Indices T.P. matériaux'!F$35=0,NA(),'Indices T.P. matériaux'!F37/'Indices T.P. matériaux'!F$35),NA()) -> 1 | Q116: =IFERROR(IF('Indices T.P. matériaux'!G37/'Indices T.P. matériaux'!G$35=0,NA(),'Indices T.P. matériaux'!G37/'Indices T.P. matériaux'!G$35),NA()) -> 1 | R116: =IFERROR(IF('Indices T.P. matériaux'!H37/'Indices T.P. matériaux'!H$35=0,NA(),'Indices T.P. matériaux'!H37/'Indices T.P. matériaux'!H$35),NA()) -> 1 | S116: =IFERROR(IF('Indices T.P. matériaux'!I37/'Indices T.P. matériaux'!I$35=0,NA(),'Indices T.P. matériaux'!I37/'Indices T.P. matériaux'!I$35),NA()) -> 1 | T116: =IFERROR(IF('Indices T.P. matériaux'!J37/'Indices T.P. matériaux'!J$35=0,NA(),'Indices T.P. matériaux'!J37/'Indices T.P. matériaux'!J$35),NA()) -> 1 | U116: =IFERROR(IF('Indices T.P. matériaux'!K37/'Indices T.P. matériaux'!K$35=0,NA(),'Indices T.P. matériaux'!K37/'Indices T.P. matériaux'!K$35),NA()) -> 1 | V116: =IFERROR(IF('Indices T.P. matériaux'!L37/'Indices T.P. matériaux'!L$35=0,NA(),'Indices T.P. matériaux'!L37/'Indices T.P. matériaux'!L$35),NA()) -> 1 | W116: =IFERROR(IF('Indices T.P. matériaux'!M37/'Indices T.P. matériaux'!M$35=0,NA(),'Indices T.P. matériaux'!M37/'Indices T.P. matériaux'!M$35),NA()) -> 1 | X116: =IFERROR(IF('Indices T.P. matériaux'!N37/'Indices T.P. matériaux'!N$35=0,NA(),'Indices T.P. matériaux'!N37/'Indices T.P. matériaux'!N$35),NA()) -> 1 | Y116: =IFERROR(IF('Indices T.P. matériaux'!O37/'Indices T.P. matériaux'!O$35=0,NA(),'Indices T.P. matériaux'!O37/'Indices T.P. matériaux'!O$35),NA()) -> 1 | Z116: =IFERROR(IF('Indices T.P. matériaux'!P37/'Indices T.P. matériaux'!P$35=0,NA(),'Indices T.P. matériaux'!P37/'Indices T.P. matériaux'!P$35),NA()) -> 1 | AA116: =IFERROR(IF('Indices T.P. matériaux'!Q37/'Indices T.P. matériaux'!Q$35=0,NA(),'Indices T.P. matériaux'!Q37/'Indices T.P. matériaux'!Q$35),NA()) -> 1 | AB116: =IFERROR(IF('Indices T.P. matériaux'!R37/'Indices T.P. matériaux'!R$35=0,NA(),'Indices T.P. matériaux'!R37/'Indices T.P. matériaux'!R$35),NA()) -> 1 | AC116: =IFERROR(IF('Indices T.P. matériaux'!S37/'Indices T.P. matériaux'!S$35=0,NA(),'Indices T.P. matériaux'!S37/'Indices T.P. matériaux'!S$35),NA()) -> 1 | AD116: =IFERROR(IF('Indices T.P. matériaux'!T37/'Indices T.P. matériaux'!T$35=0,NA(),'Indices T.P. matériaux'!T37/'Indices T.P. matériaux'!T$35),NA()) -> 1 | AE116: =IFERROR(IF('Indices T.P. matériaux'!U37/'Indices T.P. matériaux'!U$35=0,NA(),'Indices T.P. matériaux'!U37/'Indices T.P. matériaux'!U$35),NA()) -> 1 | AF116: =IFERROR(IF('Indices T.P. matériaux'!V37/'Indices T.P. matériaux'!V$35=0,NA(),'Indices T.P. matériaux'!V37/'Indices T.P. matériaux'!V$35),NA()) -> 1 | AG116: =IFERROR(IF('Indices T.P. matériaux'!W37/'Indices T.P. matériaux'!W$35=0,NA(),'Indices T.P. matériaux'!W37/'Indices T.P. matériaux'!W$35),NA()) -> 1 | AH116: =IFERROR(IF('Indices T.P. matériaux'!X37/'Indices T.P. matériaux'!X$35=0,NA(),'Indices T.P. matériaux'!X37/'Indices T.P. matériaux'!X$35),NA()) -> 1 | AI116: =IFERROR(IF('Indices T.P. matériaux'!Y37/'Indices T.P. matériaux'!Y$35=0,NA(),'Indices T.P. matériaux'!Y37/'Indices T.P. matériaux'!Y$35),NA()) -> 1 | AJ116: =IFERROR(IF('Indices T.P. matériaux'!Z37/'Indices T.P. matériaux'!Z$35=0,NA(),'Indices T.P. matériaux'!Z37/'Indices T.P. matériaux'!Z$35),NA()) -> 1 | AK116: =IFERROR(IF('Indices T.P. matériaux'!AA37/'Indices T.P. matériaux'!AA$35=0,NA(),'Indices T.P. matériaux'!AA37/'Indices T.P. matériaux'!AA$35),NA()) -> 1 | AL116: =IFERROR(IF('Indices T.P. matériaux'!AB37/'Indices T.P. matériaux'!AB$35=0,NA(),'Indices T.P. matériaux'!AB37/'Indices T.P. matériaux'!AB$35),NA()) -> 1.052301255 | AM116: =IFERROR(IF('Indices T.P. matériaux'!AC37/'Indices T.P. matériaux'!AC$35=0,NA(),'Indices T.P. matériaux'!AC37/'Indices T.P. matériaux'!AC$35),NA()) -> 1.06097561 | AN116: =IFERROR(IF('Indices T.P. matériaux'!AD37/'Indices T.P. matériaux'!AD$35=0,NA(),'Indices T.P. matériaux'!AD37/'Indices T.P. matériaux'!AD$35),NA()) -> 1.056306306 | AO116: =IFERROR(IF('Indices T.P. matériaux'!AE37/'Indices T.P. matériaux'!AE$35=0,NA(),'Indices T.P. matériaux'!AE37/'Indices T.P. matériaux'!AE$35),NA()) -> 1.060422961 | AP116: =IFERROR(IF('Indices T.P. matériaux'!AF37/'Indices T.P. matériaux'!AF$35=0,NA(),'Indices T.P. matériaux'!AF37/'Indices T.P. matériaux'!AF$35),NA()) -> 1.068540096 | AQ116: =IFERROR(IF('Indices T.P. matériaux'!AG37/'Indices T.P. matériaux'!AG$35=0,NA(),'Indices T.P. matériaux'!AG37/'Indices T.P. matériaux'!AG$35),NA()) -> 1.064226076 | AR116: =IFERROR(IF('Indices T.P. matériaux'!AH37/'Indices T.P. matériaux'!AH$35=0,NA(),'Indices T.P. matériaux'!AH37/'Indices T.P. matériaux'!AH$35),NA()) -> 1.040263543 | AS116: =IFERROR(IF('Indices T.P. matériaux'!AI37/'Indices T.P. matériaux'!AI$35=0,NA(),'Indices T.P. matériaux'!AI37/'Indices T.P. matériaux'!AI$35),NA()) -> 1.009905448 | AT116: =IFERROR(IF('Indices T.P. matériaux'!AJ37/'Indices T.P. matériaux'!AJ$35=0,NA(),'Indices T.P. matériaux'!AJ37/'Indices T.P. matériaux'!AJ$35),NA()) -> 1.009689922 | AU116: =IFERROR(IF('Indices T.P. matériaux'!AK37/'Indices T.P. matériaux'!AK$35=0,NA(),'Indices T.P. matériaux'!AK37/'Indices T.P. matériaux'!AK$35),NA()) -> 1.009689922 | AV116: =IFERROR(IF('Indices T.P. matériaux'!AL37/'Indices T.P. matériaux'!AL$35=0,NA(),'Indices T.P. matériaux'!AL37/'Indices T.P. matériaux'!AL$35),NA()) -> 1.009765317 | AW116: =IFERROR(IF('Indices T.P. matériaux'!AM37/'Indices T.P. matériaux'!AM$35=0,NA(),'Indices T.P. matériaux'!AM37/'Indices T.P. matériaux'!AM$35),NA()) -> 1.010773751 | AX116: =IFERROR(IF('Indices T.P. matériaux'!AN37/'Indices T.P. matériaux'!AN$35=0,NA(),'Indices T.P. matériaux'!AN37/'Indices T.P. matériaux'!AN$35),NA()) -> 1.011146497 | AY116: =IFERROR(IF('Indices T.P. matériaux'!AO37/'Indices T.P. matériaux'!AO$35=0,NA(),'Indices T.P. matériaux'!AO37/'Indices T.P. matériaux'!AO$35),NA()) -> 1.010952624 | AZ116: =IFERROR(IF('Indices T.P. matériaux'!AP37/'Indices T.P. matériaux'!AP$35=0,NA(),'Indices T.P. matériaux'!AP37/'Indices T.P. matériaux'!AP$35),NA()) -> 1.006169666 | BA116: =IFERROR(IF('Indices T.P. matériaux'!AQ37/'Indices T.P. matériaux'!AQ$35=0,NA(),'Indices T.P. matériaux'!AQ37/'Indices T.P. matériaux'!AQ$35),NA()) -> 1.006362672 | BB116: =IFERROR(IF('Indices T.P. matériaux'!AR37/'Indices T.P. matériaux'!AR$35=0,NA(),'Indices T.P. matériaux'!AR37/'Indices T.P. matériaux'!AR$35),NA()) -> 1.006386376 | BC116: =IFERROR(IF('Indices T.P. matériaux'!AS37/'Indices T.P. matériaux'!AS$35=0,NA(),'Indices T.P. matériaux'!AS37/'Indices T.P. matériaux'!AS$35),NA()) -> 1.006304729 | BD116: =IFERROR(IF('Indices T.P. matériaux'!AT37/'Indices T.P. matériaux'!AT$35=0,NA(),'Indices T.P. matériaux'!AT37/'Indices T.P. matériaux'!AT$35),NA()) -> 1.008153757 | BE116: =IFERROR(IF('Indices T.P. matériaux'!AU37/'Indices T.P. matériaux'!AU$35=0,NA(),'Indices T.P. matériaux'!AU37/'Indices T.P. matériaux'!AU$35),NA()) -> 0.9981230527 | BF116: =IFERROR(IF('Indices T.P. matériaux'!AV37/'Indices T.P. matériaux'!AV$35=0,NA(),'Indices T.P. matériaux'!AV37/'Indices T.P. matériaux'!AV$35),NA()) -> 0.9986100171 | BG116: =IFERROR(IF('Indices T.P. matériaux'!AW37/'Indices T.P. matériaux'!AW$35=0,NA(),'Indices T.P. matériaux'!AW37/'Indices T.P. matériaux'!AW$35),NA()) -> 0.9984028281 | BH116: =IFERROR(IF('Indices T.P. matériaux'!AX37/'Indices T.P. matériaux'!AX$35=0,NA(),'Indices T.P. matériaux'!AX37/'Indices T.P. matériaux'!AX$35),NA()) -> 1.029268293 | BI116: =IFERROR(IF('Indices T.P. matériaux'!AY37/'Indices T.P. matériaux'!AY$35=0,NA(),'Indices T.P. matériaux'!AY37/'Indices T.P. matériaux'!AY$35),NA()) -> 1.02921069 | BJ116: =IFERROR(IF('Indices T.P. matériaux'!AZ37/'Indices T.P. matériaux'!AZ$35=0,NA(),'Indices T.P. matériaux'!AZ37/'Indices T.P. matériaux'!AZ$35),NA()) -> 1.029265255 | BK116: =IFERROR(IF('Indices T.P. matériaux'!BA37/'Indices T.P. matériaux'!BA$35=0,NA(),'Indices T.P. matériaux'!BA37/'Indices T.P. matériaux'!BA$35),NA()) -> 1.029248198 | BL116: =IFERROR(IF('Indices T.P. matériaux'!BB37/'Indices T.P. matériaux'!BB$35=0,NA(),'Indices T.P. matériaux'!BB37/'Indices T.P. matériaux'!BB$35),NA()) -> 1.014773306 | BM116: =IFERROR(IF('Indices T.P. matériaux'!BC37/'Indices T.P. matériaux'!BC$35=0,NA(),'Indices T.P. matériaux'!BC37/'Indices T.P. matériaux'!BC$35),NA()) -> 1.008653846 | BN116: =IFERROR(IF('Indices T.P. matériaux'!BD37/'Indices T.P. matériaux'!BD$35=0,NA(),'Indices T.P. matériaux'!BD37/'Indices T.P. matériaux'!BD$35),NA()) -> 1.020477816 | BO116: =IFERROR(IF('Indices T.P. matériaux'!BE37/'Indices T.P. matériaux'!BE$35=0,NA(),'Indices T.P. matériaux'!BE37/'Indices T.P. matériaux'!BE$35),NA()) -> 0.9168652794 | BP116: =IFERROR(IF('Indices T.P. matériaux'!BF37/'Indices T.P. matériaux'!BF$35=0,NA(),'Indices T.P. matériaux'!BF37/'Indices T.P. matériaux'!BF$35),NA()) -> 0.9489967949 | BQ116: =IFERROR(IF('Indices T.P. matériaux'!BG37/'Indices T.P. matériaux'!BG$35=0,NA(),'Indices T.P. matériaux'!BG37/'Indices T.P. matériaux'!BG$35),NA()) -> 0.9416167665 | BR116: =IFERROR(IF('Indices T.P. matériaux'!BH37/'Indices T.P. matériaux'!BH$35=0,NA(),'Indices T.P. matériaux'!BH37/'Indices T.P. matériaux'!BH$35),NA()) -> 1 | BS116: =IFERROR(IF('Indices T.P. matériaux'!BI37/'Indices T.P. matériaux'!BI$35=0,NA(),'Indices T.P. matériaux'!BI37/'Indices T.P. matériaux'!BI$35),NA()) -> 0.9864498645 | BT116: =IFERROR(IF('Indices T.P. matériaux'!BJ37/'Indices T.P. matériaux'!BJ$35=0,NA(),'Indices T.P. matériaux'!BJ37/'Indices T.P. matériaux'!BJ$35),NA()) -> 1.016731017 | BU116: =IFERROR(IF('Indices T.P. matériaux'!BK37/'Indices T.P. matériaux'!BK$35=0,NA(),'Indices T.P. matériaux'!BK37/'Indices T.P. matériaux'!BK$35),NA()) -> 1.006980803 | BV116: =IFERROR(IF('Indices T.P. matériaux'!BL37/'Indices T.P. matériaux'!BL$35=0,NA(),'Indices T.P. matériaux'!BL37/'Indices T.P. matériaux'!BL$35),NA()) -> 0.9969879518 | BW116: =IFERROR(IF('Indices T.P. matériaux'!BM37/'Indices T.P. matériaux'!BM$35=0,NA(),'Indices T.P. matériaux'!BM37/'Indices T.P. matériaux'!BM$35),NA()) -> 1.013597033 | BX116: =IFERROR(IF('Indices T.P. matériaux'!BN37/'Indices T.P. matériaux'!BN$35=0,NA(),'Indices T.P. matériaux'!BN37/'Indices T.P. matériaux'!BN$35),NA()) -> 1.00610998 | BY116: =IFERROR(IF('Indices T.P. matériaux'!BO37/'Indices T.P. matériaux'!BO$35=0,NA(),'Indices T.P. matériaux'!BO37/'Indices T.P. matériaux'!BO$35),NA()) -> 0.9606299213 | BZ116: =IFERROR(IF('Indices T.P. matériaux'!BP37/'Indices T.P. matériaux'!BP$35=0,NA(),'Indices T.P. matériaux'!BP37/'Indices T.P. matériaux'!BP$35),NA()) -> 0.9967320261 | CA116: =IFERROR(IF('Indices T.P. matériaux'!BQ37/'Indices T.P. matériaux'!BQ$35=0,NA(),'Indices T.P. matériaux'!BQ37/'Indices T.P. matériaux'!BQ$35),NA()) -> 1 | CB116: =IFERROR(IF('Indices T.P. matériaux'!BR37/'Indices T.P. matériaux'!BR$35=0,NA(),'Indices T.P. matériaux'!BR37/'Indices T.P. matériaux'!BR$35),NA()) -> 1 | CC116: =IFERROR(IF('Indices T.P. matériaux'!BS37/'Indices T.P. matériaux'!BS$35=0,NA(),'Indices T.P. matériaux'!BS37/'Indices T.P. matériaux'!BS$35),NA()) -> 1 | CD116: =IFERROR(IF('Indices T.P. matériaux'!BT37/'Indices T.P. matériaux'!BT$35=0,NA(),'Indices T.P. matériaux'!BT37/'Indices T.P. matériaux'!BT$35),NA()) -> 1 | CE116: =IFERROR(IF('Indices T.P. matériaux'!BU37/'Indices T.P. matériaux'!BU$35=0,NA(),'Indices T.P. matériaux'!BU37/'Indices T.P. matériaux'!BU$35),NA()) -> 1 | CF116: =IFERROR(IF('Indices T.P. matériaux'!BV37/'Indices T.P. matériaux'!BV$35=0,NA(),'Indices T.P. matériaux'!BV37/'Indices T.P. matériaux'!BV$35),NA()) -> 1 | CG116: =IFERROR(IF('Indices T.P. matériaux'!BW37/'Indices T.P. matériaux'!BW$35=0,NA(),'Indices T.P. matériaux'!BW37/'Indices T.P. matériaux'!BW$35),NA()) -> 0.9833871274 | CH116: =IFERROR(IF('Indices T.P. matériaux'!BX37/'Indices T.P. matériaux'!BX$35=0,NA(),'Indices T.P. matériaux'!BX37/'Indices T.P. matériaux'!BX$35),NA()) -> 0.9834857498 | CI116: =IFERROR(IF('Indices T.P. matériaux'!BY37/'Indices T.P. matériaux'!BY$35=0,NA(),'Indices T.P. matériaux'!BY37/'Indices T.P. matériaux'!BY$35),NA()) -> 0.9834643755 | CJ116: =IFERROR(IF('Indices T.P. matériaux'!BZ37/'Indices T.P. matériaux'!BZ$35=0,NA(),'Indices T.P. matériaux'!BZ37/'Indices T.P. matériaux'!BZ$35),NA()) -> 0.9834276807 | CK116: =IFERROR(IF('Indices T.P. matériaux'!CA37/'Indices T.P. matériaux'!CA$35=0,NA(),'Indices T.P. matériaux'!CA37/'Indices T.P. matériaux'!CA$35),NA()) -> 0.9834423505 | CL116: =IFERROR(IF('Indices T.P. matériaux'!CB37/'Indices T.P. matériaux'!CB$35=0,NA(),'Indices T.P. matériaux'!CB37/'Indices T.P. matériaux'!CB$35),NA()) -> 1 | CM116: =IFERROR(IF('Indices T.P. matériaux'!CC37/'Indices T.P. matériaux'!CC$35=0,NA(),'Indices T.P. matériaux'!CC37/'Indices T.P. matériaux'!CC$35),NA()) -> 1 | CN116: =IFERROR(IF('Indices T.P. matériaux'!CD37/'Indices T.P. matériaux'!CD$35=0,NA(),'Indices T.P. matériaux'!CD37/'Indices T.P. matériaux'!CD$35),NA()) -> 1 | CO116: =IFERROR(IF('Indices T.P. matériaux'!CE37/'Indices T.P. matériaux'!CE$35=0,NA(),'Indices T.P. matériaux'!CE37/'Indices T.P. matériaux'!CE$35),NA()) -> 1 | CP116: =IFERROR(IF('Indices T.P. matériaux'!CF37/'Indices T.P. matériaux'!CF$35=0,NA(),'Indices T.P. matériaux'!CF37/'Indices T.P. matériaux'!CF$35),NA()) -> 1 | CQ116: =IFERROR(IF('Indices T.P. matériaux'!CG37/'Indices T.P. matériaux'!CG$35=0,NA(),'Indices T.P. matériaux'!CG37/'Indices T.P. matériaux'!CG$35),NA()) -> 1 | CR116: =IFERROR(IF('Indices T.P. matériaux'!CH37/'Indices T.P. matériaux'!CH$35=0,NA(),'Indices T.P. matériaux'!CH37/'Indices T.P. matériaux'!CH$35),NA()) -> 1 | CS116: =IFERROR(IF('Indices T.P. matériaux'!CI37/'Indices T.P. matériaux'!CI$35=0,NA(),'Indices T.P. matériaux'!CI37/'Indices T.P. matériaux'!CI$35),NA()) -> 1 | CT116: =IFERROR(IF('Indices T.P. matériaux'!CJ37/'Indices T.P. matériaux'!CJ$35=0,NA(),'Indices T.P. matériaux'!CJ37/'Indices T.P. matériaux'!CJ$35),NA()) -> 1 | CU116: =IFERROR(IF('Indices T.P. matériaux'!CK37/'Indices T.P. matériaux'!CK$35=0,NA(),'Indices T.P. matériaux'!CK37/'Indices T.P. matériaux'!CK$35),NA()) -> 1.001353442 | CV116: =IFERROR(IF('Indices T.P. matériaux'!CL37/'Indices T.P. matériaux'!CL$35=0,NA(),'Indices T.P. matériaux'!CL37/'Indices T.P. matériaux'!CL$35),NA()) -> 1.001360544 | CW116: =IFERROR(IF('Indices T.P. matériaux'!CM37/'Indices T.P. matériaux'!CM$35=0,NA(),'Indices T.P. matériaux'!CM37/'Indices T.P. matériaux'!CM$35),NA()) -> 1.001382409 | CX116: =IFERROR(IF('Indices T.P. matériaux'!CN37/'Indices T.P. matériaux'!CN$35=0,NA(),'Indices T.P. matériaux'!CN37/'Indices T.P. matériaux'!CN$35),NA()) -> 1.001365877 | CY116: =IFERROR(IF('Indices T.P. matériaux'!CO37/'Indices T.P. matériaux'!CO$35=0,NA(),'Indices T.P. matériaux'!CO37/'Indices T.P. matériaux'!CO$35),NA()) -> 0.959759308 | CZ116: =IFERROR(IF('Indices T.P. matériaux'!CP37/'Indices T.P. matériaux'!CP$35=0,NA(),'Indices T.P. matériaux'!CP37/'Indices T.P. matériaux'!CP$35),NA()) -> 0.9598316756 | DA116: =IFERROR(IF('Indices T.P. matériaux'!CQ37/'Indices T.P. matériaux'!CQ$35=0,NA(),'Indices T.P. matériaux'!CQ37/'Indices T.P. matériaux'!CQ$35),NA()) -> 0.959795183 | DB116: =IFERROR(IF('Indices T.P. matériaux'!CR37/'Indices T.P. matériaux'!CR$35=0,NA(),'Indices T.P. matériaux'!CR37/'Indices T.P. matériaux'!CR$35),NA()) -> 0.9708207198 | DC116: =IFERROR(IF('Indices T.P. matériaux'!CS37/'Indices T.P. matériaux'!CS$35=0,NA(),'Indices T.P. matériaux'!CS37/'Indices T.P. matériaux'!CS$35),NA()) -> 0.9708354345 | DD116: =IFERROR(IF('Indices T.P. matériaux'!CT37/'Indices T.P. matériaux'!CT$35=0,NA(),'Indices T.P. matériaux'!CT37/'Indices T.P. matériaux'!CT$35),NA()) -> 0.9781320424 | DE116: =IFERROR(IF('Indices T.P. matériaux'!CU37/'Indices T.P. matériaux'!CU$35=0,NA(),'Indices T.P. matériaux'!CU37/'Indices T.P. matériaux'!CU$35),NA()) -> 0.9732744402 | DF116: =IFERROR(IF('Indices T.P. matériaux'!CV37/'Indices T.P. matériaux'!CV$35=0,NA(),'Indices T.P. matériaux'!CV37/'Indices T.P. matériaux'!CV$35),NA()) -> 0.9140311804 | DG116: =IFERROR(IF('Indices T.P. matériaux'!CW37/'Indices T.P. matériaux'!CW$35=0,NA(),'Indices T.P. matériaux'!CW37/'Indices T.P. matériaux'!CW$35),NA()) -> 0.9769067948 | DH116: =IFERROR(IF('Indices T.P. matériaux'!CX37/'Indices T.P. matériaux'!CX$35=0,NA(),'Indices T.P. matériaux'!CX37/'Indices T.P. matériaux'!CX$35),NA()) -> 0.9697799633 | DI116: =IFERROR(IF('Indices T.P. matériaux'!CY37/'Indices T.P. matériaux'!CY$35=0,NA(),'Indices T.P. matériaux'!CY37/'Indices T.P. matériaux'!CY$35),NA()) -> 0.9738197309 | DJ116: =IFERROR(IF('Indices T.P. matériaux'!CZ37/'Indices T.P. matériaux'!CZ$35=0,NA(),'Indices T.P. matériaux'!CZ37/'Indices T.P. matériaux'!CZ$35),NA()) -> 1 | DK116: =IFERROR(IF('Indices T.P. matériaux'!DA37/'Indices T.P. matériaux'!DA$35=0,NA(),'Indices T.P. matériaux'!DA37/'Indices T.P. matériaux'!DA$35),NA()) -> 1 | DL116: =IFERROR(IF('Indices T.P. matériaux'!DB37/'Indices T.P. matériaux'!DB$35=0,NA(),'Indices T.P. matériaux'!DB37/'Indices T.P. matériaux'!DB$35),NA()) -> 1.023156089 | DM116: =IFERROR(IF('Indices T.P. matériaux'!DC37/'Indices T.P. matériaux'!DC$35=0,NA(),'Indices T.P. matériaux'!DC37/'Indices T.P. matériaux'!DC$35),NA()) -> 1.010578279 | DN116: =IFERROR(IF('Indices T.P. matériaux'!DD37/'Indices T.P. matériaux'!DD$35=0,NA(),'Indices T.P. matériaux'!DD37/'Indices T.P. matériaux'!DD$35),NA()) -> 0.9877986782 | DO116: =IFERROR(IF('Indices T.P. matériaux'!DE37/'Indices T.P. matériaux'!DE$35=0,NA(),'Indices T.P. matériaux'!DE37/'Indices T.P. matériaux'!DE$35),NA()) -> 1.003820439 | DP116: =IFERROR(IF('Indices T.P. matériaux'!DF37/'Indices T.P. matériaux'!DF$35=0,NA(),'Indices T.P. matériaux'!DF37/'Indices T.P. matériaux'!DF$35),NA()) -> 1 | DQ116: =IFERROR(IF('Indices Grymafer'!D32/'Indices Grymafer'!D$30=0,NA(),'Indices Grymafer'!D32/'Indices Grymafer'!D$30),NA()) -> 0.998459168 | DR116: =IFERROR(IF('Indices Grymafer'!E32/'Indices Grymafer'!E$30=0,NA(),'Indices Grymafer'!E32/'Indices Grymafer'!E$30),NA()) -> 1 | DS116: =IFERROR(IF('Indices Grymafer'!F32/'Indices Grymafer'!F$30=0,NA(),'Indices Grymafer'!F32/'Indices Grymafer'!F$30),NA()) -> 0.9988876529 | DT116: =IFERROR(IF('Indices Grymafer'!G32/'Indices Grymafer'!G$30=0,NA(),'Indices Grymafer'!G32/'Indices Grymafer'!G$30),NA()) -> 0.9948387097 | DU116: =IFERROR(IF('Indices T.P. matériaux'!DG37/'Indices T.P. matériaux'!DG$35=0,NA(),'Indices T.P. matériaux'!DG37/'Indices T.P. matériaux'!DG$35),NA()) -> 1.00784285 | DV116: =IFERROR(IF('Indices T.P. matériaux'!DH37/'Indices T.P. matériaux'!DH$35=0,NA(),'Indices T.P. matériaux'!DH37/'Indices T.P. matériaux'!DH$35),NA()) -> 0.9925486087 | DW116: =IFERROR(IF('Indices T.P. matériaux'!DI37/'Indices T.P. matériaux'!DI$35=0,NA(),'Indices T.P. matériaux'!DI37/'Indices T.P. matériaux'!DI$35),NA()) -> 1.000439367 | DX116: =IFERROR(IF('Indices T.P. matériaux'!DJ37/'Indices T.P. matériaux'!DJ$35=0,NA(),'Indices T.P. matériaux'!DJ37/'Indices T.P. matériaux'!DJ$35),NA()) -> 1.002922874 | DY116: =IFERROR(IF('Indices T.P. matériaux'!DK37/'Indices T.P. matériaux'!DK$35=0,NA(),'Indices T.P. matériaux'!DK37/'Indices T.P. matériaux'!DK$35),NA()) -> 0.8128654971 | DZ116: =IFERROR(IF('Indices T.P. matériaux'!DL37/'Indices T.P. matériaux'!DL$35=0,NA(),'Indices T.P. matériaux'!DL37/'Indices T.P. matériaux'!DL$35),NA()) -> 1.00319639 | EA116: =IFERROR(IF('Indices T.P. matériaux'!DM37/'Indices T.P. matériaux'!DM$35=0,NA(),'Indices T.P. matériaux'!DM37/'Indices T.P. matériaux'!DM$35),NA()) -> 1 | ED116: 2018-03-01 | EE116: =IFERROR(IF('Indices des produits & services'!C30/'Indices des produits & services'!C$28=0,NA(),'Indices des produits & services'!C30/'Indices des produits & services'!C$28),NA()) -> 1 | EF116: =IFERROR(IF('Indices des produits & services'!D30/'Indices des produits & services'!D$28=0,NA(),'Indices des produits & services'!D30/'Indices des produits & services'!D$28),NA()) -> 1 | EG116: =IFERROR(IF('Indices des produits & services'!E30/'Indices des produits & services'!E$28=0,NA(),'Indices des produits & services'!E30/'Indices des produits & services'!E$28),NA()) -> 1 | EH116: =IFERROR(IF('Indices des produits & services'!F30/'Indices des produits & services'!F$28=0,NA(),'Indices des produits & services'!F30/'Indices des produits & services'!F$28),NA()) -> 1 | EI116: =IFERROR(IF('Indices des produits & services'!G30/'Indices des produits & services'!G$28=0,NA(),'Indices des produits & services'!G30/'Indices des produits & services'!G$28),NA()) -> 1 | EJ116: =IFERROR(IF('Indices des produits & services'!H30/'Indices des produits & services'!H$28=0,NA(),'Indices des produits & services'!H30/'Indices des produits & services'!H$28),NA()) -> 1 | EK116: =IFERROR(IF('Indices des produits & services'!I30/'Indices des produits & services'!I$28=0,NA(),'Indices des produits & services'!I30/'Indices des produits & services'!I$28),NA()) -> 1 | EL116: =IFERROR(IF('Indices des produits & services'!J30/'Indices des produits & services'!J$28=0,NA(),'Indices des produits & services'!J30/'Indices des produits & services'!J$28),NA()) -> 1 | EM116: =IFERROR(IF('Indices des produits & services'!K30/'Indices des produits & services'!K$28=0,NA(),'Indices des produits & services'!K30/'Indices des produits & services'!K$28),NA()) -> 1 | EN116: =IFERROR(IF('Indices des produits & services'!L30/'Indices des produits & services'!L$28=0,NA(),'Indices des produits & services'!L30/'Indices des produits & services'!L$28),NA()) -> 1 | EO116: =IFERROR(IF('Indices des produits & services'!M30/'Indices des produits & services'!M$28=0,NA(),'Indices des produits & services'!M30/'Indices des produits & services'!M$28),NA()) -> 1 | EP116: =IFERROR(IF('Indices des produits & services'!N30/'Indices des produits & services'!N$28=0,NA(),'Indices des produits & services'!N30/'Indices des produits & services'!N$28),NA()) -> 1 | EQ116: =IFERROR(IF('Indices des produits & services'!O30/'Indices des produits & services'!O$28=0,NA(),'Indices des produits & services'!O30/'Indices des produits & services'!O$28),NA()) -> 0.9792358804 | ER116: =IFERROR(IF('Indices des produits & services'!P30/'Indices des produits & services'!P$28=0,NA(),'Indices des produits & services'!P30/'Indices des produits & services'!P$28),NA()) -> 1.007162041 | ES116: =IFERROR(IF('Indices des produits & services'!Q30/'Indices des produits & services'!Q$28=0,NA(),'Indices des produits & services'!Q30/'Indices des produits & services'!Q$28),NA()) -> 1.013220019 | ET116: =IFERROR(IF('Indices des produits & services'!R30/'Indices des produits & services'!R$28=0,NA(),'Indices des produits & services'!R30/'Indices des produits & services'!R$28),NA()) -> 1.017857143 | EU116: =IFERROR(IF('Indices des produits & services'!S30/'Indices des produits & services'!S$28=0,NA(),'Indices des produits & services'!S30/'Indices des produits & services'!S$28),NA()) -> 1.001749781 | EV116: =IFERROR(IF('Indices des produits & services'!T30/'Indices des produits & services'!T$28=0,NA(),'Indices des produits & services'!T30/'Indices des produits & services'!T$28),NA()) -> 1.00262697 | EW116: =IFERROR(IF('Indices des produits & services'!U30/'Indices des produits & services'!U$28=0,NA(),'Indices des produits & services'!U30/'Indices des produits & services'!U$28),NA()) -> 1 | EX116: =IFERROR(IF('Indices des produits & services'!V30/'Indices des produits & services'!V$28=0,NA(),'Indices des produits & services'!V30/'Indices des produits & services'!V$28),NA()) -> 1.008006405 | EY116: =IFERROR(IF('Indices des produits & services'!W30/'Indices des produits & services'!W$28=0,NA(),'Indices des produits & services'!W30/'Indices des produits & services'!W$28),NA()) -> 1 | EZ116: =IFERROR(IF('Indices des produits & services'!X30/'Indices des produits & services'!X$28=0,NA(),'Indices des produits & services'!X30/'Indices des produits & services'!X$28),NA()) -> 1.007778738 | FA116: =IFERROR(IF('Indices des produits & services'!Y30/'Indices des produits & services'!Y$28=0,NA(),'Indices des produits & services'!Y30/'Indices des produits & services'!Y$28),NA()) -> 0.9768240343 | FB116: =IFERROR(IF('Indices des produits & services'!Z30/'Indices des produits & services'!Z$28=0,NA(),'Indices des produits & services'!Z30/'Indices des produits & services'!Z$28),NA()) -> 0.8878416588 | FC116: =IFERROR(IF('Indices des produits & services'!AA30/'Indices des produits & services'!AA$28=0,NA(),'Indices des produits & services'!AA30/'Indices des produits & services'!AA$28),NA()) -> 1.017706577 | FD116: =IFERROR(IF('Indices des produits & services'!AB30/'Indices des produits & services'!AB$28=0,NA(),'Indices des produits & services'!AB30/'Indices des produits & services'!AB$28),NA()) -> 1.017736486 | FE116: =IFERROR(IF('Indices des produits & services'!AC30/'Indices des produits & services'!AC$28=0,NA(),'Indices des produits & services'!AC30/'Indices des produits & services'!AC$28),NA()) -> 1.018596788 | FF116: =IFERROR(IF('Indices des produits & services'!AD30/'Indices des produits & services'!AD$28=0,NA(),'Indices des produits & services'!AD30/'Indices des produits & services'!AD$28),NA()) -> 1.01177394 | FG116: =IFERROR(IF('Indices des produits & services'!AE30/'Indices des produits & services'!AE$28=0,NA(),'Indices des produits & services'!AE30/'Indices des produits & services'!AE$28),NA()) -> 1.000868056 | FH116: =IFERROR(IF('Indices des produits & services'!AF30/'Indices des produits & services'!AF$28=0,NA(),'Indices des produits & services'!AF30/'Indices des produits & services'!AF$28),NA()) -> 1.005371531 | FI116: =IFERROR(IF('Indices des produits & services'!AG30/'Indices des produits & services'!AG$28=0,NA(),'Indices des produits & services'!AG30/'Indices des produits & services'!AG$28),NA()) -> 0.976702509 | FJ116: =IFERROR(IF('Indices des produits & services'!AH30/'Indices des produits & services'!AH$28=0,NA(),'Indices des produits & services'!AH30/'Indices des produits & services'!AH$28),NA()) -> 0.9894921191 | FK116: =IFERROR(IF('Indices des produits & services'!AI30/'Indices des produits & services'!AI$28=0,NA(),'Indices des produits & services'!AI30/'Indices des produits & services'!AI$28),NA()) -> 0.9879414298 | FL116: =IFERROR(IF('Indices des produits & services'!AJ30/'Indices des produits & services'!AJ$28=0,NA(),'Indices des produits & services'!AJ30/'Indices des produits & services'!AJ$28),NA()) -> 0.9517884914 | FM116: =IFERROR(IF('Indices des produits & services'!AK30/'Indices des produits & services'!AK$28=0,NA(),'Indices des produits & services'!AK30/'Indices des produits & services'!AK$28),NA()) -> 1.00483611 | FN116: =IFERROR(IF('Indices des produits & services'!AL30/'Indices des produits & services'!AL$28=0,NA(),'Indices des produits & services'!AL30/'Indices des produits & services'!AL$28),NA()) -> 1.01051709 | FO116: =IFERROR(IF('Indices des produits & services'!AM30/'Indices des produits & services'!AM$28=0,NA(),'Indices des produits & services'!AM30/'Indices des produits & services'!AM$28),NA()) -> 0.9953307393 | FP116: =IFERROR(IF('Indices des produits & services'!AN30/'Indices des produits & services'!AN$28=0,NA(),'Indices des produits & services'!AN30/'Indices des produits & services'!AN$28),NA()) -> 1.013286094 | FQ116: =IFERROR(IF('Indices des produits & services'!AO30/'Indices des produits & services'!AO$28=0,NA(),'Indices des produits & services'!AO30/'Indices des produits & services'!AO$28),NA()) -> 0.9982222222 | FR116: =IFERROR(IF('Indices des produits & services'!AP30/'Indices des produits & services'!AP$28=0,NA(),'Indices des produits & services'!AP30/'Indices des produits & services'!AP$28),NA()) -> 1.015070922 | FS116: =IFERROR(IF('Indices des produits & services'!AQ30/'Indices des produits & services'!AQ$28=0,NA(),'Indices des produits & services'!AQ30/'Indices des produits & services'!AQ$28),NA()) -> 1.02955665 | FT116: =IFERROR(IF('Indices des produits & services'!AR30/'Indices des produits & services'!AR$28=0,NA(),'Indices des produits & services'!AR30/'Indices des produits & services'!AR$28),NA()) -> 1.006339144 | FU116: =IFERROR(IF('Indices des produits & services'!AS30/'Indices des produits & services'!AS$28=0,NA(),'Indices des produits & services'!AS30/'Indices des produits & services'!AS$28),NA()) -> 1.03384913 | FV116: =IFERROR(IF('Indices des produits & services'!AT30/'Indices des produits & services'!AT$28=0,NA(),'Indices des produits & services'!AT30/'Indices des produits & services'!AT$28),NA()) -> 1.014231499 | FW116: =IFERROR(IF('Indices des produits & services'!AU30/'Indices des produits & services'!AU$28=0,NA(),'Indices des produits & services'!AU30/'Indices des produits & services'!AU$28),NA()) -> 1.026183283 | FX116: =IFERROR(IF('Indices des produits & services'!AV30/'Indices des produits & services'!AV$28=0,NA(),'Indices des produits & services'!AV30/'Indices des produits & services'!AV$28),NA()) -> 1.109550562 | FY116: =IFERROR(IF('Indices des produits & services'!AW30/'Indices des produits & services'!AW$28=0,NA(),'Indices des produits & services'!AW30/'Indices des produits & services'!AW$28),NA()) -> 1.01453958 | FZ116: =IFERROR(IF('Indices des produits & services'!AX30/'Indices des produits & services'!AX$28=0,NA(),'Indices des produits & services'!AX30/'Indices des produits & services'!AX$28),NA()) -> 1.01453958 | GA116: =IFERROR(IF('Indices des produits & services'!AY30/'Indices des produits & services'!AY$28=0,NA(),'Indices des produits & services'!AY30/'Indices des produits & services'!AY$28),NA()) -> 0.9921104536 | GB116: =IFERROR(IF('Indices des produits & services'!AZ30/'Indices des produits & services'!AZ$28=0,NA(),'Indices des produits & services'!AZ30/'Indices des produits & services'!AZ$28),NA()) -> 0.9835728953 | GC116: =IFERROR(IF('Indices des produits & services'!BA30/'Indices des produits & services'!BA$28=0,NA(),'Indices des produits & services'!BA30/'Indices des produits & services'!BA$28),NA()) -> 1.020774315 | GD116: =IFERROR(IF('Indices des produits & services'!BB30/'Indices des produits & services'!BB$28=0,NA(),'Indices des produits & services'!BB30/'Indices des produits & services'!BB$28),NA()) -> 1.025547445 | GE116: =IFERROR(IF('Indices des produits & services'!BC30/'Indices des produits & services'!BC$28=0,NA(),'Indices des produits & services'!BC30/'Indices des produits & services'!BC$28),NA()) -> 1.018518519 | GF116: =IFERROR(IF('Indices des produits & services'!BD30/'Indices des produits & services'!BD$28=0,NA(),'Indices des produits & services'!BD30/'Indices des produits & services'!BD$28),NA()) -> 1.002970297 | GG116: =IFERROR(IF('Indices des produits & services'!BE30/'Indices des produits & services'!BE$28=0,NA(),'Indices des produits & services'!BE30/'Indices des produits & services'!BE$28),NA()) -> 1 | GH116: =IFERROR(IF('Indices des produits & services'!BF30/'Indices des produits & services'!BF$28=0,NA(),'Indices des produits & services'!BF30/'Indices des produits & services'!BF$28),NA()) -> 1.012 | GI116: =IFERROR(IF('Indices des produits & services'!BG30/'Indices des produits & services'!BG$28=0,NA(),'Indices des produits & services'!BG30/'Indices des produits & services'!BG$28),NA()) -> 0.9828711256 | GJ116: =IFERROR(IF('Indices des produits & services'!BH30/'Indices des produits & services'!BH$28=0,NA(),'Indices des produits & services'!BH30/'Indices des produits & services'!BH$28),NA()) -> 1.01796875 | GK116: =IFERROR(IF('Indices des produits & services'!BI30/'Indices des produits & services'!BI$28=0,NA(),'Indices des produits & services'!BI30/'Indices des produits & services'!BI$28),NA()) -> 1.012322275 | GL116: =IFERROR(IF('Indices des produits & services'!BJ30/'Indices des produits & services'!BJ$28=0,NA(),'Indices des produits & services'!BJ30/'Indices des produits & services'!BJ$28),NA()) -> 1.013257576 | GM116: =IFERROR(IF('Indices des produits & services'!BK30/'Indices des produits & services'!BK$28=0,NA(),'Indices des produits & services'!BK30/'Indices des produits & services'!BK$28),NA()) -> 0.9589041096 | GN116: =IFERROR(IF('Indices des produits & services'!BL30/'Indices des produits & services'!BL$28=0,NA(),'Indices des produits & services'!BL30/'Indices des produits & services'!BL$28),NA()) -> 0.951754386 | GO116: =IFERROR(IF('Indices des produits & services'!BM30/'Indices des produits & services'!BM$28=0,NA(),'Indices des produits & services'!BM30/'Indices des produits & services'!BM$28),NA()) -> 1.019467213 | GP116: =IFERROR(IF('Indices des produits & services'!BN30/'Indices des produits & services'!BN$28=0,NA(),'Indices des produits & services'!BN30/'Indices des produits & services'!BN$28),NA()) -> 1.025800712 | GQ116: =IFERROR(IF('Indices des produits & services'!BO30/'Indices des produits & services'!BO$28=0,NA(),'Indices des produits & services'!BO30/'Indices des produits & services'!BO$28),NA()) -> 1.025837321 | GR116: =IFERROR(IF('Indices des produits & services'!BP30/'Indices des produits & services'!BP$28=0,NA(),'Indices des produits & services'!BP30/'Indices des produits & services'!BP$28),NA()) -> 1.007194245 | GS116: =IFERROR(IF('Indices des produits & services'!BQ30/'Indices des produits & services'!BQ$28=0,NA(),'Indices des produits & services'!BQ30/'Indices des produits & services'!BQ$28),NA()) -> 1.011009174 | GT116: =IFERROR(IF('Indices des produits & services'!BR30/'Indices des produits & services'!BR$28=0,NA(),'Indices des produits & services'!BR30/'Indices des produits & services'!BR$28),NA()) -> 1.00174216 | GU116: =IFERROR(IF('Indices des produits & services'!BS30/'Indices des produits & services'!BS$28=0,NA(),'Indices des produits & services'!BS30/'Indices des produits & services'!BS$28),NA()) -> 1.010638298 | GV116: =IFERROR(IF('Indices des produits & services'!BT30/'Indices des produits & services'!BT$28=0,NA(),'Indices des produits & services'!BT30/'Indices des produits & services'!BT$28),NA()) -> 1.010507881 | GW116: =IFERROR(IF('Indices des produits & services'!BU30/'Indices des produits & services'!BU$28=0,NA(),'Indices des produits & services'!BU30/'Indices des produits & services'!BU$28),NA()) -> 1.023674242 | GX116: =IFERROR(IF('Indices des produits & services'!BV30/'Indices des produits & services'!BV$28=0,NA(),'Indices des produits & services'!BV30/'Indices des produits & services'!BV$28),NA()) -> 1 | GY116: =IFERROR(IF('Indices des produits & services'!BW30/'Indices des produits & services'!BW$28=0,NA(),'Indices des produits & services'!BW30/'Indices des produits & services'!BW$28),NA()) -> 1.015652174 | GZ116: =IFERROR(IF('Indices des produits & services'!BX30/'Indices des produits & services'!BX$28=0,NA(),'Indices des produits & services'!BX30/'Indices des produits & services'!BX$28),NA()) -> 1.002994012 | HA116: =IFERROR(IF('Indices des produits & services'!BY30/'Indices des produits & services'!BY$28=0,NA(),'Indices des produits & services'!BY30/'Indices des produits & services'!BY$28),NA()) -> 1.020462633 | HB116: =IFERROR(IF('Indices des produits & services'!BZ30/'Indices des produits & services'!BZ$28=0,NA(),'Indices des produits & services'!BZ30/'Indices des produits & services'!BZ$28),NA()) -> 1.048212801 | HC116: =IFERROR(IF('Indices des produits & services'!CA30/'Indices des produits & services'!CA$28=0,NA(),'Indices des produits & services'!CA30/'Indices des produits & services'!CA$28),NA()) -> 1.004643963 | HD116: =IFERROR(IF('Indices des produits & services'!CB30/'Indices des produits & services'!CB$28=0,NA(),'Indices des produits & services'!CB30/'Indices des produits & services'!CB$28),NA()) -> 1.002657219 | HE116: =IFERROR(IF('Indices des produits & services'!CC30/'Indices des produits & services'!CC$28=0,NA(),'Indices des produits & services'!CC30/'Indices des produits & services'!CC$28),NA()) -> 1.010110294 | HF116: =IFERROR(IF('Indices des produits & services'!CD30/'Indices des produits & services'!CD$28=0,NA(),'Indices des produits & services'!CD30/'Indices des produits & services'!CD$28),NA()) -> 0.9990049751 | HG116: =IFERROR(IF('Indices des produits & services'!CE30/'Indices des produits & services'!CE$28=0,NA(),'Indices des produits & services'!CE30/'Indices des produits & services'!CE$28),NA()) -> 1.005267779 | HH116: =IFERROR(IF('Indices des produits & services'!CF30/'Indices des produits & services'!CF$28=0,NA(),'Indices des produits & services'!CF30/'Indices des produits & services'!CF$28),NA()) -> 1 | HI116: =IFERROR(IF('Indices des produits & services'!CG30/'Indices des produits & services'!CG$28=0,NA(),'Indices des produits & services'!CG30/'Indices des produits & services'!CG$28),NA()) -> 1.000888889 | HJ116: =IFERROR(IF('Indices des produits & services'!CH30/'Indices des produits & services'!CH$28=0,NA(),'Indices des produits & services'!CH30/'Indices des produits & services'!CH$28),NA()) -> 1.003894839 | HK116: =IFERROR(IF('Indices des produits & services'!CI30/'Indices des produits & services'!CI$28=0,NA(),'Indices des produits & services'!CI30/'Indices des produits & services'!CI$28),NA()) -> 0.9968421053 | HL116: =IFERROR(IF('Indices des produits & services'!CJ30/'Indices des produits & services'!CJ$28=0,NA(),'Indices des produits & services'!CJ30/'Indices des produits & services'!CJ$28),NA()) -> 0.9806835067 | HM116: =IFERROR(IF('Indices des produits & services'!CK30/'Indices des produits & services'!CK$28=0,NA(),'Indices des produits & services'!CK30/'Indices des produits & services'!CK$28),NA()) -> 0.9761904762 | HN116: =IFERROR(IF('Indices des produits & services'!CL30/'Indices des produits & services'!CL$28=0,NA(),'Indices des produits & services'!CL30/'Indices des produits & services'!CL$28),NA()) -> 0.9961013645 | HO116: =IFERROR(IF('Indices des produits & services'!CM30/'Indices des produits & services'!CM$28=0,NA(),'Indices des produits & services'!CM30/'Indices des produits & services'!CM$28),NA()) -> 1.00090009 | HQ116: 2018-03-01 | HR116: =IFERROR(IF('Indices courants'!K29/'Indices courants'!K$27=0,NA(),'Indices courants'!K29/'Indices courants'!K$27),NA()) -> 1.000353994 | HS116: =IFERROR(IF('Indices courants'!L29/'Indices courants'!L$27=0,NA(),'Indices courants'!L29/'Indices courants'!L$27),NA()) -> 1.00031295 | HT116: =IFERROR(IF('Indices courants'!M29/'Indices courants'!M$27=0,NA(),'Indices courants'!M29/'Indices courants'!M$27),NA()) -> 1.000344299 | HU116: =IFERROR(IF('Indices courants'!N29/'Indices courants'!N$27=0,NA(),'Indices courants'!N29/'Indices courants'!N$27),NA()) -> 1.000354359 | HV116: =IFERROR(IF('Indices courants'!O29/'Indices courants'!O$27=0,NA(),'Indices courants'!O29/'Indices courants'!O$27),NA()) -> 1.000313264 | HW116: =IFERROR(IF('Indices courants'!P29/'Indices courants'!P$27=0,NA(),'Indices courants'!P29/'Indices courants'!P$27),NA()) -> 1.000344644 | HX116: =IFERROR(IF('Indices courants'!Q29/'Indices courants'!Q$27=0,NA(),'Indices courants'!Q29/'Indices courants'!Q$27),NA()) -> 1.000361973 | HY116: =IFERROR(IF('Indices courants'!R29/'Indices courants'!R$27=0,NA(),'Indices courants'!R29/'Indices courants'!R$27),NA()) -> 1.000319806 | HZ116: =IFERROR(IF('Indices courants'!S29/'Indices courants'!S$27=0,NA(),'Indices courants'!S29/'Indices courants'!S$27),NA()) -> 1.000351842 | IA116: =IFERROR(IF('Indices courants'!T29/'Indices courants'!T$27=0,NA(),'Indices courants'!T29/'Indices courants'!T$27),NA()) -> 1.000367955 | IB116: =IFERROR(IF('Indices courants'!U29/'Indices courants'!U$27=0,NA(),'Indices courants'!U29/'Indices courants'!U$27),NA()) -> 1.000357433 | IC116: =IFERROR(IF('Indices courants'!V29/'Indices courants'!V$27=0,NA(),'Indices courants'!V29/'Indices courants'!V$27),NA()) -> 1.000357491 | ID116: =IFERROR(IF('Indices courants'!W29/'Indices courants'!W$27=0,NA(),'Indices courants'!W29/'Indices courants'!W$27),NA()) -> 1.000795355 | IE116: =IFERROR(IF('Indices courants'!X29/'Indices courants'!X$27=0,NA(),'Indices courants'!X29/'Indices courants'!X$27),NA()) -> 1.000747737 | IF116: =Tableau21[[#This Row],[Evolution des prix selon formule de révision - indice i 2021]] -> 1.00385 | IG116: =Tableau21[[#This Row],[Evolution des prix selon formule de révision - indice i]] -> 1.00071 | IH116: =Tableau21[[#This Row],[Formule de révision - indice i 2021]] -> 1.00385 | II116: =Tableau21[[#This Row],[Formule de révision - indice i]] -> 1.00071 | IJ116: =IFERROR(IF('Indexations des salaires par CP'!E54/'Indexations des salaires par CP'!E$52=0,NA(),'Indexations des salaires par CP'!E54/'Indexations des salaires par CP'!E$52),NA()) -> 1 | IK116: =IFERROR(IF('Indexations des salaires par CP'!F54/'Indexations des salaires par CP'!F$52=0,NA(),'Indexations des salaires par CP'!F54/'Indexations des salaires par CP'!F$52),NA()) -> 1 | IL116: =IFERROR(IF('Indexations des salaires par CP'!G54/'Indexations des salaires par CP'!G$52=0,NA(),'Indexations des salaires par CP'!G54/'Indexations des salaires par CP'!G$52),NA()) -> 1 | IM116: =IFERROR(IF('Indexations des salaires par CP'!H54/'Indexations des salaires par CP'!H$52=0,NA(),'Indexations des salaires par CP'!H54/'Indexations des salaires par CP'!H$52),NA()) -> 1 | IN116: =IFERROR(IF('Indexations des salaires par CP'!I54/'Indexations des salaires par CP'!I$52=0,NA(),'Indexations des salaires par CP'!I54/'Indexations des salaires par CP'!I$52),NA()) -> 1 | IO116: =IFERROR(IF('Indexations des salaires par CP'!J54/'Indexations des salaires par CP'!J$52=0,NA(),'Indexations des salaires par CP'!J54/'Indexations des salaires par CP'!J$52),NA()) -> 1 | IP116: =IFERROR(IF('Indexations des salaires par CP'!K54/'Indexations des salaires par CP'!K$52=0,NA(),'Indexations des salaires par CP'!K54/'Indexations des salaires par CP'!K$52),NA()) -> 1 | IQ116: =IFERROR(IF('Indexations des salaires par CP'!L54/'Indexations des salaires par CP'!L$52=0,NA(),'Indexations des salaires par CP'!L54/'Indexations des salaires par CP'!L$52),NA()) -> 1 | IR116: =IFERROR(IF('Indexations des salaires par CP'!M54/'Indexations des salaires par CP'!M$52=0,NA(),'Indexations des salaires par CP'!M54/'Indexations des salaires par CP'!M$52),NA()) -> 1 | IS116: =IFERROR(IF('Indexations des salaires par CP'!T54/'Indexations des salaires par CP'!T$52=0,NA(),'Indexations des salaires par CP'!T54/'Indexations des salaires par CP'!T$52),NA()) -> 1 | IT116: =IFERROR(IF('Indexations des salaires par CP'!U54/'Indexations des salaires par CP'!U$52=0,NA(),'Indexations des salaires par CP'!U54/'Indexations des salaires par CP'!U$52),NA()) -> 1 | IU116: =IFERROR(IF('Indexations des salaires par CP'!V54/'Indexations des salaires par CP'!V$52=0,NA(),'Indexations des salaires par CP'!V54/'Indexations des salaires par CP'!V$52),NA()) -> 1 | IV116: =IFERROR(IF('Indexations des salaires par CP'!W54/'Indexations des salaires par CP'!W$52=0,NA(),'Indexations des salaires par CP'!W54/'Indexations des salaires par CP'!W$52),NA()) -> 1 | IW116: =IFERROR(IF('Indexations des salaires par CP'!AD54/'Indexations des salaires par CP'!AD$52=0,NA(),'Indexations des salaires par CP'!AD54/'Indexations des salaires par CP'!AD$52),NA()) -> 1 | IX116: =IFERROR(IF('Indexations des salaires par CP'!AE54/'Indexations des salaires par CP'!AE$52=0,NA(),'Indexations des salaires par CP'!AE54/'Indexations des salaires par CP'!AE$52),NA()) -> 1 | IY116: =IFERROR(IF('Indexations des salaires par CP'!AF54/'Indexations des salaires par CP'!AF$52=0,NA(),'Indexations des salaires par CP'!AF54/'Indexations des salaires par CP'!AF$52),NA()) -> 1 | IZ116: =IFERROR(IF('Indexations des salaires par CP'!AG54/'Indexations des salaires par CP'!AG$52=0,NA(),'Indexations des salaires par CP'!AG54/'Indexations des salaires par CP'!AG$52),NA()) -> 1 | JA116: =IFERROR(IF('Indexations des salaires par CP'!AH54/'Indexations des salaires par CP'!AH$52=0,NA(),'Indexations des salaires par CP'!AH54/'Indexations des salaires par CP'!AH$52),NA()) -> 1 | JB116: =IFERROR(IF('Indexations des salaires par CP'!AI54/'Indexations des salaires par CP'!AI$52=0,NA(),'Indexations des salaires par CP'!AI54/'Indexations des salaires par CP'!AI$52),NA()) -> 1 | JC116: =IFERROR(IF('Indexations des salaires par CP'!AP54/'Indexations des salaires par CP'!AP$52=0,NA(),'Indexations des salaires par CP'!AP54/'Indexations des salaires par CP'!AP$52),NA()) -> 1 | JD116: =IFERROR(IF('Indexations des salaires par CP'!AW54/'Indexations des salaires par CP'!AW$52=0,NA(),'Indexations des salaires par CP'!AW54/'Indexations des salaires par CP'!AW$52),NA()) -> 1 | JE116: =IFERROR(IF('Indexations des salaires par CP'!AX54/'Indexations des salaires par CP'!AX$52=0,NA(),'Indexations des salaires par CP'!AX54/'Indexations des salaires par CP'!AX$52),NA()) -> 1 | JF116: =IFERROR(IF('Indexations des salaires par CP'!AY54/'Indexations des salaires par CP'!AY$52=0,NA(),'Indexations des salaires par CP'!AY54/'Indexations des salaires par CP'!AY$52),NA()) -> 1 | JG116: =IFERROR(IF('Indexations des salaires par CP'!AZ54/'Indexations des salaires par CP'!AZ$52=0,NA(),'Indexations des salaires par CP'!AZ54/'Indexations des salaires par CP'!AZ$52),NA()) -> 1 | JH116: =IFERROR(IF('Indexations des salaires par CP'!BA54/'Indexations des salaires par CP'!BA$52=0,NA(),'Indexations des salaires par CP'!BA54/'Indexations des salaires par CP'!BA$52),NA()) -> 1 | JI116: =IFERROR(IF('Indexations des salaires par CP'!BB54/'Indexations des salaires par CP'!BB$52=0,NA(),'Indexations des salaires par CP'!BB54/'Indexations des salaires par CP'!BB$52),NA()) -> 1 | JJ116: =IFERROR(IF('Indexations des salaires par CP'!BC54/'Indexations des salaires par CP'!BC$52=0,NA(),'Indexations des salaires par CP'!BC54/'Indexations des salaires par CP'!BC$52),NA()) -> 1 | JK116: =IFERROR(IF('Indexations des salaires par CP'!BD54/'Indexations des salaires par CP'!BD$52=0,NA(),'Indexations des salaires par CP'!BD54/'Indexations des salaires par CP'!BD$52),NA()) -> 1 | JL116: =IFERROR(IF('Indexations des salaires par CP'!BK54/'Indexations des salaires par CP'!BK$52=0,NA(),'Indexations des salaires par CP'!BK54/'Indexations des salaires par CP'!BK$52),NA()) -> 1 | JM116: =IFERROR(IF('Indexations des salaires par CP'!BR54/'Indexations des salaires par CP'!BR$52=0,NA(),'Indexations des salaires par CP'!BR54/'Indexations des salaires par CP'!BR$52),NA()) -> 1 | JN116: =IFERROR(IF('Indexations des salaires par CP'!BS54/'Indexations des salaires par CP'!BS$52=0,NA(),'Indexations des salaires par CP'!BS54/'Indexations des salaires par CP'!BS$52),NA()) -> 1 | JO116: =IFERROR(IF('Indexations des salaires par CP'!BT54/'Indexations des salaires par CP'!BT$52=0,NA(),'Indexations des salaires par CP'!BT54/'Indexations des salaires par CP'!BT$52),NA()) -> 1 | JP116: =IFERROR(IF('Indexations des salaires par CP'!BU54/'Indexations des salaires par CP'!BU$52=0,NA(),'Indexations des salaires par CP'!BU54/'Indexations des salaires par CP'!BU$52),NA()) -> 1 | JQ116: =IFERROR(IF('Indexations des salaires par CP'!BV54/'Indexations des salaires par CP'!BV$52=0,NA(),'Indexations des salaires par CP'!BV54/'Indexations des salaires par CP'!BV$52),NA()) -> 1 | JR116: =IFERROR(IF('Indexations des salaires par CP'!BW54/'Indexations des salaires par CP'!BW$52=0,NA(),'Indexations des salaires par CP'!BW54/'Indexations des salaires par CP'!BW$52),NA()) -> 1 | JS116: =IFERROR(IF('Indexations des salaires par CP'!BX54/'Indexations des salaires par CP'!BX$52=0,NA(),'Indexations des salaires par CP'!BX54/'Indexations des salaires par CP'!BX$52),NA()) -> 1 | JT116: =IFERROR(IF('Indexations des salaires par CP'!BY54/'Indexations des salaires par CP'!BY$52=0,NA(),'Indexations des salaires par CP'!BY54/'Indexations des salaires par CP'!BY$52),NA()) -> 1 | JU116: =IFERROR(IF('Indexations des salaires par CP'!BZ54/'Indexations des salaires par CP'!BZ$52=0,NA(),'Indexations des salaires par CP'!BZ54/'Indexations des salaires par CP'!BZ$52),NA()) -> 1 | JV116: =IFERROR(IF('Indexations des salaires par CP'!CA54/'Indexations des salaires par CP'!CA$52=0,NA(),'Indexations des salaires par CP'!CA54/'Indexations des salaires par CP'!CA$52),NA()) -> 1 | JW116: =IFERROR(IF('Indexations des salaires par CP'!CB54/'Indexations des salaires par CP'!CB$52=0,NA(),'Indexations des salaires par CP'!CB54/'Indexations des salaires par CP'!CB$52),NA()) -> 1 | JX116: =IFERROR(IF('Indexations des salaires par CP'!CC54/'Indexations des salaires par CP'!CC$52=0,NA(),'Indexations des salaires par CP'!CC54/'Indexations des salaires par CP'!CC$52),NA()) -> 1 | JY116: =IFERROR(IF('Indexations des salaires par CP'!CD54/'Indexations des salaires par CP'!CD$52=0,NA(),'Indexations des salaires par CP'!CD54/'Indexations des salaires par CP'!CD$52),NA()) -> 1 | JZ116: =IFERROR(IF('Indexations des salaires par CP'!CE54/'Indexations des salaires par CP'!CE$52=0,NA(),'Indexations des salaires par CP'!CE54/'Indexations des salaires par CP'!CE$52),NA()) -> 1 | KA116: =IFERROR(IF('Indexations des salaires par CP'!CF54/'Indexations des salaires par CP'!CF$52=0,NA(),'Indexations des salaires par CP'!CF54/'Indexations des salaires par CP'!CF$52),NA()) -> 1 | KB116: =IFERROR(IF('Indexations des salaires par CP'!CG54/'Indexations des salaires par CP'!CG$52=0,NA(),'Indexations des salaires par CP'!CG54/'Indexations des salaires par CP'!CG$52),NA()) -> 1 | KC116: =IFERROR(IF('Indexations des salaires par CP'!CH54/'Indexations des salaires par CP'!CH$52=0,NA(),'Indexations des salaires par CP'!CH54/'Indexations des salaires par CP'!CH$52),NA()) -> 1 | KD116: =IFERROR(IF('Indexations des salaires par CP'!CI54/'Indexations des salaires par CP'!CI$52=0,NA(),'Indexations des salaires par CP'!CI54/'Indexations des salaires par CP'!CI$52),NA()) -> 1 | KE116: =IFERROR(IF('Indexations des salaires par CP'!CJ54/'Indexations des salaires par CP'!CJ$52=0,NA(),'Indexations des salaires par CP'!CJ54/'Indexations des salaires par CP'!CJ$52),NA()) -> 1 | KF116: =IFERROR(IF('Indexations des salaires par CP'!CQ54/'Indexations des salaires par CP'!CQ$52=0,NA(),'Indexations des salaires par CP'!CQ54/'Indexations des salaires par CP'!CQ$52),NA()) -> 1 | KG116: =IFERROR(IF('Indexations des salaires par CP'!CR54/'Indexations des salaires par CP'!CR$52=0,NA(),'Indexations des salaires par CP'!CR54/'Indexations des salaires par CP'!CR$52),NA()) -> 1 | KH116: =IFERROR(IF('Indexations des salaires par CP'!CS54/'Indexations des salaires par CP'!CS$52=0,NA(),'Indexations des salaires par CP'!CS54/'Indexations des salaires par CP'!CS$52),NA()) -> 1 | KI116: =IFERROR(IF('Indexations des salaires par CP'!CT54/'Indexations des salaires par CP'!CT$52=0,NA(),'Indexations des salaires par CP'!CT54/'Indexations des salaires par CP'!CT$52),NA()) -> 1 | KJ116: =IFERROR(IF('Indexations des salaires par CP'!CU54/'Indexations des salaires par CP'!CU$52=0,NA(),'Indexations des salaires par CP'!CU54/'Indexations des salaires par CP'!CU$52),NA()) -> 1 | KK116: =IFERROR(IF('Indexations des salaires par CP'!DB54/'Indexations des salaires par CP'!DB$52=0,NA(),'Indexations des salaires par CP'!DB54/'Indexations des salaires par CP'!DB$52),NA()) -> 1 | KL116: =IFERROR(IF('Indexations des salaires par CP'!DC54/'Indexations des salaires par CP'!DC$52=0,NA(),'Indexations des salaires par CP'!DC54/'Indexations des salaires par CP'!DC$52),NA()) -> 1 | KM116: =IFERROR(IF('Indexations des salaires par CP'!DD54/'Indexations des salaires par CP'!DD$52=0,NA(),'Indexations des salaires par CP'!DD54/'Indexations des salaires par CP'!DD$52),NA()) -> 1 | KN116: =IFERROR(IF('Indexations des salaires par CP'!DE54/'Indexations des salaires par CP'!DE$52=0,NA(),'Indexations des salaires par CP'!DE54/'Indexations des salaires par CP'!DE$52),NA()) -> 1 | KO116: =IFERROR(IF('Indexations des salaires par CP'!DL54/'Indexations des salaires par CP'!DL$52=0,NA(),'Indexations des salaires par CP'!DL54/'Indexations des salaires par CP'!DL$52),NA()) -> 1 | KP116: =IFERROR(IF('Indexations des salaires par CP'!DM54/'Indexations des salaires par CP'!DM$52=0,NA(),'Indexations des salaires par CP'!DM54/'Indexations des salaires par CP'!DM$52),NA()) -> 1 | KQ116: =IFERROR(IF('Indexations des salaires par CP'!DN54/'Indexations des salaires par CP'!DN$52=0,NA(),'Indexations des salaires par CP'!DN54/'Indexations des salaires par CP'!DN$52),NA()) -> 1 | KR116: =IFERROR(IF('Indexations des salaires par CP'!DO54/'Indexations des salaires par CP'!DO$52=0,NA(),'Indexations des salaires par CP'!DO54/'Indexations des salaires par CP'!DO$52),NA()) -> 1 | KS116: =IFERROR(IF('Indexations des salaires par CP'!DP54/'Indexations des salaires par CP'!DP$52=0,NA(),'Indexations des salaires par CP'!DP54/'Indexations des salaires par CP'!DP$52),NA()) -> 1 | KT116: =IFERROR(IF('Indexations des salaires par CP'!DQ54/'Indexations des salaires par CP'!DQ$52=0,NA(),'Indexations des salaires par CP'!DQ54/'Indexations des salaires par CP'!DQ$52),NA()) -> 1 | KU116: =IFERROR(IF('Indexations des salaires par CP'!DR54/'Indexations des salaires par CP'!DR$52=0,NA(),'Indexations des salaires par CP'!DR54/'Indexations des salaires par CP'!DR$52),NA()) -> 1 | KV116: =IFERROR(IF('Indexations des salaires par CP'!DS54/'Indexations des salaires par CP'!DS$52=0,NA(),'Indexations des salaires par CP'!DS54/'Indexations des salaires par CP'!DS$52),NA()) -> 1 | KW116: =IFERROR(IF('Indexations des salaires par CP'!DT54/'Indexations des salaires par CP'!DT$52=0,NA(),'Indexations des salaires par CP'!DT54/'Indexations des salaires par CP'!DT$52),NA()) -> 1 | KX116: =IFERROR(IF('Indexations des salaires par CP'!DU54/'Indexations des salaires par CP'!DU$52=0,NA(),'Indexations des salaires par CP'!DU54/'Indexations des salaires par CP'!DU$52),NA()) -> 1 | KY116: =IFERROR(IF('Indexations des salaires par CP'!DV54/'Indexations des salaires par CP'!DV$52=0,NA(),'Indexations des salaires par CP'!DV54/'Indexations des salaires par CP'!DV$52),NA()) -> 1 | KZ116: =IFERROR(IF('Indexations des salaires par CP'!DW54/'Indexations des salaires par CP'!DW$52=0,NA(),'Indexations des salaires par CP'!DW54/'Indexations des salaires par CP'!DW$52),NA()) -> 1 | LA116: =IFERROR(IF('Indexations des salaires par CP'!DX54/'Indexations des salaires par CP'!DX$52=0,NA(),'Indexations des salaires par CP'!DX54/'Indexations des salaires par CP'!DX$52),NA()) -> 1
B117: 2018-04-01 | C117: =IFERROR(IF('Indices courants'!E30/'Indices courants'!$E$27=0,NA(),'Indices courants'!E30/'Indices courants'!$E$27),NA()) -> 0.9914963828 | D117: =IFERROR(IF('Indices courants'!F30/'Indices courants'!$F$27=0,NA(),'Indices courants'!F30/'Indices courants'!$F$27),NA()) -> 1.012197643 | E117: =IFERROR(IF('Indices courants'!G30/'Indices courants'!$G$27=0,NA(),'Indices courants'!G30/'Indices courants'!$G$27),NA()) -> 1.000628141 | F117: =IFERROR(IF('Indices courants'!H30/'Indices courants'!$H$27=0,NA(),'Indices courants'!H30/'Indices courants'!$H$27),NA()) -> 0.9993870671 | G117: =IFERROR(IF('Indices courants'!I30/'Indices courants'!I$27=0,NA(),'Indices courants'!I30/'Indices courants'!I$27),NA()) -> 0.9923470182 | H117: =IFERROR(IF('Indices courants'!J30/'Indices courants'!J$27=0,NA(),'Indices courants'!J30/'Indices courants'!J$27),NA()) -> 1.026494387 | I117: =IF('Indices courants'!F29=0,NA(),IF('Indices courants'!K30=0,NA(),IFERROR(ROUND(((('Formule de révision courante'!$E$34*('Indices courants'!F29/'Indices courants'!F28)+'Formule de révision courante'!$E$26*('Indices courants'!K30/'Indices courants'!K29)+'Formule de révision courante'!$E$40))*'Graphique évolution des indices'!I116),5),NA()))) -> 1.00239 | J117: =IF('Indices courants'!G29=0,NA(),IF('Indices courants'!L30=0,NA(),IFERROR(ROUND(((('Formule de révision courante'!$E$34*('Indices courants'!E29/'Indices courants'!E28)+'Formule de révision courante'!$E$26*('Indices courants'!K30/'Indices courants'!K29)+'Formule de révision courante'!$E$40))*'Graphique évolution des indices'!J116),5),NA()))) -> 0.99415 | K117: =IF('Indices courants'!F29=0,NA(),IF('Indices courants'!K30=0,NA(),IFERROR(ROUND(((('Formule de révision courante'!$E$34*('Indices courants'!F29/'Indices courants'!F28)+'Formule de révision courante'!$E$26*('Indices courants'!K30/'Indices courants'!K29)+'Formule de révision courante'!$E$40))),5),NA()))) -> 0.99855 | L117: =IF('Indices courants'!E29=0,NA(),IF('Indices courants'!K30=0,NA(),IFERROR(ROUND(((('Formule de révision courante'!$E$34*('Indices courants'!E29/'Indices courants'!E28)+'Formule de révision courante'!$E$26*('Indices courants'!K30/'Indices courants'!K29)+'Formule de révision courante'!$E$40))),5),NA()))) -> 0.99345 | M117: =IFERROR(IF('Indices T.P. matériaux'!C38/'Indices T.P. matériaux'!C$35=0,NA(),'Indices T.P. matériaux'!C38/'Indices T.P. matériaux'!C$35),NA()) -> 1 | N117: =IFERROR(IF('Indices T.P. matériaux'!D38/'Indices T.P. matériaux'!D$35=0,NA(),'Indices T.P. matériaux'!D38/'Indices T.P. matériaux'!D$35),NA()) -> 1 | O117: =IFERROR(IF('Indices T.P. matériaux'!E38/'Indices T.P. matériaux'!E$35=0,NA(),'Indices T.P. matériaux'!E38/'Indices T.P. matériaux'!E$35),NA()) -> 1 | P117: =IFERROR(IF('Indices T.P. matériaux'!F38/'Indices T.P. matériaux'!F$35=0,NA(),'Indices T.P. matériaux'!F38/'Indices T.P. matériaux'!F$35),NA()) -> 1 | Q117: =IFERROR(IF('Indices T.P. matériaux'!G38/'Indices T.P. matériaux'!G$35=0,NA(),'Indices T.P. matériaux'!G38/'Indices T.P. matériaux'!G$35),NA()) -> 1 | R117: =IFERROR(IF('Indices T.P. matériaux'!H38/'Indices T.P. matériaux'!H$35=0,NA(),'Indices T.P. matériaux'!H38/'Indices T.P. matériaux'!H$35),NA()) -> 1 | S117: =IFERROR(IF('Indices T.P. matériaux'!I38/'Indices T.P. matériaux'!I$35=0,NA(),'Indices T.P. matériaux'!I38/'Indices T.P. matériaux'!I$35),NA()) -> 1 | T117: =IFERROR(IF('Indices T.P. matériaux'!J38/'Indices T.P. matériaux'!J$35=0,NA(),'Indices T.P. matériaux'!J38/'Indices T.P. matériaux'!J$35),NA()) -> 1 | U117: =IFERROR(IF('Indices T.P. matériaux'!K38/'Indices T.P. matériaux'!K$35=0,NA(),'Indices T.P. matériaux'!K38/'Indices T.P. matériaux'!K$35),NA()) -> 1 | V117: =IFERROR(IF('Indices T.P. matériaux'!L38/'Indices T.P. matériaux'!L$35=0,NA(),'Indices T.P. matériaux'!L38/'Indices T.P. matériaux'!L$35),NA()) -> 1 | W117: =IFERROR(IF('Indices T.P. matériaux'!M38/'Indices T.P. matériaux'!M$35=0,NA(),'Indices T.P. matériaux'!M38/'Indices T.P. matériaux'!M$35),NA()) -> 1 | X117: =IFERROR(IF('Indices T.P. matériaux'!N38/'Indices T.P. matériaux'!N$35=0,NA(),'Indices T.P. matériaux'!N38/'Indices T.P. matériaux'!N$35),NA()) -> 1 | Y117: =IFERROR(IF('Indices T.P. matériaux'!O38/'Indices T.P. matériaux'!O$35=0,NA(),'Indices T.P. matériaux'!O38/'Indices T.P. matériaux'!O$35),NA()) -> 1 | Z117: =IFERROR(IF('Indices T.P. matériaux'!P38/'Indices T.P. matériaux'!P$35=0,NA(),'Indices T.P. matériaux'!P38/'Indices T.P. matériaux'!P$35),NA()) -> 1 | AA117: =IFERROR(IF('Indices T.P. matériaux'!Q38/'Indices T.P. matériaux'!Q$35=0,NA(),'Indices T.P. matériaux'!Q38/'Indices T.P. matériaux'!Q$35),NA()) -> 1 | AB117: =IFERROR(IF('Indices T.P. matériaux'!R38/'Indices T.P. matériaux'!R$35=0,NA(),'Indices T.P. matériaux'!R38/'Indices T.P. matériaux'!R$35),NA()) -> 1 | AC117: =IFERROR(IF('Indices T.P. matériaux'!S38/'Indices T.P. matériaux'!S$35=0,NA(),'Indices T.P. matériaux'!S38/'Indices T.P. matériaux'!S$35),NA()) -> 1 | AD117: =IFERROR(IF('Indices T.P. matériaux'!T38/'Indices T.P. matériaux'!T$35=0,NA(),'Indices T.P. matériaux'!T38/'Indices T.P. matériaux'!T$35),NA()) -> 1 | AE117: =IFERROR(IF('Indices T.P. matériaux'!U38/'Indices T.P. matériaux'!U$35=0,NA(),'Indices T.P. matériaux'!U38/'Indices T.P. matériaux'!U$35),NA()) -> 1 | AF117: =IFERROR(IF('Indices T.P. matériaux'!V38/'Indices T.P. matériaux'!V$35=0,NA(),'Indices T.P. matériaux'!V38/'Indices T.P. matériaux'!V$35),NA()) -> 1 | AG117: =IFERROR(IF('Indices T.P. matériaux'!W38/'Indices T.P. matériaux'!W$35=0,NA(),'Indices T.P. matériaux'!W38/'Indices T.P. matériaux'!W$35),NA()) -> 1 | AH117: =IFERROR(IF('Indices T.P. matériaux'!X38/'Indices T.P. matériaux'!X$35=0,NA(),'Indices T.P. matériaux'!X38/'Indices T.P. matériaux'!X$35),NA()) -> 1 | AI117: =IFERROR(IF('Indices T.P. matériaux'!Y38/'Indices T.P. matériaux'!Y$35=0,NA(),'Indices T.P. matériaux'!Y38/'Indices T.P. matériaux'!Y$35),NA()) -> 1 | AJ117: =IFERROR(IF('Indices T.P. matériaux'!Z38/'Indices T.P. matériaux'!Z$35=0,NA(),'Indices T.P. matériaux'!Z38/'Indices T.P. matériaux'!Z$35),NA()) -> 1 | AK117: =IFERROR(IF('Indices T.P. matériaux'!AA38/'Indices T.P. matériaux'!AA$35=0,NA(),'Indices T.P. matériaux'!AA38/'Indices T.P. matériaux'!AA$35),NA()) -> 1 | AL117: =IFERROR(IF('Indices T.P. matériaux'!AB38/'Indices T.P. matériaux'!AB$35=0,NA(),'Indices T.P. matériaux'!AB38/'Indices T.P. matériaux'!AB$35),NA()) -> 1.052301255 | AM117: =IFERROR(IF('Indices T.P. matériaux'!AC38/'Indices T.P. matériaux'!AC$35=0,NA(),'Indices T.P. matériaux'!AC38/'Indices T.P. matériaux'!AC$35),NA()) -> 1.06097561 | AN117: =IFERROR(IF('Indices T.P. matériaux'!AD38/'Indices T.P. matériaux'!AD$35=0,NA(),'Indices T.P. matériaux'!AD38/'Indices T.P. matériaux'!AD$35),NA()) -> 1.056306306 | AO117: =IFERROR(IF('Indices T.P. matériaux'!AE38/'Indices T.P. matériaux'!AE$35=0,NA(),'Indices T.P. matériaux'!AE38/'Indices T.P. matériaux'!AE$35),NA()) -> 1.060422961 | AP117: =IFERROR(IF('Indices T.P. matériaux'!AF38/'Indices T.P. matériaux'!AF$35=0,NA(),'Indices T.P. matériaux'!AF38/'Indices T.P. matériaux'!AF$35),NA()) -> 1.068540096 | AQ117: =IFERROR(IF('Indices T.P. matériaux'!AG38/'Indices T.P. matériaux'!AG$35=0,NA(),'Indices T.P. matériaux'!AG38/'Indices T.P. matériaux'!AG$35),NA()) -> 1.064226076 | AR117: =IFERROR(IF('Indices T.P. matériaux'!AH38/'Indices T.P. matériaux'!AH$35=0,NA(),'Indices T.P. matériaux'!AH38/'Indices T.P. matériaux'!AH$35),NA()) -> 1.040263543 | AS117: =IFERROR(IF('Indices T.P. matériaux'!AI38/'Indices T.P. matériaux'!AI$35=0,NA(),'Indices T.P. matériaux'!AI38/'Indices T.P. matériaux'!AI$35),NA()) -> 1.018009905 | AT117: =IFERROR(IF('Indices T.P. matériaux'!AJ38/'Indices T.P. matériaux'!AJ$35=0,NA(),'Indices T.P. matériaux'!AJ38/'Indices T.P. matériaux'!AJ$35),NA()) -> 1.017926357 | AU117: =IFERROR(IF('Indices T.P. matériaux'!AK38/'Indices T.P. matériaux'!AK$35=0,NA(),'Indices T.P. matériaux'!AK38/'Indices T.P. matériaux'!AK$35),NA()) -> 1.017926357 | AV117: =IFERROR(IF('Indices T.P. matériaux'!AL38/'Indices T.P. matériaux'!AL$35=0,NA(),'Indices T.P. matériaux'!AL38/'Indices T.P. matériaux'!AL$35),NA()) -> 1.017955584 | AW117: =IFERROR(IF('Indices T.P. matériaux'!AM38/'Indices T.P. matériaux'!AM$35=0,NA(),'Indices T.P. matériaux'!AM38/'Indices T.P. matériaux'!AM$35),NA()) -> 1.011753183 | AX117: =IFERROR(IF('Indices T.P. matériaux'!AN38/'Indices T.P. matériaux'!AN$35=0,NA(),'Indices T.P. matériaux'!AN38/'Indices T.P. matériaux'!AN$35),NA()) -> 1.012208068 | AY117: =IFERROR(IF('Indices T.P. matériaux'!AO38/'Indices T.P. matériaux'!AO$35=0,NA(),'Indices T.P. matériaux'!AO38/'Indices T.P. matériaux'!AO$35),NA()) -> 1.011971472 | AZ117: =IFERROR(IF('Indices T.P. matériaux'!AP38/'Indices T.P. matériaux'!AP$35=0,NA(),'Indices T.P. matériaux'!AP38/'Indices T.P. matériaux'!AP$35),NA()) -> 1.03033419 | BA117: =IFERROR(IF('Indices T.P. matériaux'!AQ38/'Indices T.P. matériaux'!AQ$35=0,NA(),'Indices T.P. matériaux'!AQ38/'Indices T.P. matériaux'!AQ$35),NA()) -> 1.030752916 | BB117: =IFERROR(IF('Indices T.P. matériaux'!AR38/'Indices T.P. matériaux'!AR$35=0,NA(),'Indices T.P. matériaux'!AR38/'Indices T.P. matériaux'!AR$35),NA()) -> 1.030335285 | BC117: =IFERROR(IF('Indices T.P. matériaux'!AS38/'Indices T.P. matériaux'!AS$35=0,NA(),'Indices T.P. matériaux'!AS38/'Indices T.P. matériaux'!AS$35),NA()) -> 1.030472855 | BD117: =IFERROR(IF('Indices T.P. matériaux'!AT38/'Indices T.P. matériaux'!AT$35=0,NA(),'Indices T.P. matériaux'!AT38/'Indices T.P. matériaux'!AT$35),NA()) -> 1.013977868 | BE117: =IFERROR(IF('Indices T.P. matériaux'!AU38/'Indices T.P. matériaux'!AU$35=0,NA(),'Indices T.P. matériaux'!AU38/'Indices T.P. matériaux'!AU$35),NA()) -> 0.9884505174 | BF117: =IFERROR(IF('Indices T.P. matériaux'!AV38/'Indices T.P. matériaux'!AV$35=0,NA(),'Indices T.P. matériaux'!AV38/'Indices T.P. matériaux'!AV$35),NA()) -> 0.9914469722 | BG117: =IFERROR(IF('Indices T.P. matériaux'!AW38/'Indices T.P. matériaux'!AW$35=0,NA(),'Indices T.P. matériaux'!AW38/'Indices T.P. matériaux'!AW$35),NA()) -> 0.9901720687 | BH117: =IFERROR(IF('Indices T.P. matériaux'!AX38/'Indices T.P. matériaux'!AX$35=0,NA(),'Indices T.P. matériaux'!AX38/'Indices T.P. matériaux'!AX$35),NA()) -> 1.035365854 | BI117: =IFERROR(IF('Indices T.P. matériaux'!AY38/'Indices T.P. matériaux'!AY$35=0,NA(),'Indices T.P. matériaux'!AY38/'Indices T.P. matériaux'!AY$35),NA()) -> 1.03542573 | BJ117: =IFERROR(IF('Indices T.P. matériaux'!AZ38/'Indices T.P. matériaux'!AZ$35=0,NA(),'Indices T.P. matériaux'!AZ38/'Indices T.P. matériaux'!AZ$35),NA()) -> 1.035491905 | BK117: =IFERROR(IF('Indices T.P. matériaux'!BA38/'Indices T.P. matériaux'!BA$35=0,NA(),'Indices T.P. matériaux'!BA38/'Indices T.P. matériaux'!BA$35),NA()) -> 1.035427394 | BL117: =IFERROR(IF('Indices T.P. matériaux'!BB38/'Indices T.P. matériaux'!BB$35=0,NA(),'Indices T.P. matériaux'!BB38/'Indices T.P. matériaux'!BB$35),NA()) -> 1.024961793 | BM117: =IFERROR(IF('Indices T.P. matériaux'!BC38/'Indices T.P. matériaux'!BC$35=0,NA(),'Indices T.P. matériaux'!BC38/'Indices T.P. matériaux'!BC$35),NA()) -> 1.008653846 | BN117: =IFERROR(IF('Indices T.P. matériaux'!BD38/'Indices T.P. matériaux'!BD$35=0,NA(),'Indices T.P. matériaux'!BD38/'Indices T.P. matériaux'!BD$35),NA()) -> 1.034129693 | BO117: =IFERROR(IF('Indices T.P. matériaux'!BE38/'Indices T.P. matériaux'!BE$35=0,NA(),'Indices T.P. matériaux'!BE38/'Indices T.P. matériaux'!BE$35),NA()) -> 0.9044963402 | BP117: =IFERROR(IF('Indices T.P. matériaux'!BF38/'Indices T.P. matériaux'!BF$35=0,NA(),'Indices T.P. matériaux'!BF38/'Indices T.P. matériaux'!BF$35),NA()) -> 0.9596410592 | BQ117: =IFERROR(IF('Indices T.P. matériaux'!BG38/'Indices T.P. matériaux'!BG$35=0,NA(),'Indices T.P. matériaux'!BG38/'Indices T.P. matériaux'!BG$35),NA()) -> 0.9206586826 | BR117: =IFERROR(IF('Indices T.P. matériaux'!BH38/'Indices T.P. matériaux'!BH$35=0,NA(),'Indices T.P. matériaux'!BH38/'Indices T.P. matériaux'!BH$35),NA()) -> 1.018939394 | BS117: =IFERROR(IF('Indices T.P. matériaux'!BI38/'Indices T.P. matériaux'!BI$35=0,NA(),'Indices T.P. matériaux'!BI38/'Indices T.P. matériaux'!BI$35),NA()) -> 0.9864498645 | BT117: =IFERROR(IF('Indices T.P. matériaux'!BJ38/'Indices T.P. matériaux'!BJ$35=0,NA(),'Indices T.P. matériaux'!BJ38/'Indices T.P. matériaux'!BJ$35),NA()) -> 0.9845559846 | BU117: =IFERROR(IF('Indices T.P. matériaux'!BK38/'Indices T.P. matériaux'!BK$35=0,NA(),'Indices T.P. matériaux'!BK38/'Indices T.P. matériaux'!BK$35),NA()) -> 0.9851657941 | BV117: =IFERROR(IF('Indices T.P. matériaux'!BL38/'Indices T.P. matériaux'!BL$35=0,NA(),'Indices T.P. matériaux'!BL38/'Indices T.P. matériaux'!BL$35),NA()) -> 0.9924698795 | BW117: =IFERROR(IF('Indices T.P. matériaux'!BM38/'Indices T.P. matériaux'!BM$35=0,NA(),'Indices T.P. matériaux'!BM38/'Indices T.P. matériaux'!BM$35),NA()) -> 1.013597033 | BX117: =IFERROR(IF('Indices T.P. matériaux'!BN38/'Indices T.P. matériaux'!BN$35=0,NA(),'Indices T.P. matériaux'!BN38/'Indices T.P. matériaux'!BN$35),NA()) -> 1.00407332 | BY117: =IFERROR(IF('Indices T.P. matériaux'!BO38/'Indices T.P. matériaux'!BO$35=0,NA(),'Indices T.P. matériaux'!BO38/'Indices T.P. matériaux'!BO$35),NA()) -> 0.9968503937 | BZ117: =IFERROR(IF('Indices T.P. matériaux'!BP38/'Indices T.P. matériaux'!BP$35=0,NA(),'Indices T.P. matériaux'!BP38/'Indices T.P. matériaux'!BP$35),NA()) -> 0.9885620915 | CA117: =IFERROR(IF('Indices T.P. matériaux'!BQ38/'Indices T.P. matériaux'!BQ$35=0,NA(),'Indices T.P. matériaux'!BQ38/'Indices T.P. matériaux'!BQ$35),NA()) -> 1 | CB117: =IFERROR(IF('Indices T.P. matériaux'!BR38/'Indices T.P. matériaux'!BR$35=0,NA(),'Indices T.P. matériaux'!BR38/'Indices T.P. matériaux'!BR$35),NA()) -> 1 | CC117: =IFERROR(IF('Indices T.P. matériaux'!BS38/'Indices T.P. matériaux'!BS$35=0,NA(),'Indices T.P. matériaux'!BS38/'Indices T.P. matériaux'!BS$35),NA()) -> 1 | CD117: =IFERROR(IF('Indices T.P. matériaux'!BT38/'Indices T.P. matériaux'!BT$35=0,NA(),'Indices T.P. matériaux'!BT38/'Indices T.P. matériaux'!BT$35),NA()) -> 1 | CE117: =IFERROR(IF('Indices T.P. matériaux'!BU38/'Indices T.P. matériaux'!BU$35=0,NA(),'Indices T.P. matériaux'!BU38/'Indices T.P. matériaux'!BU$35),NA()) -> 1 | CF117: =IFERROR(IF('Indices T.P. matériaux'!BV38/'Indices T.P. matériaux'!BV$35=0,NA(),'Indices T.P. matériaux'!BV38/'Indices T.P. matériaux'!BV$35),NA()) -> 1 | CG117: =IFERROR(IF('Indices T.P. matériaux'!BW38/'Indices T.P. matériaux'!BW$35=0,NA(),'Indices T.P. matériaux'!BW38/'Indices T.P. matériaux'!BW$35),NA()) -> 0.9906018606 | CH117: =IFERROR(IF('Indices T.P. matériaux'!BX38/'Indices T.P. matériaux'!BX$35=0,NA(),'Indices T.P. matériaux'!BX38/'Indices T.P. matériaux'!BX$35),NA()) -> 0.9907662257 | CI117: =IFERROR(IF('Indices T.P. matériaux'!BY38/'Indices T.P. matériaux'!BY$35=0,NA(),'Indices T.P. matériaux'!BY38/'Indices T.P. matériaux'!BY$35),NA()) -> 0.9906784469 | CJ117: =IFERROR(IF('Indices T.P. matériaux'!BZ38/'Indices T.P. matériaux'!BZ$35=0,NA(),'Indices T.P. matériaux'!BZ38/'Indices T.P. matériaux'!BZ$35),NA()) -> 0.9906473049 | CK117: =IFERROR(IF('Indices T.P. matériaux'!CA38/'Indices T.P. matériaux'!CA$35=0,NA(),'Indices T.P. matériaux'!CA38/'Indices T.P. matériaux'!CA$35),NA()) -> 0.9906741791 | CL117: =IFERROR(IF('Indices T.P. matériaux'!CB38/'Indices T.P. matériaux'!CB$35=0,NA(),'Indices T.P. matériaux'!CB38/'Indices T.P. matériaux'!CB$35),NA()) -> 1 | CM117: =IFERROR(IF('Indices T.P. matériaux'!CC38/'Indices T.P. matériaux'!CC$35=0,NA(),'Indices T.P. matériaux'!CC38/'Indices T.P. matériaux'!CC$35),NA()) -> 1 | CN117: =IFERROR(IF('Indices T.P. matériaux'!CD38/'Indices T.P. matériaux'!CD$35=0,NA(),'Indices T.P. matériaux'!CD38/'Indices T.P. matériaux'!CD$35),NA()) -> 1 | CO117: =IFERROR(IF('Indices T.P. matériaux'!CE38/'Indices T.P. matériaux'!CE$35=0,NA(),'Indices T.P. matériaux'!CE38/'Indices T.P. matériaux'!CE$35),NA()) -> 1 | CP117: =IFERROR(IF('Indices T.P. matériaux'!CF38/'Indices T.P. matériaux'!CF$35=0,NA(),'Indices T.P. matériaux'!CF38/'Indices T.P. matériaux'!CF$35),NA()) -> 1 | CQ117: =IFERROR(IF('Indices T.P. matériaux'!CG38/'Indices T.P. matériaux'!CG$35=0,NA(),'Indices T.P. matériaux'!CG38/'Indices T.P. matériaux'!CG$35),NA()) -> 1 | CR117: =IFERROR(IF('Indices T.P. matériaux'!CH38/'Indices T.P. matériaux'!CH$35=0,NA(),'Indices T.P. matériaux'!CH38/'Indices T.P. matériaux'!CH$35),NA()) -> 1 | CS117: =IFERROR(IF('Indices T.P. matériaux'!CI38/'Indices T.P. matériaux'!CI$35=0,NA(),'Indices T.P. matériaux'!CI38/'Indices T.P. matériaux'!CI$35),NA()) -> 1 | CT117: =IFERROR(IF('Indices T.P. matériaux'!CJ38/'Indices T.P. matériaux'!CJ$35=0,NA(),'Indices T.P. matériaux'!CJ38/'Indices T.P. matériaux'!CJ$35),NA()) -> 1 | CU117: =IFERROR(IF('Indices T.P. matériaux'!CK38/'Indices T.P. matériaux'!CK$35=0,NA(),'Indices T.P. matériaux'!CK38/'Indices T.P. matériaux'!CK$35),NA()) -> 1.030645785 | CV117: =IFERROR(IF('Indices T.P. matériaux'!CL38/'Indices T.P. matériaux'!CL$35=0,NA(),'Indices T.P. matériaux'!CL38/'Indices T.P. matériaux'!CL$35),NA()) -> 1.030612245 | CW117: =IFERROR(IF('Indices T.P. matériaux'!CM38/'Indices T.P. matériaux'!CM$35=0,NA(),'Indices T.P. matériaux'!CM38/'Indices T.P. matériaux'!CM$35),NA()) -> 1.030672196 | CX117: =IFERROR(IF('Indices T.P. matériaux'!CN38/'Indices T.P. matériaux'!CN$35=0,NA(),'Indices T.P. matériaux'!CN38/'Indices T.P. matériaux'!CN$35),NA()) -> 1.03064315 | CY117: =IFERROR(IF('Indices T.P. matériaux'!CO38/'Indices T.P. matériaux'!CO$35=0,NA(),'Indices T.P. matériaux'!CO38/'Indices T.P. matériaux'!CO$35),NA()) -> 1.022940955 | CZ117: =IFERROR(IF('Indices T.P. matériaux'!CP38/'Indices T.P. matériaux'!CP$35=0,NA(),'Indices T.P. matériaux'!CP38/'Indices T.P. matériaux'!CP$35),NA()) -> 1.022953328 | DA117: =IFERROR(IF('Indices T.P. matériaux'!CQ38/'Indices T.P. matériaux'!CQ$35=0,NA(),'Indices T.P. matériaux'!CQ38/'Indices T.P. matériaux'!CQ$35),NA()) -> 1.022947089 | DB117: =IFERROR(IF('Indices T.P. matériaux'!CR38/'Indices T.P. matériaux'!CR$35=0,NA(),'Indices T.P. matériaux'!CR38/'Indices T.P. matériaux'!CR$35),NA()) -> 1.015136226 | DC117: =IFERROR(IF('Indices T.P. matériaux'!CS38/'Indices T.P. matériaux'!CS$35=0,NA(),'Indices T.P. matériaux'!CS38/'Indices T.P. matériaux'!CS$35),NA()) -> 1.015128593 | DD117: =IFERROR(IF('Indices T.P. matériaux'!CT38/'Indices T.P. matériaux'!CT$35=0,NA(),'Indices T.P. matériaux'!CT38/'Indices T.P. matériaux'!CT$35),NA()) -> 1.017611218 | DE117: =IFERROR(IF('Indices T.P. matériaux'!CU38/'Indices T.P. matériaux'!CU$35=0,NA(),'Indices T.P. matériaux'!CU38/'Indices T.P. matériaux'!CU$35),NA()) -> 1.015962651 | DF117: =IFERROR(IF('Indices T.P. matériaux'!CV38/'Indices T.P. matériaux'!CV$35=0,NA(),'Indices T.P. matériaux'!CV38/'Indices T.P. matériaux'!CV$35),NA()) -> 0.9485523385 | DG117: =IFERROR(IF('Indices T.P. matériaux'!CW38/'Indices T.P. matériaux'!CW$35=0,NA(),'Indices T.P. matériaux'!CW38/'Indices T.P. matériaux'!CW$35),NA()) -> 0.9731015292 | DH117: =IFERROR(IF('Indices T.P. matériaux'!CX38/'Indices T.P. matériaux'!CX$35=0,NA(),'Indices T.P. matériaux'!CX38/'Indices T.P. matériaux'!CX$35),NA()) -> 0.9648003486 | DI117: =IFERROR(IF('Indices T.P. matériaux'!CY38/'Indices T.P. matériaux'!CY$35=0,NA(),'Indices T.P. matériaux'!CY38/'Indices T.P. matériaux'!CY$35),NA()) -> 0.9695057834 | DJ117: =IFERROR(IF('Indices T.P. matériaux'!CZ38/'Indices T.P. matériaux'!CZ$35=0,NA(),'Indices T.P. matériaux'!CZ38/'Indices T.P. matériaux'!CZ$35),NA()) -> 1 | DK117: =IFERROR(IF('Indices T.P. matériaux'!DA38/'Indices T.P. matériaux'!DA$35=0,NA(),'Indices T.P. matériaux'!DA38/'Indices T.P. matériaux'!DA$35),NA()) -> 1 | DL117: =IFERROR(IF('Indices T.P. matériaux'!DB38/'Indices T.P. matériaux'!DB$35=0,NA(),'Indices T.P. matériaux'!DB38/'Indices T.P. matériaux'!DB$35),NA()) -> 1.020011435 | DM117: =IFERROR(IF('Indices T.P. matériaux'!DC38/'Indices T.P. matériaux'!DC$35=0,NA(),'Indices T.P. matériaux'!DC38/'Indices T.P. matériaux'!DC$35),NA()) -> 1.017630465 | DN117: =IFERROR(IF('Indices T.P. matériaux'!DD38/'Indices T.P. matériaux'!DD$35=0,NA(),'Indices T.P. matériaux'!DD38/'Indices T.P. matériaux'!DD$35),NA()) -> 0.9816980173 | DO117: =IFERROR(IF('Indices T.P. matériaux'!DE38/'Indices T.P. matériaux'!DE$35=0,NA(),'Indices T.P. matériaux'!DE38/'Indices T.P. matériaux'!DE$35),NA()) -> 1.026743075 | DP117: =IFERROR(IF('Indices T.P. matériaux'!DF38/'Indices T.P. matériaux'!DF$35=0,NA(),'Indices T.P. matériaux'!DF38/'Indices T.P. matériaux'!DF$35),NA()) -> 1.041089965 | DQ117: =IFERROR(IF('Indices Grymafer'!D33/'Indices Grymafer'!D$30=0,NA(),'Indices Grymafer'!D33/'Indices Grymafer'!D$30),NA()) -> 0.9861325116 | DR117: =IFERROR(IF('Indices Grymafer'!E33/'Indices Grymafer'!E$30=0,NA(),'Indices Grymafer'!E33/'Indices Grymafer'!E$30),NA()) -> 0.9896103896 | DS117: =IFERROR(IF('Indices Grymafer'!F33/'Indices Grymafer'!F$30=0,NA(),'Indices Grymafer'!F33/'Indices Grymafer'!F$30),NA()) -> 0.9899888765 | DT117: =IFERROR(IF('Indices Grymafer'!G33/'Indices Grymafer'!G$30=0,NA(),'Indices Grymafer'!G33/'Indices Grymafer'!G$30),NA()) -> 0.9858064516 | DU117: =IFERROR(IF('Indices T.P. matériaux'!DG38/'Indices T.P. matériaux'!DG$35=0,NA(),'Indices T.P. matériaux'!DG38/'Indices T.P. matériaux'!DG$35),NA()) -> 0.9920105549 | DV117: =IFERROR(IF('Indices T.P. matériaux'!DH38/'Indices T.P. matériaux'!DH$35=0,NA(),'Indices T.P. matériaux'!DH38/'Indices T.P. matériaux'!DH$35),NA()) -> 0.9841657935 | DW117: =IFERROR(IF('Indices T.P. matériaux'!DI38/'Indices T.P. matériaux'!DI$35=0,NA(),'Indices T.P. matériaux'!DI38/'Indices T.P. matériaux'!DI$35),NA()) -> 1.000439367 | DX117: =IFERROR(IF('Indices T.P. matériaux'!DJ38/'Indices T.P. matériaux'!DJ$35=0,NA(),'Indices T.P. matériaux'!DJ38/'Indices T.P. matériaux'!DJ$35),NA()) -> 1.005940034 | DY117: =IFERROR(IF('Indices T.P. matériaux'!DK38/'Indices T.P. matériaux'!DK$35=0,NA(),'Indices T.P. matériaux'!DK38/'Indices T.P. matériaux'!DK$35),NA()) -> 0.8888888889 | DZ117: =IFERROR(IF('Indices T.P. matériaux'!DL38/'Indices T.P. matériaux'!DL$35=0,NA(),'Indices T.P. matériaux'!DL38/'Indices T.P. matériaux'!DL$35),NA()) -> 1.004888596 | EA117: =IFERROR(IF('Indices T.P. matériaux'!DM38/'Indices T.P. matériaux'!DM$35=0,NA(),'Indices T.P. matériaux'!DM38/'Indices T.P. matériaux'!DM$35),NA()) -> 1.002868069 | ED117: 2018-04-01 | EE117: =IFERROR(IF('Indices des produits & services'!C31/'Indices des produits & services'!C$28=0,NA(),'Indices des produits & services'!C31/'Indices des produits & services'!C$28),NA()) -> 1.00619469 | EF117: =IFERROR(IF('Indices des produits & services'!D31/'Indices des produits & services'!D$28=0,NA(),'Indices des produits & services'!D31/'Indices des produits & services'!D$28),NA()) -> 1.05861244 | EG117: =IFERROR(IF('Indices des produits & services'!E31/'Indices des produits & services'!E$28=0,NA(),'Indices des produits & services'!E31/'Indices des produits & services'!E$28),NA()) -> 1.023430178 | EH117: =IFERROR(IF('Indices des produits & services'!F31/'Indices des produits & services'!F$28=0,NA(),'Indices des produits & services'!F31/'Indices des produits & services'!F$28),NA()) -> 0.9990740741 | EI117: =IFERROR(IF('Indices des produits & services'!G31/'Indices des produits & services'!G$28=0,NA(),'Indices des produits & services'!G31/'Indices des produits & services'!G$28),NA()) -> 1.00170503 | EJ117: =IFERROR(IF('Indices des produits & services'!H31/'Indices des produits & services'!H$28=0,NA(),'Indices des produits & services'!H31/'Indices des produits & services'!H$28),NA()) -> 0.9680111266 | EK117: =IFERROR(IF('Indices des produits & services'!I31/'Indices des produits & services'!I$28=0,NA(),'Indices des produits & services'!I31/'Indices des produits & services'!I$28),NA()) -> 1.003676471 | EL117: =IFERROR(IF('Indices des produits & services'!J31/'Indices des produits & services'!J$28=0,NA(),'Indices des produits & services'!J31/'Indices des produits & services'!J$28),NA()) -> 0.9955357143 | EM117: =IFERROR(IF('Indices des produits & services'!K31/'Indices des produits & services'!K$28=0,NA(),'Indices des produits & services'!K31/'Indices des produits & services'!K$28),NA()) -> 1 | EN117: =IFERROR(IF('Indices des produits & services'!L31/'Indices des produits & services'!L$28=0,NA(),'Indices des produits & services'!L31/'Indices des produits & services'!L$28),NA()) -> 1.006161972 | EO117: =IFERROR(IF('Indices des produits & services'!M31/'Indices des produits & services'!M$28=0,NA(),'Indices des produits & services'!M31/'Indices des produits & services'!M$28),NA()) -> 1.004052685 | EP117: =IFERROR(IF('Indices des produits & services'!N31/'Indices des produits & services'!N$28=0,NA(),'Indices des produits & services'!N31/'Indices des produits & services'!N$28),NA()) -> 1 | EQ117: =IFERROR(IF('Indices des produits & services'!O31/'Indices des produits & services'!O$28=0,NA(),'Indices des produits & services'!O31/'Indices des produits & services'!O$28),NA()) -> 0.976744186 | ER117: =IFERROR(IF('Indices des produits & services'!P31/'Indices des produits & services'!P$28=0,NA(),'Indices des produits & services'!P31/'Indices des produits & services'!P$28),NA()) -> 1.012533572 | ES117: =IFERROR(IF('Indices des produits & services'!Q31/'Indices des produits & services'!Q$28=0,NA(),'Indices des produits & services'!Q31/'Indices des produits & services'!Q$28),NA()) -> 1.013220019 | ET117: =IFERROR(IF('Indices des produits & services'!R31/'Indices des produits & services'!R$28=0,NA(),'Indices des produits & services'!R31/'Indices des produits & services'!R$28),NA()) -> 1.015178571 | EU117: =IFERROR(IF('Indices des produits & services'!S31/'Indices des produits & services'!S$28=0,NA(),'Indices des produits & services'!S31/'Indices des produits & services'!S$28),NA()) -> 1.015748031 | EV117: =IFERROR(IF('Indices des produits & services'!T31/'Indices des produits & services'!T$28=0,NA(),'Indices des produits & services'!T31/'Indices des produits & services'!T$28),NA()) -> 1.020140105 | EW117: =IFERROR(IF('Indices des produits & services'!U31/'Indices des produits & services'!U$28=0,NA(),'Indices des produits & services'!U31/'Indices des produits & services'!U$28),NA()) -> 1.025069638 | EX117: =IFERROR(IF('Indices des produits & services'!V31/'Indices des produits & services'!V$28=0,NA(),'Indices des produits & services'!V31/'Indices des produits & services'!V$28),NA()) -> 1.008807046 | EY117: =IFERROR(IF('Indices des produits & services'!W31/'Indices des produits & services'!W$28=0,NA(),'Indices des produits & services'!W31/'Indices des produits & services'!W$28),NA()) -> 1.009495982 | EZ117: =IFERROR(IF('Indices des produits & services'!X31/'Indices des produits & services'!X$28=0,NA(),'Indices des produits & services'!X31/'Indices des produits & services'!X$28),NA()) -> 1.007778738 | FA117: =IFERROR(IF('Indices des produits & services'!Y31/'Indices des produits & services'!Y$28=0,NA(),'Indices des produits & services'!Y31/'Indices des produits & services'!Y$28),NA()) -> 0.9802575107 | FB117: =IFERROR(IF('Indices des produits & services'!Z31/'Indices des produits & services'!Z$28=0,NA(),'Indices des produits & services'!Z31/'Indices des produits & services'!Z$28),NA()) -> 0.8878416588 | FC117: =IFERROR(IF('Indices des produits & services'!AA31/'Indices des produits & services'!AA$28=0,NA(),'Indices des produits & services'!AA31/'Indices des produits & services'!AA$28),NA()) -> 1.019392917 | FD117: =IFERROR(IF('Indices des produits & services'!AB31/'Indices des produits & services'!AB$28=0,NA(),'Indices des produits & services'!AB31/'Indices des produits & services'!AB$28),NA()) -> 1.027027027 | FE117: =IFERROR(IF('Indices des produits & services'!AC31/'Indices des produits & services'!AC$28=0,NA(),'Indices des produits & services'!AC31/'Indices des produits & services'!AC$28),NA()) -> 1.017751479 | FF117: =IFERROR(IF('Indices des produits & services'!AD31/'Indices des produits & services'!AD$28=0,NA(),'Indices des produits & services'!AD31/'Indices des produits & services'!AD$28),NA()) -> 1.007849294 | FG117: =IFERROR(IF('Indices des produits & services'!AE31/'Indices des produits & services'!AE$28=0,NA(),'Indices des produits & services'!AE31/'Indices des produits & services'!AE$28),NA()) -> 1.000868056 | FH117: =IFERROR(IF('Indices des produits & services'!AF31/'Indices des produits & services'!AF$28=0,NA(),'Indices des produits & services'!AF31/'Indices des produits & services'!AF$28),NA()) -> 1.017905103 | FI117: =IFERROR(IF('Indices des produits & services'!AG31/'Indices des produits & services'!AG$28=0,NA(),'Indices des produits & services'!AG31/'Indices des produits & services'!AG$28),NA()) -> 1.028673835 | FJ117: =IFERROR(IF('Indices des produits & services'!AH31/'Indices des produits & services'!AH$28=0,NA(),'Indices des produits & services'!AH31/'Indices des produits & services'!AH$28),NA()) -> 0.9868651489 | FK117: =IFERROR(IF('Indices des produits & services'!AI31/'Indices des produits & services'!AI$28=0,NA(),'Indices des produits & services'!AI31/'Indices des produits & services'!AI$28),NA()) -> 0.992248062 | FL117: =IFERROR(IF('Indices des produits & services'!AJ31/'Indices des produits & services'!AJ$28=0,NA(),'Indices des produits & services'!AJ31/'Indices des produits & services'!AJ$28),NA()) -> 0.9533437014 | FM117: =IFERROR(IF('Indices des produits & services'!AK31/'Indices des produits & services'!AK$28=0,NA(),'Indices des produits & services'!AK31/'Indices des produits & services'!AK$28),NA()) -> 0.9994626545 | FN117: =IFERROR(IF('Indices des produits & services'!AL31/'Indices des produits & services'!AL$28=0,NA(),'Indices des produits & services'!AL31/'Indices des produits & services'!AL$28),NA()) -> 1.031551271 | FO117: =IFERROR(IF('Indices des produits & services'!AM31/'Indices des produits & services'!AM$28=0,NA(),'Indices des produits & services'!AM31/'Indices des produits & services'!AM$28),NA()) -> 1.004669261 | FP117: =IFERROR(IF('Indices des produits & services'!AN31/'Indices des produits & services'!AN$28=0,NA(),'Indices des produits & services'!AN31/'Indices des produits & services'!AN$28),NA()) -> 1.005314438 | FQ117: =IFERROR(IF('Indices des produits & services'!AO31/'Indices des produits & services'!AO$28=0,NA(),'Indices des produits & services'!AO31/'Indices des produits & services'!AO$28),NA()) -> 0.9982222222 | FR117: =IFERROR(IF('Indices des produits & services'!AP31/'Indices des produits & services'!AP$28=0,NA(),'Indices des produits & services'!AP31/'Indices des produits & services'!AP$28),NA()) -> 1.006205674 | FS117: =IFERROR(IF('Indices des produits & services'!AQ31/'Indices des produits & services'!AQ$28=0,NA(),'Indices des produits & services'!AQ31/'Indices des produits & services'!AQ$28),NA()) -> 0.9950738916 | FT117: =IFERROR(IF('Indices des produits & services'!AR31/'Indices des produits & services'!AR$28=0,NA(),'Indices des produits & services'!AR31/'Indices des produits & services'!AR$28),NA()) -> 1.006339144 | FU117: =IFERROR(IF('Indices des produits & services'!AS31/'Indices des produits & services'!AS$28=0,NA(),'Indices des produits & services'!AS31/'Indices des produits & services'!AS$28),NA()) -> 1.034816248 | FV117: =IFERROR(IF('Indices des produits & services'!AT31/'Indices des produits & services'!AT$28=0,NA(),'Indices des produits & services'!AT31/'Indices des produits & services'!AT$28),NA()) -> 1.019924099 | FW117: =IFERROR(IF('Indices des produits & services'!AU31/'Indices des produits & services'!AU$28=0,NA(),'Indices des produits & services'!AU31/'Indices des produits & services'!AU$28),NA()) -> 1.036253776 | FX117: =IFERROR(IF('Indices des produits & services'!AV31/'Indices des produits & services'!AV$28=0,NA(),'Indices des produits & services'!AV31/'Indices des produits & services'!AV$28),NA()) -> 1.102996255 | FY117: =IFERROR(IF('Indices des produits & services'!AW31/'Indices des produits & services'!AW$28=0,NA(),'Indices des produits & services'!AW31/'Indices des produits & services'!AW$28),NA()) -> 1.01453958 | FZ117: =IFERROR(IF('Indices des produits & services'!AX31/'Indices des produits & services'!AX$28=0,NA(),'Indices des produits & services'!AX31/'Indices des produits & services'!AX$28),NA()) -> 1.01453958 | GA117: =IFERROR(IF('Indices des produits & services'!AY31/'Indices des produits & services'!AY$28=0,NA(),'Indices des produits & services'!AY31/'Indices des produits & services'!AY$28),NA()) -> 1.003944773 | GB117: =IFERROR(IF('Indices des produits & services'!AZ31/'Indices des produits & services'!AZ$28=0,NA(),'Indices des produits & services'!AZ31/'Indices des produits & services'!AZ$28),NA()) -> 1.003080082 | GC117: =IFERROR(IF('Indices des produits & services'!BA31/'Indices des produits & services'!BA$28=0,NA(),'Indices des produits & services'!BA31/'Indices des produits & services'!BA$28),NA()) -> 1.021718602 | GD117: =IFERROR(IF('Indices des produits & services'!BB31/'Indices des produits & services'!BB$28=0,NA(),'Indices des produits & services'!BB31/'Indices des produits & services'!BB$28),NA()) -> 1.027372263 | GE117: =IFERROR(IF('Indices des produits & services'!BC31/'Indices des produits & services'!BC$28=0,NA(),'Indices des produits & services'!BC31/'Indices des produits & services'!BC$28),NA()) -> 1.019547325 | GF117: =IFERROR(IF('Indices des produits & services'!BD31/'Indices des produits & services'!BD$28=0,NA(),'Indices des produits & services'!BD31/'Indices des produits & services'!BD$28),NA()) -> 0.996039604 | GG117: =IFERROR(IF('Indices des produits & services'!BE31/'Indices des produits & services'!BE$28=0,NA(),'Indices des produits & services'!BE31/'Indices des produits & services'!BE$28),NA()) -> 1.00280112 | GH117: =IFERROR(IF('Indices des produits & services'!BF31/'Indices des produits & services'!BF$28=0,NA(),'Indices des produits & services'!BF31/'Indices des produits & services'!BF$28),NA()) -> 1.0168 | GI117: =IFERROR(IF('Indices des produits & services'!BG31/'Indices des produits & services'!BG$28=0,NA(),'Indices des produits & services'!BG31/'Indices des produits & services'!BG$28),NA()) -> 0.9959216966 | GJ117: =IFERROR(IF('Indices des produits & services'!BH31/'Indices des produits & services'!BH$28=0,NA(),'Indices des produits & services'!BH31/'Indices des produits & services'!BH$28),NA()) -> 1.03046875 | GK117: =IFERROR(IF('Indices des produits & services'!BI31/'Indices des produits & services'!BI$28=0,NA(),'Indices des produits & services'!BI31/'Indices des produits & services'!BI$28),NA()) -> 1.002843602 | GL117: =IFERROR(IF('Indices des produits & services'!BJ31/'Indices des produits & services'!BJ$28=0,NA(),'Indices des produits & services'!BJ31/'Indices des produits & services'!BJ$28),NA()) -> 1.001893939 | GM117: =IFERROR(IF('Indices des produits & services'!BK31/'Indices des produits & services'!BK$28=0,NA(),'Indices des produits & services'!BK31/'Indices des produits & services'!BK$28),NA()) -> 0.9760273973 | GN117: =IFERROR(IF('Indices des produits & services'!BL31/'Indices des produits & services'!BL$28=0,NA(),'Indices des produits & services'!BL31/'Indices des produits & services'!BL$28),NA()) -> 0.9807017544 | GO117: =IFERROR(IF('Indices des produits & services'!BM31/'Indices des produits & services'!BM$28=0,NA(),'Indices des produits & services'!BM31/'Indices des produits & services'!BM$28),NA()) -> 1.019467213 | GP117: =IFERROR(IF('Indices des produits & services'!BN31/'Indices des produits & services'!BN$28=0,NA(),'Indices des produits & services'!BN31/'Indices des produits & services'!BN$28),NA()) -> 1.025800712 | GQ117: =IFERROR(IF('Indices des produits & services'!BO31/'Indices des produits & services'!BO$28=0,NA(),'Indices des produits & services'!BO31/'Indices des produits & services'!BO$28),NA()) -> 1.023923445 | GR117: =IFERROR(IF('Indices des produits & services'!BP31/'Indices des produits & services'!BP$28=0,NA(),'Indices des produits & services'!BP31/'Indices des produits & services'!BP$28),NA()) -> 1.008992806 | GS117: =IFERROR(IF('Indices des produits & services'!BQ31/'Indices des produits & services'!BQ$28=0,NA(),'Indices des produits & services'!BQ31/'Indices des produits & services'!BQ$28),NA()) -> 1.012844037 | GT117: =IFERROR(IF('Indices des produits & services'!BR31/'Indices des produits & services'!BR$28=0,NA(),'Indices des produits & services'!BR31/'Indices des produits & services'!BR$28),NA()) -> 1.00174216 | GU117: =IFERROR(IF('Indices des produits & services'!BS31/'Indices des produits & services'!BS$28=0,NA(),'Indices des produits & services'!BS31/'Indices des produits & services'!BS$28),NA()) -> 1.011456628 | GV117: =IFERROR(IF('Indices des produits & services'!BT31/'Indices des produits & services'!BT$28=0,NA(),'Indices des produits & services'!BT31/'Indices des produits & services'!BT$28),NA()) -> 1.010507881 | GW117: =IFERROR(IF('Indices des produits & services'!BU31/'Indices des produits & services'!BU$28=0,NA(),'Indices des produits & services'!BU31/'Indices des produits & services'!BU$28),NA()) -> 1.023674242 | GX117: =IFERROR(IF('Indices des produits & services'!BV31/'Indices des produits & services'!BV$28=0,NA(),'Indices des produits & services'!BV31/'Indices des produits & services'!BV$28),NA()) -> 1 | GY117: =IFERROR(IF('Indices des produits & services'!BW31/'Indices des produits & services'!BW$28=0,NA(),'Indices des produits & services'!BW31/'Indices des produits & services'!BW$28),NA()) -> 1.011304348 | GZ117: =IFERROR(IF('Indices des produits & services'!BX31/'Indices des produits & services'!BX$28=0,NA(),'Indices des produits & services'!BX31/'Indices des produits & services'!BX$28),NA()) -> 0.9842814371 | HA117: =IFERROR(IF('Indices des produits & services'!BY31/'Indices des produits & services'!BY$28=0,NA(),'Indices des produits & services'!BY31/'Indices des produits & services'!BY$28),NA()) -> 1.019572954 | HB117: =IFERROR(IF('Indices des produits & services'!BZ31/'Indices des produits & services'!BZ$28=0,NA(),'Indices des produits & services'!BZ31/'Indices des produits & services'!BZ$28),NA()) -> 1.059019119 | HC117: =IFERROR(IF('Indices des produits & services'!CA31/'Indices des produits & services'!CA$28=0,NA(),'Indices des produits & services'!CA31/'Indices des produits & services'!CA$28),NA()) -> 1.004643963 | HD117: =IFERROR(IF('Indices des produits & services'!CB31/'Indices des produits & services'!CB$28=0,NA(),'Indices des produits & services'!CB31/'Indices des produits & services'!CB$28),NA()) -> 1.00088574 | HE117: =IFERROR(IF('Indices des produits & services'!CC31/'Indices des produits & services'!CC$28=0,NA(),'Indices des produits & services'!CC31/'Indices des produits & services'!CC$28),NA()) -> 1.010110294 | HF117: =IFERROR(IF('Indices des produits & services'!CD31/'Indices des produits & services'!CD$28=0,NA(),'Indices des produits & services'!CD31/'Indices des produits & services'!CD$28),NA()) -> 1.00199005 | HG117: =IFERROR(IF('Indices des produits & services'!CE31/'Indices des produits & services'!CE$28=0,NA(),'Indices des produits & services'!CE31/'Indices des produits & services'!CE$28),NA()) -> 1.005267779 | HH117: =IFERROR(IF('Indices des produits & services'!CF31/'Indices des produits & services'!CF$28=0,NA(),'Indices des produits & services'!CF31/'Indices des produits & services'!CF$28),NA()) -> 1 | HI117: =IFERROR(IF('Indices des produits & services'!CG31/'Indices des produits & services'!CG$28=0,NA(),'Indices des produits & services'!CG31/'Indices des produits & services'!CG$28),NA()) -> 1.000888889 | HJ117: =IFERROR(IF('Indices des produits & services'!CH31/'Indices des produits & services'!CH$28=0,NA(),'Indices des produits & services'!CH31/'Indices des produits & services'!CH$28),NA()) -> 1.009737098 | HK117: =IFERROR(IF('Indices des produits & services'!CI31/'Indices des produits & services'!CI$28=0,NA(),'Indices des produits & services'!CI31/'Indices des produits & services'!CI$28),NA()) -> 0.9936842105 | HL117: =IFERROR(IF('Indices des produits & services'!CJ31/'Indices des produits & services'!CJ$28=0,NA(),'Indices des produits & services'!CJ31/'Indices des produits & services'!CJ$28),NA()) -> 0.9494799406 | HM117: =IFERROR(IF('Indices des produits & services'!CK31/'Indices des produits & services'!CK$28=0,NA(),'Indices des produits & services'!CK31/'Indices des produits & services'!CK$28),NA()) -> 0.9530812325 | HN117: =IFERROR(IF('Indices des produits & services'!CL31/'Indices des produits & services'!CL$28=0,NA(),'Indices des produits & services'!CL31/'Indices des produits & services'!CL$28),NA()) -> 0.9385964912 | HO117: =IFERROR(IF('Indices des produits & services'!CM31/'Indices des produits & services'!CM$28=0,NA(),'Indices des produits & services'!CM31/'Indices des produits & services'!CM$28),NA()) -> 1.00090009 | HQ117: 2018-04-01 | HR117: =IFERROR(IF('Indices courants'!K30/'Indices courants'!K$27=0,NA(),'Indices courants'!K30/'Indices courants'!K$27),NA()) -> 0.9954946257 | HS117: =IFERROR(IF('Indices courants'!L30/'Indices courants'!L$27=0,NA(),'Indices courants'!L30/'Indices courants'!L$27),NA()) -> 0.9956812919 | HT117: =IFERROR(IF('Indices courants'!M30/'Indices courants'!M$27=0,NA(),'Indices courants'!M30/'Indices courants'!M$27),NA()) -> 0.9957119159 | HU117: =IFERROR(IF('Indices courants'!N30/'Indices courants'!N$27=0,NA(),'Indices courants'!N30/'Indices courants'!N$27),NA()) -> 0.9954899813 | HV117: =IFERROR(IF('Indices courants'!O30/'Indices courants'!O$27=0,NA(),'Indices courants'!O30/'Indices courants'!O$27),NA()) -> 0.9956769626 | HW117: =IFERROR(IF('Indices courants'!P30/'Indices courants'!P$27=0,NA(),'Indices courants'!P30/'Indices courants'!P$27),NA()) -> 0.9956762854 | HX117: =IFERROR(IF('Indices courants'!Q30/'Indices courants'!Q$27=0,NA(),'Indices courants'!Q30/'Indices courants'!Q$27),NA()) -> 0.9952943499 | HY117: =IFERROR(IF('Indices courants'!R30/'Indices courants'!R$27=0,NA(),'Indices courants'!R30/'Indices courants'!R$27),NA()) -> 0.9954907416 | HZ117: =IFERROR(IF('Indices courants'!S30/'Indices courants'!S$27=0,NA(),'Indices courants'!S30/'Indices courants'!S$27),NA()) -> 0.9954900205 | IA117: =IFERROR(IF('Indices courants'!T30/'Indices courants'!T$27=0,NA(),'Indices courants'!T30/'Indices courants'!T$27),NA()) -> 0.995183141 | IB117: =IFERROR(IF('Indices courants'!U30/'Indices courants'!U$27=0,NA(),'Indices courants'!U30/'Indices courants'!U$27),NA()) -> 0.9953858652 | IC117: =IFERROR(IF('Indices courants'!V30/'Indices courants'!V$27=0,NA(),'Indices courants'!V30/'Indices courants'!V$27),NA()) -> 0.9953851154 | ID117: =IFERROR(IF('Indices courants'!W30/'Indices courants'!W$27=0,NA(),'Indices courants'!W30/'Indices courants'!W$27),NA()) -> 1.000795355 | IE117: =IFERROR(IF('Indices courants'!X30/'Indices courants'!X$27=0,NA(),'Indices courants'!X30/'Indices courants'!X$27),NA()) -> 1.000747737 | IF117: =Tableau21[[#This Row],[Evolution des prix selon formule de révision - indice i 2021]] -> 1.00239 | IG117: =Tableau21[[#This Row],[Evolution des prix selon formule de révision - indice i]] -> 0.99415 | IH117: =Tableau21[[#This Row],[Formule de révision - indice i 2021]] -> 0.99855 | II117: =Tableau21[[#This Row],[Formule de révision - indice i]] -> 0.99345 | IJ117: =IFERROR(IF('Indexations des salaires par CP'!E55/'Indexations des salaires par CP'!E$52=0,NA(),'Indexations des salaires par CP'!E55/'Indexations des salaires par CP'!E$52),NA()) -> 1.004216093 | IK117: =IFERROR(IF('Indexations des salaires par CP'!F55/'Indexations des salaires par CP'!F$52=0,NA(),'Indexations des salaires par CP'!F55/'Indexations des salaires par CP'!F$52),NA()) -> 1.004221133 | IL117: =IFERROR(IF('Indexations des salaires par CP'!G55/'Indexations des salaires par CP'!G$52=0,NA(),'Indexations des salaires par CP'!G55/'Indexations des salaires par CP'!G$52),NA()) -> 1.004223652 | IM117: =IFERROR(IF('Indexations des salaires par CP'!H55/'Indexations des salaires par CP'!H$52=0,NA(),'Indexations des salaires par CP'!H55/'Indexations des salaires par CP'!H$52),NA()) -> 1.00421429 | IN117: =IFERROR(IF('Indexations des salaires par CP'!I55/'Indexations des salaires par CP'!I$52=0,NA(),'Indexations des salaires par CP'!I55/'Indexations des salaires par CP'!I$52),NA()) -> 1.004223399 | IO117: =IFERROR(IF('Indexations des salaires par CP'!J55/'Indexations des salaires par CP'!J$52=0,NA(),'Indexations des salaires par CP'!J55/'Indexations des salaires par CP'!J$52),NA()) -> 1.004216402 | IP117: =IFERROR(IF('Indexations des salaires par CP'!K55/'Indexations des salaires par CP'!K$52=0,NA(),'Indexations des salaires par CP'!K55/'Indexations des salaires par CP'!K$52),NA()) -> 1.004240688 | IQ117: =IFERROR(IF('Indexations des salaires par CP'!L55/'Indexations des salaires par CP'!L$52=0,NA(),'Indexations des salaires par CP'!L55/'Indexations des salaires par CP'!L$52),NA()) -> 1.004210981 | IR117: =IFERROR(IF('Indexations des salaires par CP'!M55/'Indexations des salaires par CP'!M$52=0,NA(),'Indexations des salaires par CP'!M55/'Indexations des salaires par CP'!M$52),NA()) -> 1.004206463 | IS117: =IFERROR(IF('Indexations des salaires par CP'!T55/'Indexations des salaires par CP'!T$52=0,NA(),'Indexations des salaires par CP'!T55/'Indexations des salaires par CP'!T$52),NA()) -> 1 | IT117: =IFERROR(IF('Indexations des salaires par CP'!U55/'Indexations des salaires par CP'!U$52=0,NA(),'Indexations des salaires par CP'!U55/'Indexations des salaires par CP'!U$52),NA()) -> 1 | IU117: =IFERROR(IF('Indexations des salaires par CP'!V55/'Indexations des salaires par CP'!V$52=0,NA(),'Indexations des salaires par CP'!V55/'Indexations des salaires par CP'!V$52),NA()) -> 1 | IV117: =IFERROR(IF('Indexations des salaires par CP'!W55/'Indexations des salaires par CP'!W$52=0,NA(),'Indexations des salaires par CP'!W55/'Indexations des salaires par CP'!W$52),NA()) -> 1 | IW117: =IFERROR(IF('Indexations des salaires par CP'!AD55/'Indexations des salaires par CP'!AD$52=0,NA(),'Indexations des salaires par CP'!AD55/'Indexations des salaires par CP'!AD$52),NA()) -> 1 | IX117: =IFERROR(IF('Indexations des salaires par CP'!AE55/'Indexations des salaires par CP'!AE$52=0,NA(),'Indexations des salaires par CP'!AE55/'Indexations des salaires par CP'!AE$52),NA()) -> 1 | IY117: =IFERROR(IF('Indexations des salaires par CP'!AF55/'Indexations des salaires par CP'!AF$52=0,NA(),'Indexations des salaires par CP'!AF55/'Indexations des salaires par CP'!AF$52),NA()) -> 1 | IZ117: =IFERROR(IF('Indexations des salaires par CP'!AG55/'Indexations des salaires par CP'!AG$52=0,NA(),'Indexations des salaires par CP'!AG55/'Indexations des salaires par CP'!AG$52),NA()) -> 1 | JA117: =IFERROR(IF('Indexations des salaires par CP'!AH55/'Indexations des salaires par CP'!AH$52=0,NA(),'Indexations des salaires par CP'!AH55/'Indexations des salaires par CP'!AH$52),NA()) -> 1 | JB117: =IFERROR(IF('Indexations des salaires par CP'!AI55/'Indexations des salaires par CP'!AI$52=0,NA(),'Indexations des salaires par CP'!AI55/'Indexations des salaires par CP'!AI$52),NA()) -> 1 | JC117: =IFERROR(IF('Indexations des salaires par CP'!AP55/'Indexations des salaires par CP'!AP$52=0,NA(),'Indexations des salaires par CP'!AP55/'Indexations des salaires par CP'!AP$52),NA()) -> 1.020033389 | JD117: =IFERROR(IF('Indexations des salaires par CP'!AW55/'Indexations des salaires par CP'!AW$52=0,NA(),'Indexations des salaires par CP'!AW55/'Indexations des salaires par CP'!AW$52),NA()) -> 1 | JE117: =IFERROR(IF('Indexations des salaires par CP'!AX55/'Indexations des salaires par CP'!AX$52=0,NA(),'Indexations des salaires par CP'!AX55/'Indexations des salaires par CP'!AX$52),NA()) -> 1 | JF117: =IFERROR(IF('Indexations des salaires par CP'!AY55/'Indexations des salaires par CP'!AY$52=0,NA(),'Indexations des salaires par CP'!AY55/'Indexations des salaires par CP'!AY$52),NA()) -> 1 | JG117: =IFERROR(IF('Indexations des salaires par CP'!AZ55/'Indexations des salaires par CP'!AZ$52=0,NA(),'Indexations des salaires par CP'!AZ55/'Indexations des salaires par CP'!AZ$52),NA()) -> 1 | JH117: =IFERROR(IF('Indexations des salaires par CP'!BA55/'Indexations des salaires par CP'!BA$52=0,NA(),'Indexations des salaires par CP'!BA55/'Indexations des salaires par CP'!BA$52),NA()) -> 1 | JI117: =IFERROR(IF('Indexations des salaires par CP'!BB55/'Indexations des salaires par CP'!BB$52=0,NA(),'Indexations des salaires par CP'!BB55/'Indexations des salaires par CP'!BB$52),NA()) -> 1 | JJ117: =IFERROR(IF('Indexations des salaires par CP'!BC55/'Indexations des salaires par CP'!BC$52=0,NA(),'Indexations des salaires par CP'!BC55/'Indexations des salaires par CP'!BC$52),NA()) -> 1 | JK117: =IFERROR(IF('Indexations des salaires par CP'!BD55/'Indexations des salaires par CP'!BD$52=0,NA(),'Indexations des salaires par CP'!BD55/'Indexations des salaires par CP'!BD$52),NA()) -> 1 | JL117: =IFERROR(IF('Indexations des salaires par CP'!BK55/'Indexations des salaires par CP'!BK$52=0,NA(),'Indexations des salaires par CP'!BK55/'Indexations des salaires par CP'!BK$52),NA()) -> 1 | JM117: =IFERROR(IF('Indexations des salaires par CP'!BR55/'Indexations des salaires par CP'!BR$52=0,NA(),'Indexations des salaires par CP'!BR55/'Indexations des salaires par CP'!BR$52),NA()) -> 1 | JN117: =IFERROR(IF('Indexations des salaires par CP'!BS55/'Indexations des salaires par CP'!BS$52=0,NA(),'Indexations des salaires par CP'!BS55/'Indexations des salaires par CP'!BS$52),NA()) -> 1 | JO117: =IFERROR(IF('Indexations des salaires par CP'!BT55/'Indexations des salaires par CP'!BT$52=0,NA(),'Indexations des salaires par CP'!BT55/'Indexations des salaires par CP'!BT$52),NA()) -> 1 | JP117: =IFERROR(IF('Indexations des salaires par CP'!BU55/'Indexations des salaires par CP'!BU$52=0,NA(),'Indexations des salaires par CP'!BU55/'Indexations des salaires par CP'!BU$52),NA()) -> 1 | JQ117: =IFERROR(IF('Indexations des salaires par CP'!BV55/'Indexations des salaires par CP'!BV$52=0,NA(),'Indexations des salaires par CP'!BV55/'Indexations des salaires par CP'!BV$52),NA()) -> 1 | JR117: =IFERROR(IF('Indexations des salaires par CP'!BW55/'Indexations des salaires par CP'!BW$52=0,NA(),'Indexations des salaires par CP'!BW55/'Indexations des salaires par CP'!BW$52),NA()) -> 1 | JS117: =IFERROR(IF('Indexations des salaires par CP'!BX55/'Indexations des salaires par CP'!BX$52=0,NA(),'Indexations des salaires par CP'!BX55/'Indexations des salaires par CP'!BX$52),NA()) -> 1 | JT117: =IFERROR(IF('Indexations des salaires par CP'!BY55/'Indexations des salaires par CP'!BY$52=0,NA(),'Indexations des salaires par CP'!BY55/'Indexations des salaires par CP'!BY$52),NA()) -> 1 | JU117: =IFERROR(IF('Indexations des salaires par CP'!BZ55/'Indexations des salaires par CP'!BZ$52=0,NA(),'Indexations des salaires par CP'!BZ55/'Indexations des salaires par CP'!BZ$52),NA()) -> 1 | JV117: =IFERROR(IF('Indexations des salaires par CP'!CA55/'Indexations des salaires par CP'!CA$52=0,NA(),'Indexations des salaires par CP'!CA55/'Indexations des salaires par CP'!CA$52),NA()) -> 1 | JW117: =IFERROR(IF('Indexations des salaires par CP'!CB55/'Indexations des salaires par CP'!CB$52=0,NA(),'Indexations des salaires par CP'!CB55/'Indexations des salaires par CP'!CB$52),NA()) -> 1 | JX117: =IFERROR(IF('Indexations des salaires par CP'!CC55/'Indexations des salaires par CP'!CC$52=0,NA(),'Indexations des salaires par CP'!CC55/'Indexations des salaires par CP'!CC$52),NA()) -> 1 | JY117: =IFERROR(IF('Indexations des salaires par CP'!CD55/'Indexations des salaires par CP'!CD$52=0,NA(),'Indexations des salaires par CP'!CD55/'Indexations des salaires par CP'!CD$52),NA()) -> 1 | JZ117: =IFERROR(IF('Indexations des salaires par CP'!CE55/'Indexations des salaires par CP'!CE$52=0,NA(),'Indexations des salaires par CP'!CE55/'Indexations des salaires par CP'!CE$52),NA()) -> 1 | KA117: =IFERROR(IF('Indexations des salaires par CP'!CF55/'Indexations des salaires par CP'!CF$52=0,NA(),'Indexations des salaires par CP'!CF55/'Indexations des salaires par CP'!CF$52),NA()) -> 1 | KB117: =IFERROR(IF('Indexations des salaires par CP'!CG55/'Indexations des salaires par CP'!CG$52=0,NA(),'Indexations des salaires par CP'!CG55/'Indexations des salaires par CP'!CG$52),NA()) -> 1 | KC117: =IFERROR(IF('Indexations des salaires par CP'!CH55/'Indexations des salaires par CP'!CH$52=0,NA(),'Indexations des salaires par CP'!CH55/'Indexations des salaires par CP'!CH$52),NA()) -> 1 | KD117: =IFERROR(IF('Indexations des salaires par CP'!CI55/'Indexations des salaires par CP'!CI$52=0,NA(),'Indexations des salaires par CP'!CI55/'Indexations des salaires par CP'!CI$52),NA()) -> 1 | KE117: =IFERROR(IF('Indexations des salaires par CP'!CJ55/'Indexations des salaires par CP'!CJ$52=0,NA(),'Indexations des salaires par CP'!CJ55/'Indexations des salaires par CP'!CJ$52),NA()) -> 1 | KF117: =IFERROR(IF('Indexations des salaires par CP'!CQ55/'Indexations des salaires par CP'!CQ$52=0,NA(),'Indexations des salaires par CP'!CQ55/'Indexations des salaires par CP'!CQ$52),NA()) -> 1.008723127 | KG117: =IFERROR(IF('Indexations des salaires par CP'!CR55/'Indexations des salaires par CP'!CR$52=0,NA(),'Indexations des salaires par CP'!CR55/'Indexations des salaires par CP'!CR$52),NA()) -> 1.008679086 | KH117: =IFERROR(IF('Indexations des salaires par CP'!CS55/'Indexations des salaires par CP'!CS$52=0,NA(),'Indexations des salaires par CP'!CS55/'Indexations des salaires par CP'!CS$52),NA()) -> 1.008696282 | KI117: =IFERROR(IF('Indexations des salaires par CP'!CT55/'Indexations des salaires par CP'!CT$52=0,NA(),'Indexations des salaires par CP'!CT55/'Indexations des salaires par CP'!CT$52),NA()) -> 1.00866577 | KJ117: =IFERROR(IF('Indexations des salaires par CP'!CU55/'Indexations des salaires par CP'!CU$52=0,NA(),'Indexations des salaires par CP'!CU55/'Indexations des salaires par CP'!CU$52),NA()) -> 1.008716446 | KK117: =IFERROR(IF('Indexations des salaires par CP'!DB55/'Indexations des salaires par CP'!DB$52=0,NA(),'Indexations des salaires par CP'!DB55/'Indexations des salaires par CP'!DB$52),NA()) -> 1 | KL117: =IFERROR(IF('Indexations des salaires par CP'!DC55/'Indexations des salaires par CP'!DC$52=0,NA(),'Indexations des salaires par CP'!DC55/'Indexations des salaires par CP'!DC$52),NA()) -> 1 | KM117: =IFERROR(IF('Indexations des salaires par CP'!DD55/'Indexations des salaires par CP'!DD$52=0,NA(),'Indexations des salaires par CP'!DD55/'Indexations des salaires par CP'!DD$52),NA()) -> 1 | KN117: =IFERROR(IF('Indexations des salaires par CP'!DE55/'Indexations des salaires par CP'!DE$52=0,NA(),'Indexations des salaires par CP'!DE55/'Indexations des salaires par CP'!DE$52),NA()) -> 1 | KO117: =IFERROR(IF('Indexations des salaires par CP'!DL55/'Indexations des salaires par CP'!DL$52=0,NA(),'Indexations des salaires par CP'!DL55/'Indexations des salaires par CP'!DL$52),NA()) -> 1 | KP117: =IFERROR(IF('Indexations des salaires par CP'!DM55/'Indexations des salaires par CP'!DM$52=0,NA(),'Indexations des salaires par CP'!DM55/'Indexations des salaires par CP'!DM$52),NA()) -> 1 | KQ117: =IFERROR(IF('Indexations des salaires par CP'!DN55/'Indexations des salaires par CP'!DN$52=0,NA(),'Indexations des salaires par CP'!DN55/'Indexations des salaires par CP'!DN$52),NA()) -> 1 | KR117: =IFERROR(IF('Indexations des salaires par CP'!DO55/'Indexations des salaires par CP'!DO$52=0,NA(),'Indexations des salaires par CP'!DO55/'Indexations des salaires par CP'!DO$52),NA()) -> 1 | KS117: =IFERROR(IF('Indexations des salaires par CP'!DP55/'Indexations des salaires par CP'!DP$52=0,NA(),'Indexations des salaires par CP'!DP55/'Indexations des salaires par CP'!DP$52),NA()) -> 1 | KT117: =IFERROR(IF('Indexations des salaires par CP'!DQ55/'Indexations des salaires par CP'!DQ$52=0,NA(),'Indexations des salaires par CP'!DQ55/'Indexations des salaires par CP'!DQ$52),NA()) -> 1 | KU117: =IFERROR(IF('Indexations des salaires par CP'!DR55/'Indexations des salaires par CP'!DR$52=0,NA(),'Indexations des salaires par CP'!DR55/'Indexations des salaires par CP'!DR$52),NA()) -> 1 | KV117: =IFERROR(IF('Indexations des salaires par CP'!DS55/'Indexations des salaires par CP'!DS$52=0,NA(),'Indexations des salaires par CP'!DS55/'Indexations des salaires par CP'!DS$52),NA()) -> 1 | KW117: =IFERROR(IF('Indexations des salaires par CP'!DT55/'Indexations des salaires par CP'!DT$52=0,NA(),'Indexations des salaires par CP'!DT55/'Indexations des salaires par CP'!DT$52),NA()) -> 1 | KX117: =IFERROR(IF('Indexations des salaires par CP'!DU55/'Indexations des salaires par CP'!DU$52=0,NA(),'Indexations des salaires par CP'!DU55/'Indexations des salaires par CP'!DU$52),NA()) -> 1 | KY117: =IFERROR(IF('Indexations des salaires par CP'!DV55/'Indexations des salaires par CP'!DV$52=0,NA(),'Indexations des salaires par CP'!DV55/'Indexations des salaires par CP'!DV$52),NA()) -> 1 | KZ117: =IFERROR(IF('Indexations des salaires par CP'!DW55/'Indexations des salaires par CP'!DW$52=0,NA(),'Indexations des salaires par CP'!DW55/'Indexations des salaires par CP'!DW$52),NA()) -> 1 | LA117: =IFERROR(IF('Indexations des salaires par CP'!DX55/'Indexations des salaires par CP'!DX$52=0,NA(),'Indexations des salaires par CP'!DX55/'Indexations des salaires par CP'!DX$52),NA()) -> 1
